Workbook

Sheet Veiledning
A2: Om bk- kodene: Det er brukt 4 forskjellige betegnelser. - Ikke vurdert -Bevares og avleveres til Byarkivet - Kasseres etter x år - Kasseres x år etter avslutning Der betegnelsen "Ikke vurdert" er brukt, foreligger det foreløpig ingen vurdering av bevaring eller kassasjon. Disse må bevares inntil en slik vurdering er gjort. Virksomhetene er selv ansvarlig for å gi forslag til kassasjonsfrister på sine fagsaker. For det som regnes som fellessaker kan virksomhetene bidra med forslag, men de er ikke pålagt å gjøre det. Der betegnelelsen "Bevares og avleveres til Byarkivet" er brukt, er virksomheten pliktig til å ta vare på materialet inntil dette er godkjent avlevert hos Byarkivet. Der betegnelsen "Kasseres etter x år" er brukt, betyr det at dokumentasjonen kan kasseres x år etter opprettelse, f.eks. "Kasseres etter 5 år" betyr at dokumentet kan kasseres 5 år etter at det er opprettet. Der betegnelsen "Kasseres x år etter avslutning" er brukt betyr det at materialet kan kasseres enten x år etter at saken er avsluttet eller x år etter at kontrakten er utløpt. Byarkivet ønsker tilbakemelding fra virksomhetene dersom de er uenige i noen av de satte kassasjonsfristene eller bevaringsvurderingene.
A3: Om 0-kodene: Alle funksjoner har en 0-kode med kort kassasjonsfrist (5 år). I denne koden skal kun dokumenter som ikke naturlig hører hjemme i andre koder og som man vet ikke har særlig dokumentasjonsverdi legges. Dersom man mener dokumentet har lengre dokumentasjonsverdi skal det legges på andre koder. Dersom virksomheten ofte har dokumenter som ikke hører naturlig hjemme i andre koder og derfor bruker 0-kodene mye, skal Byarkivet kontaktes for å vurdere om det er behov for utbygning av nøkkelen. Det skal ikke være rutine å legge dokumenter på 0-koden, med mindre dette er avklart med Byarkivet
A4: Om styring av tjenester i fagklassen. C2-01, C2 -02 - her kan alle virksomheter legge inn dokumentasjon om utvikling av tjenester som skal opp til behandling.
A5: Ang. større prosjekter som f.eks. Grorudalssatsningen - hver faginstans legger dokumentasjon i aktuell fagklasse, men det legges på sekundær klassifikiasjon som samler dokumentasjonen.

Sheet A
A1: Nivå 1 | B1: Nivå 2 | C1: Nivå 3 | D1: Nummer | E1: Overliggende | F1: Funksjon | H1: Løpenummer | I1: Kode | J1: Tittel | K1: Her legges | L1: BK-vurdering | M1: Tidligere arkivnøkkel | N1: Aktuelt lovverk | O1: Kommentar
A2: 10000 | D2: H | F2: Hovedfunksjon | G2: =A2+B2+C2 -> 10000 | H2: 1 | I2: A | J2: Lede og administrere virksomhet i Oslo kommune | K2: Egenforvaltning som gjelder alle virksomheter uansett nivå | L2: Bevaring og kassasjon finnes på underliggende nivåer
A3: 10000 | B3: 100 | D3: F | E3: A | F3: Funksjon | G3: 10100 | H3: 2 | I3: A1 | J3: Planlegging og styring av virksomhetens funksjoner
A4: 10000 | B4: 100 | C4: 0 | D4: 0 | E4: A1 | F4: Underfunksjon | G4: 10100 | H4: 3 | I4: A1 - 00 | J4: Dokumentere generelt om styring av virksomheten | K4: Her legges kun dokumenter som ikke naturlig hører hjemme i andre koder og som man vet at ikke har særlig dokumentasjonsverdi. Dersom man mener dokumentet har lengre dokumentasjonsverdi skal det legges på andre koder. | L4: Kasseres 5 år etter avslutning
A5: 10000 | B5: 100 | C5: 1 | D5: 1 | E5: A1 | F5: Underfunksjon | G5: 10101 | H5: 4 | I5: A1 - 01 | J5: Gjennomføre styringsdialog | K5: Dokumentasjon av styringsdialogen med overliggende etat inkludert styring, ledelse, kontroll, plan- og rapporteringsarbeid, slik som tildelingsbrev og forklaringer av budsjettvedtak, periodiske rapporteringer og prognoser, dialog om fastsettelse av mål, rammer og resultatindikatorer, resultatoppfølging og rapportering. Her legges også interne rapporteringer som gir grunnlag for videre rapportering i forbindelse med styringsdialogen. | L5: Bevares og avleveres til Byarkivet
A6: 10000 | B6: 100 | C6: 2 | D6: 2 | E6: A1 | F6: Underfunksjon | G6: 10102 | H6: 5 | I6: A1 - 02 | J6: Utarbeide styrende dokumenter for virksomheten | K6: Strategier, handlingsplaner, årsplaner og andre langtidsplaner med beskrivelse av resultatambisjoner basert på overordnede føringer. Utarbeide og evaluere virksomhetens organisasjonsstruktur. | L6: Bevares og avleveres til Byarkivet | M6: 102 Planer | N6: Kommuneloven kap 8
A7: 10000 | B7: 100 | C7: 4 | D7: 4 | E7: A1 | F7: Underfunksjon | G7: 10104 | H7: 7 | I7: A1 - 03 | J7: Planlegge, styre og evaluere virksomhetens arbeid med risikostyring, kvalitetsstyring og internkontroll | K7: ROS-analyser av virksomheten, dokumentasjon av system for internkontroll og oppfølging/etterlevelse av denne. | L7: Bevares og avleveres til Byarkivet | M7: 040.4 Internkontroll
A8: 10000 | B8: 100 | C8: 6 | D8: 6 | E8: A1 | F8: Underfunksjon | G8: 10106 | H8: 9 | I8: A1 - 04 | J8: Planlegge, styre og evaluere virksomhetens økonomifunksjoner | K8: Planverk for økonomi- og regnskapsfunksjonene | L8: Bevares og avleveres til Byarkivet
A9: 10000 | B9: 200 | C9: 9 | D9: 9 | E9: A2 | F9: Underfunksjon | G9: =A9+B9+C9 -> 10209 | H9: 33 | I9: A1 - 05 | J9: Planlegge, styre og evaluere virksomhetens anskaffelses- og innkjøpsfunksjon for varer og tjenester knyttet til virksomhetens egenforvaltning | K9: Dokumentasjon om innkjøpsstrategi og innkjøpspolicy, interne instrukser og retningslinjer for innkjøpsvirksomhet og kontraktoppfølging og evaluering av innkjøpsvirksomhet. | L9: Bevares og avleveres til Byarkivet | M9: 18 Utstyrs- og materiellforvaltning | N9: Anskaffelsesloven
A10: 10000 | B10: 100 | C10: 10 | D10: 10 | E10: A1 | F10: Underfunksjon | G10: =A10+B10+C10+D10 -> 10120 | H10: 13 | I10: A1 - 06 | J10: Planlegge, styre og evaluere virksomhetens arbeid med informasjonssikkerhet, IKT, arkiv, bibliotek og kommunikasjon | K10: Ledelsens gjennomgang, styrende dokumenter innen informasjonssikkerhet, ROS-analyser. Dokumentasjon om virksomhetens IKT-strategi, IKT-policy og andre styringsdokumenter og utredning og evaluering av virksomhetens IKT-virksomhet. Dette gjelder uansett om virksomheten benytter seg av kjøp av fellestjenester eller har egen IKT-tjeneste. Vurderinger av behov for systemstøtte med nytteanalyser, beslutningsgrunnlag og rammebetingelser. Dokumentasjon om planlegging, styring, evaluering og organisering av virksomhetens arkiv- og bibliotekfunksjoner. Interne instrukser og retningslinjer, for eksempel arkivplaner, klassifikasjonssystemer, bevarings- og kassasjonsplaner, samt dokumentasjon rundt rutiner. | L10: Bevares og avleveres til Byarkivet | N10: IKT-reglementet, byrådssak 1099/10, Instruks for informasjonssikkerhet 1105/13
A11: 10000 | B11: 100 | C11: 11 | D11: 11 | E11: A1 | F11: Underfunksjon | G11: 10122 | H11: 14 | I11: A1 - 07 | J11: Planlegge, styre og evaluere arbeid med samfunnssikkerhet, beredskap og egenbeskyttelsestiltak | K11: Koden brukes kun til virksomhetens egne planer og ikke til sentrale planer. ROS-analyser, beredskapsplaner og -lister, korrespondanse med sentral instans som er ansvarlig for å koordinere beredskapsarbeidet i kommunen. Dokumentasjon om planer for, og evaluering av, beredskapsøvelser. Planlegging av informasjonssikkerhet skal ligge på A1-06 | L11: Bevares og avleveres til Byarkivet | N11: Beredskapsloven, sikkerhetsloven, sivilbeskyttelsesloven
A12: 10000 | B12: 400 | C12: 1 | D12: 1 | E12: A4 | F12: Underfunksjon | G12: =A12+B12+C12 -> 10401 | H12: 67 | I12: A1 - 08 | J12: Planlegge, styre og evaluere virksomhetens arbeid for arbeidsmiljø, - tid og stillingsvern (HMS) | K12: Interne instrukser og retningslinjer for virksomhetens systematiske helse- miljø og sikkerhetsarbeid, overordnede planer for oppfølging av yrkesskader og yrkessykdommer, statistikk, HMS-rapporter, arbeidsmiljøundersøkelser, dokumentasjon av verneombud, bedriftshelsetjenesten, AKAN-arbeid, dokumentasjon av HMS-tilsyn og oppfølging av tilsynet. | L12: Bevares og avleveres til Byarkivet | M12: 056 Arbeidsmiljø og velferd | N12: Arbeidsmiljøloven kap 3
A13: 10000 | B13: 100 | C13: 16 | D13: 16 | E13: A1 | F13: Underfunksjon | G13: =A13+B13+C13+D13 -> 10132 | H13: 19 | I13: A1 - 09 | J13: Planlegge, styre og evaluere personalforvaltning og rekruttering | K13: Utarbeidelse og fastsettelse av lokale planer, lokal personalpolitikk, interne instrukser og retningslinjer og andre styringsdokumenter og evalueringer, kompetanseplaner, medarbeiderundersøkelser, aldersgrensebestemmelser. Retningslinjer for rekruttering og tilsetting. Stillingsbeskrivelser. | L13: Bevares og avleveres til Byarkivet | M13: 05 Personalforvaltning | N13: Arbeidsmiljøloven
A14: 10000 | B14: 700 | C14: 1 | D14: 1 | E14: A7 | F14: Underfunksjon | G14: =A14+B14+C14 -> 10701 | H14: 130 | I14: A1 - 10 | J14: Planlegge og styre virksomhetens bygg, eiendom og materiell til eget bruk | K14: Interne retningslinjer for virksomhetens eiendomsvirksomhet utredninger og evalueringer. | L14: Bevares og avleveres til Byarkivet | M14: 170 Generelt
I15: A1 - 11 | J15: Planlegge, styre og evaluere internrevisjon | K15: Dokumentasjon om planer, metodikk for internrevisjon | L15: Bevares og avleveres til Byarkivet
A16: 10000 | B16: 200 | C16: 13 | D16: 13 | E16: A2 | F16: Underfunksjon | G16: =A16+B16+C16+D16 -> 10226 | H16: 37 | I16: A1 - 12 | J16: Planlegge og styre prosjekt innen egenforvaltning | K16: Overordnet dokumentasjon om prosjekter innen egenforvaltning. Styringsdokumenter og styringsgruppe for prosjekt, for eksempel prosjektbegrunnelse, -forslag og -mandat, gevinstrealiseringsplan, intressentregister, usikkerhetsanalyse. | L16: Bevares og avleveres til Byarkivet
A17: 10000 | B17: 100 | C17: 19 | D17: 19 | E17: A1 | F17: Underfunksjon | G17: =A17+B17+C17+D17 -> 10138 | H17: 22 | I17: A1 - 13 | J17: Rapportere til andre offentlige myndigheter | K17: Annen rapportering til offentlige myndigheter som ikke omfattes av den regulære styringsdialogen i A1-1, statlig rapportering, KOSTRA-rapporter | L17: Bevares og avleveres til Byarkivet
A18: 10000 | B18: 200 | D18: F | E18: A | F18: Funksjon | G18: =A18+B18+C18 -> 10200 | H18: 23 | I18: A2 | J18: Organisere og administrere virksomheten | L18: Bevaring og kassasjon finnes på underliggende nivåer
A19: 10000 | B19: 200 | C19: 0 | D19: 0 | E19: A2 | F19: Underfunksjon | G19: 10200 | H19: 24 | I19: A2 - 00 | J19: Dokumentere generelt om organisering og administrasjon av virksomheten | K19: Her legges kun dokumenter som ikke naturlig hører hjemme i andre koder og som man vet at ikke har særlig dokumentasjonsverdi. Dersom man mener dokumentet har lengre dokumentasjonsverdi skal det legges på andre koder. | L19: Kasseres 5 år etter avslutning | M19: 041.3 Kontormøter, personalmøter
A20: 10000 | B20: 200 | C20: 1 | D20: 1 | E20: A2 | F20: Underfunksjon | G20: 10201 | H20: 25 | I20: A2 - 01 | J20: Etablere, delegere og endre intern ledelses- og styringsstruktur. | K20: Dokumentasjon av virksomhetens administrative organisering, inkl. organisasjonskart og beskrivelser av ansvarsområder og oppgaver, utredninger og evalueringer. Dokumentasjon av delegering av myndigheter og fullmakter. | L20: Bevares og avleveres til Byarkivet | M20: 031 Org.planer, 32 Organisasjonsutvikling, 033 Delegering av myndighet
A21: 10000 | B21: 100 | C21: 3 | D21: 3 | E21: A1 | F21: Underfunksjon | G21: =A21+B21+C21 -> 10103 | H21: 6 | I21: A2 - 02 | J21: Operativ ledelse av virksomheten | K21: Saksfremlegg og referater fra ledermøter. Dokumentasjon om ledelsens kommunikasjon til de ansatte i forskjellige kanaler. | L21: Bevares og avleveres til Byarkivet | M21: 041.4 Avdelingssjefsmøter
A22: 10000 | B22: 100 | C22: 7 | D22: 7 | E22: A1 | F22: Underfunksjon | G22: =A22+B22+C22 -> 10107 | H22: 10 | I22: A2 - 03 | J22: Gjennomføre internrevisjoner og internkontroll | K22: Forarbeider og ferdige interne revisjonsrapporter. Gjelder all type revisjon og internkontroll, herunder også internkontroll for arkiv og HMS. | L22: Bevares og avleveres til Byarkivet | M22: 126 Revisjon | N22: Kommuneloven kap 12
A23: 10000 | B23: 100 | C23: 8 | D23: 8 | E23: A1 | F23: Underfunksjon | G23: =A23+B23+C23 -> 10108 | H23: 11 | I23: A2 - 04 | J23: Bidra og følge opp eksterne revisjoner | K23: Tiltaksbrev fra revisjonsmyndighet, korrespondanse og oppfølging overfor revisjonsmyndighet. Revisjonsrapport. | L23: Bevares og avleveres til Byarkivet | M23: 126 Revisjon | N23: Kommuneloven kap 12
A24: 10000 | B24: 100 | C24: 5 | D24: 5 | E24: A1 | F24: Underfunksjon | G24: =A24+B24+C24 -> 10105 | H24: 8 | I24: A2 - 05 | J24: Følge opp kvalitetsavvik | K24: Avviksregistreringer vedrørende kvalitetsavvik og oppfølging av disse. Avvikshåndtering som gjelder HMS og mulig erstatningsplikt legges på A5-03 | L24: Kasseres 10 år etter avslutning
F25: Underfunksjon | I25: A2 - 06 | J25: Behandle rettslige klager og tvister | K25: Dokumentasjon om mekling i tvister, virksomhetens forarbeider og kommunikasjon i saker som oversendes kommuneadvokaten og ev. dokumentasjon av utvidet klagebehandling i anskaffelser, for eksempel KOFA-saker. Ikke rettslige klager/tvister legges på fagkoden og ikke her. | L25: Bevares og avleveres til Byarkivet | N25: Anskaffelsesloven
A26: 10000 | B26: 100 | C26: 17 | D26: 17 | E26: A1 | F26: Underfunksjon | G26: =A26+B26+C26+D26 -> 10134 | H26: 20 | I26: A2 - 07 | J26: Behandle, gi innspill og besvare høringer | K26: Her legges alt arbeid med høringer, kommunale høringer, bransjehøringer, statlige høringer uten sentralt mellomledd i kommunen, som virksomheten blir bedt om å delta i. Byrådsavdelingene samler og koordinerer svar som gjelder for kommunen som helhet i C, men virksomheten legger sine svar på A2-07 og ikke på C. Gjelder ikke uttalelser som er del av saksbehandling, for eksempel når en etat har som oppgave å uttale seg i byggesaker. | L26: Bevares og avleveres til Byarkivet
A27: 10000 | B27: 100 | C27: 18 | D27: 18 | E27: A1 | F27: Underfunksjon | G27: =A27+B27+C27+D27 -> 10136 | H27: 21 | I27: A2 - 08 | J27: Utarbeide statistikker | K27: Uthente statistikk fra fagsystemer, f.eks. IPLOS-rapportering, behandlingsfrister i Gerica o.l., beleggstatistikk. | L27: Bevares og avleveres til Byarkivet
A28: 10000 | B28: 200 | C28: 13 | D28: 13 | E28: A2 | F28: Underfunksjon | G28: =A28+B28+C28+D28 -> 10226 | H28: 37 | I28: A2 - 09 | J28: Gjennomføre prosjekt innen egenforvaltning | K28: Dokumentasjon i forbindelse med gjennomføring av forprosjekt og prosjekt. | L28: Bevares og avleveres til Byarkivet
A29: 10000 | B29: 200 | C29: 14 | D29: 14 | E29: A2 | F29: Underfunksjon | G29: 10228 | H29: 38 | I29: A2 - 10 | J29: Evaluere, avslutte og realisere gevinster fra prosjekter innen egenforvaltning | K29: Leveransedokument. Sluttrapport. Gevinstrapport | L29: Bevares og avleveres til Byarkivet
A30: 10000 | B30: 200 | C30: 15 | D30: 15 | E30: A2 | F30: Funksjon | G30: 10230 | H30: 39 | I30: A3 | J30: Virksomhetens arbeid med samfunnssikkerhet, beredskap og egenbeskyttelsestiltak
A31: 10000 | B31: 200 | C31: 16 | D31: 16 | E31: A2 | F31: Underfunksjon | G31: 10232 | H31: 40 | I31: A3 - 00 | J31: Dokumentere generelt om virksomhetens arbeid med samfunnssikkerhet, beredskap og egenbeskyttelsestiltak | K31: Her legges kun dokumenter som ikke naturlig hører hjemme i andre koder og som man vet ikke har særlig dokumentasjonsverdi. Dersom man mener dokumentet har lengre dokumentasjonsverdi skal det legges på andre koder. | L31: Kasseres 5 år etter avslutning
A32: 10000 | B32: 200 | C32: 17 | D32: 17 | E32: A2 | F32: Underfunksjon | G32: 10234 | H32: 41 | I32: A3 - 01 | J32: Gjennomføre beredskapsøvelser | K32: Dokumentasjon om gjennomføring av beredskapsøvelser | L32: Bevares og avleveres til Byarkivet
A33: 10000 | B33: 200 | C33: 18 | D33: 18 | E33: A2 | F33: Underfunksjon | G33: 10236 | H33: 42 | I33: A3 - 02 | J33: Gjennomføre objektsikringstiltak | K33: Dokumentasjon om lokale objektsikringstiltak | L33: Bevares og avleveres til Byarkivet
A34: 10000 | B34: 200 | C34: 19 | D34: 19 | E34: A2 | F34: Underfunksjon | G34: 10238 | H34: 43 | I34: A3 - 03 | J34: Håndtere krisehendelser | K34: Koden gjelder kun etatens egen håndtering og skal ikke forveksles med den overordnede håndteringen som ligger på C10 -6. | L34: Bevares og avleveres til Byarkivet
F35: Underfunksjon | I35: A3 - 04
F36: Funksjon | I36: A4 | J36: Utføre økonomitjenester | L36: Bevaring og kassasjon finnes på underliggende nivåer
F37: Underfunksjon | I37: A4 - 00 | J37: Dokumentere generelt om virksomhetens økonomifunksjon | K37: Her legges kun dokumenter som ikke naturlig hører hjemme i andre koder og som man vet at ikke har særlig dokumentasjonsverdi. Dersom man mener dokumentet har lengre dokumentasjonsverdi skal det legges på andre koder. | L37: Kasseres 5 år etter avslutning
F38: Underfunksjon | I38: A4 - 01 | J38: Administrere fakturabehandling | K38: Dokumentasjon av forholdet til sentral leverandør av fakturasystem, stedfortredermeldinger. | L38: Kasseres 10 år etter avslutning
A39: 10000 | B39: 100 | C39: 12 | D39: 12 | E39: A1 | F39: Underfunksjon | G39: =A39+B39+C39+D39 -> 10124 | H39: 15 | I39: A4 - 02 | J39: Administrere skatt og merverdiavgift | K39: MVA-erklæringer, eiendomsskatt. | L39: Bevares og avleveres til Byarkivet
F40: Underfunksjon | I40: A4 - 03 | J40: Administrere bank og forsikring | K40: Felles kredittkortdokumentasjon, avtaler med bank og forsikringsselskaper. | L40: Kasseres 10 år etter avslutning
A41: 10000 | B41: 300 | D41: F | E41: A | F41: Underfunksjon | G41: =A41+B41+C41 -> 10300 | H41: 44 | I41: A4 - 04 | J41: Administrere regnskapstjenester | K41: Dokumentasjon av forhold til sentral leverandør av regnskapstjenester. Dokumentasjon om administrasjon av virksomhetens interne regnskapstjeneste. | L41: Kasseres 10 år etter avslutning
A42: 10000 | B42: 300 | C42: 0 | D42: 0 | E42: A3 | F42: Underfunksjon | G42: 10300 | H42: 45 | I42: A4 - 05 | J42: Utarbeide budsjett og prognoser | K42: Dokumentasjon av utarbeidelsen av budsjett og prognoser | L42: Bevares og avleveres til Byarkivet
A43: 10000 | B43: 300 | C43: 1 | D43: 1 | E43: A3 | F43: Underfunksjon | G43: 10301 | H43: 46 | I43: A4 - 06 | J43: Utarbeide økonomirapporter | K43: Dokumentasjon av utarbeidelsen av periodiske økonomirapporter, kvartals- og tertialrapporter. | L43: Bevares og avleveres til Byarkivet
A44: 10000 | B44: 300 | C44: 2 | D44: 2 | E44: A3 | F44: Underfunksjon | G44: 10302 | H44: 47 | I44: A4 - 07 | J44: Utarbeide regnskap | K44: Dokumentasjon om utarbeidelsen av virksomhetens regnskap/årsregnskap | L44: Bevares og avleveres til Byarkivet
A45: 10000 | B45: 300 | C45: 3 | D45: 3 | E45: A3 | F45: Funksjon | G45: 10303 | H45: 48 | I45: A5 | J45: Ivareta virksomhetens ansvar for arbeidsmiljø, - tid og stillingsvern (HMS) | L45: Bevaring og kassasjon finnes på underliggende nivåer
A46: 10000 | B46: 300 | C46: 4 | D46: 4 | E46: A3 | F46: Underfunksjon | G46: 10304 | H46: 49 | I46: A5 - 00 | J46: Dokumentere generelt om virksomhetens HMS-funksjoner | K46: Her legges kun dokumenter som ikke naturlig hører hjemme i andre koder og som man vet at ikke har særlig dokumentasjonsverdi. Dersom man mener dokumentet har lengre dokumentasjonsverdi skal det legges på andre koder. | L46: Kasseres 5 år etter avslutning
A47: 10000 | B47: 300 | C47: 5 | D47: 5 | E47: A3 | F47: Underfunksjon | G47: 10305 | H47: 50 | I47: A5 - 01 | J47: Organisere og administrere utvalg innen HMS og medbestemmelse | K47: Innkallinger og protokoller iht F14, dok. 24 og dok.25 i Hovedavtalen for Arbeidsmiljøutvalg og Medbestemmelsesutvalg, møteinnkalling (agenda), saksdokumenter, møtereferat, protokoll, skjema for stemmeseddel, valgprotokoll, handlingsplan. Saksbehandlingen i disse utvalgene. Samarbeid med fagforeninger lokalt. | L47: Bevares og avleveres til Byarkivet | M47: 058 Samarbeid med arbeidsgiver- / arbeidstakerorganisasjoner | N47: Arbeidsmiljøloven § 7-2
A48: 10000 | B48: 300 | C48: 6 | D48: 6 | E48: A3 | F48: Underfunksjon | G48: 10306 | H48: 51 | I48: A5 - 02 | J48: Gjennomføre HMS-opplæring | K48: Dokumentasjon om virksomhetens opplæringsplaner for helse-, miljø- og sikkerhet, HMS-kurs og andre opplæringstiltak. | L48: Bevares og avleveres til Byarkivet | M48: 057 Opplæring | N48: Arbeidsmiljøloven kap 3
A49: 10000 | B49: 300 | C49: 7 | D49: 7 | E49: A3 | F49: Underfunksjon | G49: 10307 | H49: 52 | I49: A5 - 03 | J49: Registrere og følge opp hendelser og avvik knyttet til HMS | K49: Dokumentasjon av HMS-avvik og oppfølging av disse. Gjennomføring av HMS-runder. Gjennomføring av HMS-revisjoner. | L49: Bevares og avleveres til Byarkivet | N49: Arbeidsmiljøloven kap 5
A50: 10000 | B50: 300 | C50: 8 | D50: 8 | E50: A3 | F50: Underfunksjon | G50: 10308 | H50: 53 | I50: A5 - 04 | J50: Gjennomføre forebyggingstiltak innen HMS | K50: Bedriftshelsetjeneste, arbeidsmiljøundersøkelser, AKAN-arbeid. | L50: Bevares og avleveres til byarkivet | M50: 056 Arbeidsmiljø og velferd | N50: Arbeidsmiljøloven kap 3
A51: 10000 | B51: 300 | C51: 9 | D51: 9 | E51: A3 | F51: Underfunksjon | G51: 10309 | H51: 54 | I51: A5 - 05 | J51: Motta varsler av kritikkverdige forhold | K51: Dokumentasjon av mottatte varsler og innledende undersøkelser. Dersom varslet eskaleres skal det flyttes til kode A5-06. I A5-05 skal det kun ligge varsler som er mottatt men ikke enda undersøkt, eller varsler som er undersøkt og som det kan dokumenteres at er ubegrunnet eller uriktige. | L51: Kasseres 10 år etter avslutning
A52: 10000 | B52: 300 | C52: 10 | D52: 10 | E52: A3 | F52: Underfunksjon | G52: =A52+B52+C52+D52 -> 10320 | H52: 55 | I52: A5 - 06 | J52: Behandle varsler av kritikkverdige forhold | K52: Dokumentasjon om varsler fra arbeidstakere og arbeidsgiverens oppfølging av varslene, jf. Oslo kommunes varslingsordning. | L52: Bevares og avleveres til Byarkivet | M52: 217 Arbeidervern, arbeidstilsyn | N52: Arbeidsmiljøloven kap 2
A53: 10000 | B53: 300 | C53: 11 | D53: 11 | E53: A3 | F53: Underfunksjon | G53: 10322 | H53: 56 | I53: A5 - 07 | J53: Håndtere trusler og vold mot egne ansatte | K53: Dokumentasjon om trusler og vold mot egne ansatt og oppfølging av dette. | L53: Bevares og avleveres til Byarkivet | M53: 217 Arbeidervern, arbeidstilsyn
A54: 10000 | B54: 300 | C54: 12 | D54: 12 | E54: A3 | F54: Underfunksjon | G54: 10324 | H54: 57 | I54: A5 - 08 | J54: Håndtere konflikter mellom arbeidsgiver og arbeidstakerorganisasjoner | K54: Dokumentasjon om partenes syn på konflikten og arbeidsgiverens oppfølging av saken. Merk at konflikter mellom arbeidstakere eller arbeidstaker og arbeidsgiver legges på A6-08. | L54: Bevares og avleveres til Byarkivet | M54: 058 Samarbeid med arbeidsgiver- / arbeidstakerorganisasjoner | N54: Arbeidsmiljøloven kap 17
A55: 10000 | B55: 300 | C55: 13 | D55: 13 | E55: A3 | F55: Funksjon | G55: 10326 | H55: 58 | I55: A6 | J55: Rekruttere, tilsette, utvikle og følge opp ansatte | L55: Bevaring og kassasjon finnes på underliggende nivåer
A56: 10000 | B56: 300 | C56: 14 | D56: 14 | E56: A3 | F56: Underfunksjon | G56: 10328 | H56: 59 | I56: A6 - 00 | J56: Dokumentere generelt om rekruttering, tilsetting, utvikling og oppfølging av ansatte | K56: Her legges kun dokumenter som ikke naturlig hører hjemme i andre koder og som man vet at ikke har særlig dokumentasjonsverdi. Dersom man mener dokumentet har lengre dokumentasjonsverdi skal det legges på andre koder. | L56: Kasseres 5 år etter avslutning | M56: 50 Ansettelse, fratreden
A57: 10000 | B57: 300 | C57: 15 | D57: 15 | E57: A3 | F57: Underfunksjon | G57: 10330 | H57: 60 | I57: A6 - 01 | J57: Gjennomføre rekruttering og tilsetting | K57: Kunngjøring. Offentlig søkerliste og utvidet søkerliste. Innstillingsprotokoll fra tilsettingsrådet. Fast stilling, vikar, konstitusjon, midlertidige stillinger, praksisplasser, sivilarbeidere, eksternt lønnet personale, klage, anke i tilsettingssaker. Signert arbeidsavtale legges direkte på A6-07. | L57: Bevares og avleveres til Byarkivet | M57: 051 Ansettelse, fratreden | N57: Arbeidsmiljøloven kap 14
A58: 10000 | B58: 300 | C58: 16 | D58: 16 | E58: A3 | F58: Underfunksjon | G58: 10332 | H58: 61 | I58: A6 - 02 | J58: Behandle søknader på stillinger | K58: Alle stillingssøknader, samt tilbuds- og avslagsbrev legges her. Søknad, CV med vedlegg fra antatt søker skal flyttes til A6-07 sammen med tilbudsbrevet. Resten kasseres. Åpne søknader kan også legges her. | L58: Kasseres 1 år etter avslutning | M58: 051 Ansettelse, fratreden
A59: 10000 | B59: 300 | C59: 17 | D59: 17 | E59: A3 | F59: Underfunksjon | G59: 10334 | H59: 62 | I59: A6- 03 | J59: Gjennomføre opplæring, kurs og kompetansetiltak | K59: Opplæringsplaner og -tiltak, kurs, konferanser, seminarer, studiereiser, stipend, utveksling, dokumentasjon av lokal behandling søknader til OU-fondet. | L59: Bevares og avleveres til Byarkivet | M59: 057 Opplæring | N59: Arbeidsmiljøloven
A60: 10000 | B60: 300 | C60: 18 | D60: 18 | E60: A3 | F60: Underfunksjon | G60: 10336 | H60: 63 | I60: A6 - 04 | J60: Planlegge og gjennomføre velferdstiltak for ansatte | K60: Dokumentasjon av velferdstiltak, aktivitetsplan, velferdsbudsjett, avtaler, møtereferat, korrespondanse. | L60: Kasseres 10 år etter avslutning | M60: 056 Arbeidsmiljø og velferd
A61: 10000 | B61: 300 | C61: 19 | D61: 19 | E61: A3 | F61: Underfunksjon | G61: 10338 | H61: 64 | I61: A6 - 05 | J61: Følge opp ansvar som lærlingbedrift | K61: Planer og avtaler, godkjenninger. | L61: Bevares og avleveres til Byarkivet | M61: 058 Samarbeid med organisasjoner | N61: Forskrift til opplæringslova kap 11
A62: 10000 | B62: 400 | D62: F | E62: A | F62: Underfunksjon | G62: =A62+B62+C62 -> 10400 | H62: 65 | I62: A6 - 06 | J62: Gjennomføre lokale lønnsforhandlinger | K62: Innkallinger og protokoller fra lokale lønnsforhandlinger. | L62: Bevares og avleveres til Byarkivet | M62: 052 Lønn, overenskomster, pensjon
A63: 10000 | B63: 400 | C63: 0 | D63: 0 | E63: A4 | F63: Underfunksjon | G63: 10400 | H63: 66 | I63: A6 - 07 | J63: Oppfølgning av den enkelte ansatte med betydning for lønns-, tjeneste- eller pensjonsforhold | K63: Det opprettes minimum én saksmappe pr. ansatt hvor følgende dokumentasjon skal finnes: søknad på stilling (overført fra ansettelsessaken), gjenpart av ansettelsesbrev (overført fra ansettelsessaken), attester for utdanning og arbeidspraksis (overført fra ansettelsessaken), undertegnet arbeidsavtale/taushetserklæring (kopi av undertegnet arbeidsavtale til ansettelsessaken), kompetansegivende kurs og opplæring med betydning for den ansattes lønns- og ansettelsesforhold, dokumenter vedrørende pensjonsforhold og lønnsplassering, dokumenter vedrørende oppfølging av sykemeldt dersom saken er av betydning for den ansattes langvarige tjenesteforhold og pensjonsforhold, attføringssaker, dokumentasjon på og oppfølging av yrkesskade, og/eller redusert arbeidstid dersom saken er av betydning for den ansattes langvarige tjenesteforhold og pensjonsforhold, særskilte avtaler i arbeidsforholdet, permisjoner med ansiennitetstap, ansiennitetsberegning, korrespondanse med den ansatte som berører arbeidsforholdet, oppsigelses- eller avskjedigelsesbrev, sluttattest eller bekreftelse på arbeidsforhold, omplassering, beordring, fortrinnsrett og overtallighet, dokumentasjon vedrørende ordensstraff dersom saken fører til rettslig prøving eller får konsekvenser for den ansattes tilsettingsforhold, saker om karantene. | L63: Bevares og avleveres til Byarkivet | M63: 05 Personalforvaltning | N63: Arbeidsmiljøloven
A64: 10000 | B64: 400 | C64: 2 | D64: 2 | E64: A4 | F64: Underfunksjon | G64: 10402 | H64: 68 | I64: A6 - 08 | J64: Annen oppfølging av den enkelte ansatte uten betydning for lønns-, tjeneste- eller pensjonsforhold | K64: Det opprettes minimum en saksmappe pr. ansatt hvor følgende dokumentasjon skal finnes: Dokumentasjon uten betydning for den enkeltes tjeneste-, lønns- og/eller pensjonsforhold. Herunder dokumentasjon på permisjoner som ikke fører til ansiennitetstap, ferier, tjenestereiser, reiseforskudd, egenmeldinger, sykemeldinger, skattekort, lønnsutbetaling, lønningskort, kopi av lønnslipper, lønns- og trekksoppgaver, timeliser, akkordsedler, stemplingskort, overtidslister, fraværslister, lønnstrekk til fagforening, bil-/telefongodtgjørelse, medlemslister til pensjonskassen, tildelte hederstegn, fullmakt om bruk av kredittkort. Nærmeste leder skal ha tilgang til denne mappa for å kunne legge inn medarbeidersamtaler, og annet rundt samtaler/avtaler/konflikter med den enkelte ansatte. Dersom noe av dette gir grunnlag for eskalering til f.eks. en disiplinærsak, må dokumentene overføres til rett kode. | L64: Kasseres 1 år etter avslutning | M64: 049 Annet vedr. personalforvaltning | N64: Arbeidsmiljøloven | O64: BK-vedtak: under forutsetning av at det er en samlesak som er åpen så lenge ansettelsesforholdet varer.
A65: 10000 | B65: 400 | C65: 3 | D65: 3 | E65: A4 | F65: Underfunksjon | G65: 10403 | H65: 69 | I65: A6 - 09 | J65: Håndtere disiplinærsaker og tjenestepåtaler | K65: Det opprettes en mappe per forekomst hvor følgende dokumentasjon skal finnes: Saker om tjenestepåtale, disiplinærsaker. Krever spesiell skjerming og tilgangskontroll. | L65: Bevares og avleveres til byarkivet
A66: 10000 | B66: 400 | C66: 4 | D66: 4 | E66: A4 | F66: Underfunksjon | G66: 10404 | H66: 70 | I66: A6 - 10 | J66: Håndtere og følge opp AKAN-saker | K66: Det opprettes en mappe per forekomst hvor følgende dokumentasjon skal finnes: Advarsler, individuelle avtaler og gjennomføringsopplegg rundt AKAN-saker. Dersom arbeidstaker avbryter opplegget eller opplegget ikke fører fram innen to år etter siste advarsel avsluttes AKAN-saken og behandles videre som en oppsigelses- eller avskjedssak. | L66: Kasseres 3 år etter avslutning
A67: 10000 | B67: 300 | C67: 2 | D67: 2 | E67: A3 | F67: Funksjon | G67: 10302 | H67: 47 | I67: A7 | J67: Forvalte bygg, eiendom og materiell til egen bruk | L67: Bevaring og kassasjon finnes på underliggende nivåer
F68: Underfunksjon | I68: A7 - 00 | J68: Dokumentere generelt om virksomhetens bygg-, eiendoms- og materialforvaltning | K68: Her legges kun dokumenter som ikke naturlig hører hjemme i andre koder og som man vet at ikke har særlig dokumentasjonsverdi. Dersom man mener dokumentet har lengre dokumentasjonsverdi skal det legges på andre koder. | L68: Kasseres 5 år etter avslutning
A69: 10000 | B69: 400 | C69: 5 | D69: 5 | E69: A4 | F69: Underfunksjon | G69: 10405 | H69: 71 | I69: A7 - 01 | J69: Medvirke i byggeprosjekter | K69: Dokumentasjon om brukermøter, brukerbehov. | L69: Bevares og avleveres til Byarkivet | M69: 171 Eiendomserverv | N69: Avhendingslova
A70: 10000 | B70: 400 | C70: 6 | D70: 6 | E70: A4 | F70: Underfunksjon | G70: 10406 | H70: 72 | I70: A7 - 02 | J70: Innleie av eiendommer, bygninger og lokaler | K70: Dokumentasjon om inngåelse, oppfølging og avvikling av innleieforhold. | L70: Kasseres 10 år etter avslutning | M70: 175 Utleie, innleie, disponering | N70: Husleieloven
A71: 10000 | B71: 400 | C71: 7 | D71: 7 | E71: A4 | F71: Underfunksjon | G71: 10407 | H71: 73 | I71: A7 - 03 | J71: Drift og vedlikehold av bygninger, anlegg og lokaler - leietakerforpliktelser | K71: Avviks- og behovsinnmelding, dokumentasjon om gjennomføring av rutinemessige drifts- og vedlikeholdstiltak. | L71: Kasseres 3 år etter avslutning | M71: 176 Vedlikehold og drift | N71: Byggteknisk forskrift kap 4
A72: 10000 | B72: 400 | C72: 8 | D72: 8 | E72: A4 | F72: Underfunksjon | G72: 10408 | H72: 74 | I72: A7 - 04 | J72: Forvalte, vedlikeholde og drifte andre eiendeler og materiell | K72: Dokumentasjon av annen materialforvaltning, for eksempel biler, maskiner, møbler | L72: Kasseres 3 år etter avslutning
A73: 10000 | B73: 400 | C73: 9 | D73: 9 | E73: A4 | F73: Underfunksjon | G73: 10409 | H73: 75 | I73: A8 | J73: Forvalte, sikre og formidle virksomhetens informasjon | L73: Bevaring og kassasjon finnes på underliggende nivåer
A74: 10000 | B74: 400 | C74: 10 | D74: 10 | E74: A4 | F74: Underfunksjon | G74: =A74+B74+C74+D74 -> 10420 | H74: 76 | I74: A8 - 00 | J74: Dokumentere generelt om forvaltning, sikring og formidling av virksomhetens informasjon | K74: Her legges kun dokumenter som ikke naturlig hører hjemme i andre koder og som man vet at ikke har særlig dokumentasjonsverdi. Dersom man mener dokumentet har lengre dokumentasjonsverdi skal det legges på andre koder. | L74: Kasseres 5 år etter avslutning
A75: 10000 | B75: 400 | C75: 11 | D75: 11 | E75: A4 | F75: Underfunksjon | G75: 10422 | H75: 77 | I75: A8 - 01 | J75: Gjennomføre informasjonssikkerhetstiltak | K75: Dokumentasjon om lokale informasjonssikkerhetstiltak overfor brukere, leverandører. Korrespondanse med sentral fagautoritet på informasjonssikkerhetsområdet. ROS-analyser og sikkerhetsvurderinger av den enkelte applikasjon legges under A8-06 for virksomhetssystemer og under D6-05 for fellessystemer eller systemer som driftes fra UKE. | L75: Bevares og avleveres til Byarkivet
A76: 10000 | B76: 400 | C76: 12 | D76: 12 | E76: A4 | F76: Underfunksjon | G76: 10424 | H76: 78 | I76: A8 - 02 | J76: Gjennomføre medie- og kommunikasjonsarbeid | K76: Håndtering av mediehenvendelser, dokumentasjon av informasjonsarbeid og andre informasjonstiltak. | L76: Bevares og avleveres til Byarkivet
A77: 10000 | B77: 400 | C77: 13 | D77: 13 | E77: A4 | F77: Underfunksjon | G77: 10426 | H77: 79 | I77: A8 - 03 | J77: Forvalte arkivmateriale | K77: Dokumentasjon om Arkivverkets tilsyn. Overføring av arkiv til andre offentlige virksomheter eller private rettssubjekter. Behandling av saker om tap av arkivmateriale og uhjemlet kassasjon. | L77: Bevares og avleveres til Byarkivet
A78: 10000 | B78: 400 | C78: 14 | D78: 14 | E78: A4 | F78: Underfunksjon | G78: 10428 | H78: 80 | I78: A8 - 04 | J78: Drifte arkiv- og bibliotekfunksjonene | K78: Gjennomføring av arkivrutiner, opplæring og brukerstøtte. Dokumentasjon om gjennomføring av bibliotekrutiner, klassifisering og registrering av ny litteratur, anskaffelse av litteratur og tidsskrifter, abonnering, publikumsveiledning, inn- og utlån og utstillinger. | L78: Kasseres 10 år etter avslutning | M78: 043 Arkiv, dokumentasjon | N78: Arkivforskriften, Riksarkivarens forskrift
A79: 10000 | B79: 400 | C79: 15 | D79: 15 | E79: A4 | F79: Underfunksjon | G79: 10430 | H79: 81 | I79: A8 - 05 | J79: Behandle innsynsbegjæringer | K79: Innsynsbegjæringer, samt klager over avslag på innsynsbegjæringer og innsynskravet som var grunnlag for klagen. Forskerinnsyn. Begjæringer om innsyn i unntak for innsyn. | L79: Bevares og avleveres til Byarkivet | M79: 042.4 Offentlig innsyn, partsinnsyn | N79: Offentleglova
A80: 10000 | B80: 400 | C80: 16 | D80: 16 | E80: A4 | F80: Underfunksjon | G80: 10432 | H80: 82 | I80: A8 - 06 | J80: Forvalte IKT-systemer og -applikasjoner | K80: Dokumentasjon av applikasjonsforvaltningen i tilfeller hvor virksomheten selv er systemeier (feks. kontrakter/tjenesteavtaler/lisenskjøp). Dokumentasjon av leverandørforholdet med intern kommunal eller ekstern leverandør. Dokumentasjon av lokal forvaltning i tilfeller hvor det er et fellessystem. Dokumentasjon av etablering, endring og avvikling av tjenesten. Styringsdokumenter i form av for eksempel forvaltningsdokument, overordnede beskrivelser, tjenesteorganisering og leveransemodell, tjenestestrategi, -design, -innføring, -forbedring og avvikling, årshjul, notater, rapporter og særdokumenter som lisensregnskap o.l. | L80: Bevares og avleveres til Byarkivet | M80: 183 EDB-maskiner, -utstyr og programvare
A81: 10000 | B81: 400 | C81: 17 | D81: 17 | E81: A4 | F81: Underfunksjon | G81: 10434 | H81: 83 | I81: A8 - 07 | J81: Drifte og vedlikeholde IKT-systemer og -applikasjoner | K81: Dokumentasjon av virksomhetens oppfølging ifm oppgraderinger, brukerstøttehenvendelser | L81: Kasseres 10 år etter avslutning
A82: 10000 | B82: 400 | C82: 18 | D82: 18 | E82: A4 | F82: Funksjon | G82: 10436 | H82: 84 | I82: A9 | J82: Innkjøp av varer og tjenester i egenforvaltningen | L82: Bevaring og kassasjon finnes på underliggende nivåer
A83: 10000 | B83: 400 | C83: 19 | D83: 19 | E83: A4 | F83: Underfunksjon | G83: 10438 | H83: 85 | I83: A9 - 00 | J83: Dokumentere generelt om innkjøp av varer og tjenester i egenforvaltningen | K83: Her legges kun dokumenter som ikke naturlig hører hjemme i andre koder og som man vet at ikke har særlig dokumentasjonsverdi. Dersom man mener dokumentet har lengre dokumentasjonsverdi skal det legges på andre koder. | L83: Kasseres 5 år etter avslutning
A84: 10000 | B84: 500 | D84: F | E84: A | F84: Underfunksjon | G84: =A84+B84+C84 -> 10500 | H84: 86 | I84: A9 - 01 | J84: Planlegge enkeltanskaffelser av varer og tjenester knyttet til virksomhetens egenforvaltning | K84: Avklare behov. Lage konkurranse strategi. Forberede gjennomføring av konkurranse. Lage tildelingskriterier. Mandat for anskaffelse Behovskartlegging. Anskaffelsensformål. Markedsundersøkelse. Alternativvurdering. Beslutning for anskaffelse. Konkurransestrategi. Risikokartlegging. Konkurransegrunnlag. Gjennomføringsplan. Ansvarsmatrise. Kravspesifikasjon. Tildelingskriterier. Kvalifikasjonskrav. Kontraktsvilkår. Konkurranseregler. | L84: Bevares og avleveres til Byarkivet
A85: 10000 | B85: 500 | C85: 0 | D85: 0 | E85: A5 | F85: Underfunksjon | G85: 10500 | H85: 87 | I85: A9 - 02 | J85: Gjennomføre enkeltanskaffelser av varer og tjenester knyttet til virksomhetens egenforvaltning | K85: Dokumentasjon rundt anskaffelser av varer og tjenester til virksomhetens egenforvaltning. Konkurransegrunnlag. Innstilling. Åpningsprotokoll. Utlysningstekst. Spørsmål fra interessenter. Svar på spørsmål fra avtaleansvarlig. Tilleggsinfo som oppdragsgiver legger på Doffin. Referat fra tilbyderkonferanse. Tilbud. Gjennomføringsplan for hver anskaffelse. Oppfølging av leveranser knyttet til anskaffelse. Habilitetsvurdering for gjennomføring av konkurranse. Veiledende kunngjøringer. Spørsmål og svar til konkurransegrunnlaget. Anskaffelsesprotokoll legges i A8 - 4 og kontrakten skal legges i A8 - 5. Anskaffelser som gjøres som ledd i en fagoppgave skal legges på den aktuelle fagkoden. | L85: Kasseres 10 år etter avslutning
A86: 10000 | B86: 500 | C86: 2 | D86: 2 | E86: A5 | F86: Underfunksjon | G86: 10502 | H86: 89 | I86: A9 - 03 | J86: Gjennomføre minikonkurranser, avrop på konsern- eller rammeavtale | K86: Konkurransegrunnlag. Innstilling. Anskaffelsesprotokoll. Koden gjelder avrop på konsernovergripende rammeavtaler. Avrop som gjøres som ledd i en fagoppgave skal legges på den aktuelle fagkoden. | L86: Kasseres 5 år etter avslutning | M86: *Legges på saksområde | N86: Lov om offentlige anskaffelser
A87: 10000 | B87: 500 | C87: 3 | D87: 3 | E87: A5 | F87: Underfunksjon | G87: 10503 | H87: 90 | I87: A9 - 04 | J87: Inngå avtaler etter enkeltanskaffelser av varer og tjenester knyttet til virksomhetens egenforvaltning | K87: Anskaffelsesprotokoll. Vinnertilbud. Signerte avtaler/kontrakter, signerte endringsordre. | L87: Bevares og avleveres til Byarkivet
A88: 10000 | B88: 600 | C88: 1 | D88: 1 | E88: A6 | F88: Underfunksjon | G88: 10601 | H88: 109 | I88: A9 - 05 | J88: Følge opp kontrakter på administrative tjenester og varer | K88: Kontrakter. Avviksbehandling. Reklamasjoner. Garantier. Omlevering. Dagbøter. Erstatning. Tilbakebetaling. Kontrollaktiviteter. | L88: Bevares og avleveres til Byarkivet | M88: 032.5 Konkurranseutsetting | N88: Lov om offentlige anskaffelser

Sheet B
A1: Nivå 1 | B1: Nivå 2 | C1: Nivå 3 | D1: Nummer | E1: Overliggende | F1: Funksjon | H1: Løpenummer | I1: Kode | J1: Tittel | K1: Her legges | L1: BK-vurdering | M1: Aktuelt lovverk | N1: Kommentar
A2: 20000 | D2: H | F2: Hovedfunksjon | G2: 20000 | H2: 1 | I2: B | J2: Styre Oslo kommune politisk | K2: Kommunens politiske liv og organisering
A3: 20000 | B3: 100 | D3: F | E3: B | F3: Funksjon | G3: 20100 | H3: 2 | I3: B1 | J3: Behandle politiske saker i bystyret, byrådet og bydelene
A4: 20000 | B4: 100 | C4: 0 | D4: 0 | E4: B1 | F4: Underfunksjon | G4: 20100 | H4: 3 | I4: B1 - 00 | J4: Dokumentere generelt om behandling av politiske saker i bystyret, byrådet og bydelene | K4: Her legges kun dokumenter som ikke naturlig hører hjemme i andre koder og som man vet at ikke har særlig dokumentasjonsverdi. Dersom man mener dokumentet har lengre dokumentasjonsverdi skal det legges på andre koder. | L4: Kasseres 5 år etter avslutning
A5: 20000 | B5: 100 | C5: 1 | D5: 1 | E5: B1 | F5: Underfunksjon | G5: 20101 | H5: 4 | I5: B1 - 01 | J5: Planlegge og gjennomføre politisk behandling | K5: Saksfremlegg, vedlegg, protokoll og vedtak pr. sak samles i en mappe med meningsbærende tittel. Alt vedrørende politisk behandling skal legges her, det skal ikke legges på fagklasser. | L5: Bevares og avleveres til Byarkivet
A6: 20000 | B6: 100 | C6: 2 | D6: 2 | E6: B1 | F6: Underfunksjon | G6: 20102 | H6: 5 | I6: B1 - 02 | J6: Planlegge og gjennomføre høringer | K6: Saksfremlegg, vedlegg, protokoll og vedtak pr. sak samles i en mappe med meningsbærende tittel. | L6: Bevares og avleveres til Byarkivet | N6: Bestilling av mat ligger i eget system, og kan kasseres.
A7: 20000 | B7: 100 | C7: 3 | D7: 3 | E7: B1 | F7: Underfunksjon | G7: 20103 | H7: 6 | I7: B1 - 03 | J7: Behandle innbyggerforslag, private forslag, interpellasjoner og deputasjoner | K7: Saksfremlegg, vedlegg, protokoll og vedtak pr. sak samles i en mappe med meningsbærende tittel. Andre innbyggerforslag som ikke behandles politisk legges på fagklasse. | L7: Bevares og avleveres til Byarkivet
A8: 20000 | B8: 100 | C8: 5 | D8: 5 | E8: B1 | F8: Underfunksjon | G8: 20105 | H8: 8 | I8: B1 - 05 | J8: Behandle kabinettspørsmål og mistillitsforslag | K8: Saksfremlegg, vedlegg, protokoll og vedtak pr. sak samles i en mappe med meningsbærende tittel. | L8: Bevares og avleveres til Byarkivet
A9: 20000 | B9: 200 | D9: F | E9: B | F9: Funksjon | G9: 20200 | H9: 23 | I9: B2 | J9: Gjennomføre valg og folkeavstemninger
A10: 20000 | B10: 200 | C10: 0 | D10: 0 | E10: B2 | F10: Underfunksjon | G10: 20200 | H10: 24 | I10: B2 - 00 | J10: Dokumentere generelt om gjennomføring av valg og folkeavstemninger | K10: Her legges kun dokumenter som ikke naturlig hører hjemme i andre koder og som man vet at ikke har særlig dokumentasjonsverdi. Dersom man mener dokumentet har lengre dokumentasjonsverdi skal det legges på andre koder. | L10: Kasseres 5 år etter avslutning
A11: 20000 | B11: 200 | C11: 1 | D11: 1 | E11: B2 | F11: Underfunksjon | G11: 20201 | H11: 25 | I11: B2 - 01 | J11: Planlegge og gjennomføre valg | K11: Planer for organisering og gjennomføring av valg, stemmekretser og valglokaler, forhåndsstemmelokaler. Valgmedarbeidere, opplæring. Valgmanntall og listeforslag. Valgoppgjør og klagebehandling. | L11: Bevares og avleveres til Byarkivet | N11: Kunngjøringer av mantall, lister er en del av prosessen men disse legges på nett og bevares ikke.
A12: 20000 | B12: 200 | C12: 4 | D12: 4 | E12: B2 | F12: Underfunksjon | G12: 20204 | H12: 28 | I12: B2 - 04 | J12: Planlegge og gjennomføre folkeavstemning | K12: Saker om forslag til folkeavstemninger og vedtak samt fremstilling, innstilling og vedtak fra valgstyret og Bystyret. Saker om hvordan folkeavstemninger skal gjennomføres. | L12: Bevares og avleveres til Byarkivet
A13: 20000 | B13: 300 | D13: F | E13: B | F13: Funksjon | G13: 20300 | H13: 44 | I13: B3 | J13: Administrere politiske organer
A14: 20000 | B14: 300 | C14: 0 | D14: 0 | E14: B3 | F14: Underfunksjon | G14: 20300 | H14: 45 | I14: B3 - 00 | J14: Dokumentere generelt om administrasjon av politiske organer | K14: Her legges kun dokumenter som ikke naturlig hører hjemme i andre koder og som man vet ikke har særlig dokumentasjonsverdi. Dersom man mener dokumentet har lengre dokumentasjonsverdi skal det legges på andre koder. | L14: Kasseres 5 år etter avslutning
A15: 20000 | B15: 300 | C15: 1 | D15: 1 | E15: B3 | F15: Underfunksjon | G15: 20301 | H15: 46 | I15: B3 - 01 | J15: Administrere bystyret | K15: Organets sammensetning og mandat. | L15: Bevares og avleveres til Byarkivet
A16: 20000 | B16: 300 | C16: 2 | D16: 2 | E16: B3 | F16: Underfunksjon | G16: 20302 | H16: 47 | I16: B3 - 02 | J16: Administrere byrådet | K16: Organets sammensetning og mandat. | L16: Bevares og avleveres til Byarkivet
A17: 20000 | B17: 300 | C17: 3 | D17: 3 | E17: B3 | F17: Underfunksjon | G17: 20303 | H17: 48 | I17: B3 - 03 | J17: Administrere bydelsutvalgene | K17: Organets sammensetning og mandat. | L17: Bevares og avleveres til Byarkivet
A18: 20000 | B18: 300 | C18: 4 | D18: 4 | E18: B3 | F18: Underfunksjon | G18: 20304 | H18: 49 | I18: B3 - 04 | J18: Administrere utvalg, styrer, råd og nemder | K18: Organets sammensetning og mandat. | L18: Bevares og avleveres til Byarkivet
I19: B3 - 05 | J19: Forvalte økonomiregisteret | K19: Korrespondanse med folkevalgte knyttet til registeret. Skjema for registering av opplysninger til registeret. | L19: Bevares og avleveres til Byarkivet
I20: B3 - 06 | J20: Utøve økonomisk bistand til partigruppene | K20: Korrespondanse om rett til økonomisk bistand og størrelse. | L20: Bevares og avleveres til Byarkivet
A21: 20000 | B21: 400 | D21: F | E21: B | F21: Funksjon | G21: 20400 | H21: 65 | I21: B4 | J21: Administrere folkevalgte og medlemmer av byrådet
A22: 20000 | B22: 400 | C22: 0 | D22: 0 | E22: B4 | F22: Underfunksjon | G22: 20400 | H22: 66 | I22: B4 - 00 | J22: Dokumentere generelt om administrasjon av folkevalgte og medlemmer av byrådet | K22: Her legges kun dokumenter som ikke naturlig hører hjemme i andre koder og som man vet at ikke har særlig dokumentasjonsverdi. Dersom man mener dokumentet har lengre dokumentasjonsverdi skal det legges på andre koder. | L22: Kasseres 5 år etter avslutning
A23: 20000 | B23: 400 | C23: 1 | D23: 1 | E23: B4 | F23: Underfunksjon | G23: 20401 | H23: 67 | I23: B4 - 01 | J23: Yte godtgjørsler og ytelser til folkevalgte og byråder | K23: Tapt arbeidsfortjeneste, barnepass. | L23: Kasseres 5 år etter avslutning | N23: Kasseres iht. regnskapslova
A24: 20000 | B24: 400 | C24: 2 | D24: 2 | E24: B4 | F24: Underfunksjon | G24: 20402 | H24: 68 | I24: B4 - 02 | J24: Habilitetsvurdere folkevalgte og byråder | K24: Anmodning, vurdering og vedtak samles i en sak. Register over politikeres økonomiske interesser. | L24: Bevares og avleveres til Byarkivet
A25: 20000 | B25: 400 | C25: 3 | D25: 3 | E25: B4 | F25: Underfunksjon | G25: 20403 | H25: 69 | I25: B4 - 03 | J25: Ivareta folkevalgtes arbeidsvilkår | L25: Ikke vurdert
A26: 20000 | B26: 400 | C26: 4 | D26: 4 | E26: B4 | F26: Underfunksjon | G26: 20404 | H26: 70 | I26: B4 - 04 | J26: Følge opp den enkelte folkevalgte | K26: Lønnsspørsmål. Taushetserklæringer. Liste over økonomiske interesser. Biografier. Nekrologer. Disiplinære forhold. Dokumentasjon på gjennomført opplæring og studiereiser. Pensjonsordning. | L26: Ikke vurdert | M26: Valgloven
A27: 20000 | B27: 500 | D27: F | E27: B | F27: Funksjon | G27: 20500 | H27: 86 | I27: B5 | J27: Administrere og gjennomføre representasjon | M27: Valgloven
A28: 20000 | B28: 500 | C28: 0 | D28: 0 | E28: B5 | F28: Underfunksjon | G28: 20500 | H28: 87 | I28: B5 - 00 | J28: Dokumentere generelt om administrasjon og gjennomføring av representasjon | K28: Her legges kun dokumenter som ikke naturlig hører hjemme i andre koder og som man vet at ikke har særlig dokumentasjonsverdi. Dersom man mener dokumentet har lengre dokumentasjonsverdi skal det legges på andre koder. | L28: Kasseres 5 år etter avslutning | M28: Valgloven
A29: 20000 | B29: 500 | C29: 1 | D29: 1 | E29: B5 | F29: Underfunksjon | G29: 20501 | H29: 88 | I29: B5 - 01 | J29: Planlegge, gjennomføre og evaluere kommunens sentrale representasjon | K29: F.eks ordførerens representasjon. Forespørsel om foredrag, deltakelse i arrangementer, åpninger osv. | L29: Kasseres 10 år etter avslutning | M29: Kommunelova § 39b
A30: 20000 | B30: 500 | C30: 2 | D30: 2 | E30: B5 | F30: Underfunksjon | G30: 20502 | H30: 89 | I30: B5 - 02 | J30: Administrere vertskaps- og representasjonsoppdrag | K30: Statsbesøk, spesielle hendelser, kongelig tilstedeværelse, delegasjonsbesøk, kontakt med diplomatkorps. | L30: Bevares og avleveres til Byarkivet | M30: Kommunelova § 39b
A31: 20000 | B31: 500 | C31: 3 | D31: 3 | E31: B5 | F31: Underfunksjon | G31: 20503 | H31: 90 | I31: B5 - 03 | J31: Behandle søknad om bruk av Oslo kommunes representasjonslokaler | K31: Dokumentasjon av søknadsbehandling for bruk av f.eks. Rådhusets festlokaler, Heftye-villaen osv. | L31: Bevares og avleveres til Byarkivet | M31: Kommunelova § 39b
A32: 20000 | B32: 500 | C32: 4 | D32: 4 | E32: B5 | F32: Underfunksjon | G32: 20504 | H32: 91 | I32: B5 - 04 | J32: Behandle søknad om flagging, banneroppheng og profilflagg | K32: Dokumentasjon av søknadsbehandling og vedtak. | L32: Bevares og avleveres til Byarkivet
A33: 20000 | B33: 500 | C33: 7 | D33: 7 | E33: B5 | F33: Underfunksjon | G33: 20507 | H33: 94 | I33: B5 - 07 | J33: Administrere og utlevere representasjonsgaver | K33: Dokumentasjon om f.eks. Oslo kommunes juletrær til utlandet, gaver til kongehuset. | L33: Bevares og avleveres til Byarkivet
A34: 20000 | B34: 500 | C34: 8 | D34: 8 | E34: B5 | F34: Underfunksjon | G34: 20508 | H34: 95 | I34: B5 - 08 | J34: Dele ut priser | K34: Dokumentasjon om utdeling av St. Hallvard-medaljen, Oslo kommunes idrettspriser, Oslo kommunes kultur- og kunstnerpriser og Oslo bys arkitekturpris. | L34: Bevares og avleveres til Byarkivet
A35: 20000 | B35: 500 | C35: 9 | D35: 9 | E35: B5 | F35: Underfunksjon | G35: 20509 | H35: 96 | I35: B5 - 09 | J35: Feire Oslo kommunes 40- og 50 årsjubilanter | L35: Bevares og avleveres til Byarkivet
A36: 20000 | B36: 600 | D36: F | E36: B | F36: Funksjon | G36: 20600 | H36: 107 | I36: B6 | J36: Rapportere og evaluere gjennomføring av politisk utøvelse
A37: 20000 | B37: 600 | C37: 0 | D37: 0 | E37: B6 | F37: Underfunksjon | G37: 20600 | H37: 108 | I37: B6 - 00 | J37: Dokumentere generelt om rapportering og evaluering av politisk utøvelse | K37: Her legges kun dokumenter som ikke naturlig hører hjemme i andre koder og som man vet at ikke har særlig dokumentasjonsverdi. Dersom man mener dokumentet har lengre dokumentasjonsverdi skal det legges på andre koder. | L37: Kasseres 5 år etter avslutning
A38: 20000 | B38: 600 | C38: 1 | D38: 1 | E38: B6 | F38: Underfunksjon | G38: 20601 | H38: 109 | I38: B6 - 01 | J38: Planlegge og styre evaluering av politisk utøvelse | L38: Bevares og avleveres til Byarkivet
A39: 20000 | B39: 600 | C39: 2 | D39: 2 | E39: B6 | F39: Underfunksjon | G39: 20602 | H39: 110 | I39: B6 - 02 | J39: Rapportere og evaluere valg | L39: Bevares og avleveres til Byarkivet
I40: B6 - 03 | J40: Rapportere og evaluere folkeavstemming | L40: Bevares og avleveres til Byarkivet
A41: 20000 | B41: 600 | C41: 3 | D41: 3 | E41: B6 | F41: Underfunksjon | G41: 20603 | H41: 111 | I41: B6 - 04 | J41: Rapportere og evaluere politisk utøvelse | L41: Bevares og avleveres til Byarkivet
A42: 20000 | B42: 600 | C42: 4 | D42: 4 | E42: B6 | F42: Underfunksjon | G42: 20604 | H42: 112 | I42: B6 - 05 | J42: Rapportere og evaluere oppfølging av politiske aktører | L42: Bevares og avleveres til Byarkivet
A43: 20000 | B43: 700 | D43: F | E43: B | F43: Funksjon | G43: =A43+B43+C43 -> 20700 | H43: 128 | I43: B7
A44: 20000 | B44: 700 | C44: 0 | D44: 0 | E44: B7 | F44: Underfunksjon | G44: 20700 | H44: 129 | I44: B7 - 00
A45: 20000 | B45: 700 | C45: 1 | D45: 1 | E45: B7 | F45: Underfunksjon | G45: 20701 | H45: 130 | I45: B7 - 01
A46: 20000 | B46: 700 | C46: 2 | D46: 2 | E46: B7 | F46: Underfunksjon | G46: 20702 | H46: 131 | I46: B7 - 02
A47: 20000 | B47: 700 | C47: 3 | D47: 3 | E47: B7 | F47: Underfunksjon | G47: 20703 | H47: 132 | I47: B7 - 03
A48: 20000 | B48: 700 | C48: 4 | D48: 4 | E48: B7 | F48: Underfunksjon | G48: 20704 | H48: 133 | I48: B7 - 04
A49: 20000 | B49: 700 | C49: 5 | D49: 5 | E49: B7 | F49: Underfunksjon | G49: 20705 | H49: 134 | I49: B7 - 05
A50: 20000 | B50: 700 | C50: 6 | D50: 6 | E50: B7 | F50: Underfunksjon | G50: 20706 | H50: 135 | I50: B7 - 06
A51: 20000 | B51: 700 | C51: 7 | D51: 7 | E51: B7 | F51: Underfunksjon | G51: 20707 | H51: 136 | I51: B7 - 07
A52: 20000 | B52: 700 | C52: 8 | D52: 8 | E52: B7 | F52: Underfunksjon | G52: 20708 | H52: 137 | I52: B7 - 08
A53: 20000 | B53: 700 | C53: 9 | D53: 9 | E53: B7 | F53: Underfunksjon | G53: 20709 | H53: 138 | I53: B7 - 09
A54: 20000 | B54: 700 | C54: 10 | D54: 10 | E54: B7 | F54: Underfunksjon | G54: =A54+B54+C54+D54 -> 20720 | H54: 139 | I54: =E54&" - "&D54 -> B7 - 10
A55: 20000 | B55: 700 | C55: 11 | D55: 11 | E55: B7 | F55: Underfunksjon | G55: 20722 | H55: 140 | I55: B7 - 11
A56: 20000 | B56: 700 | C56: 12 | D56: 12 | E56: B7 | F56: Underfunksjon | G56: 20724 | H56: 141 | I56: B7 - 12
A57: 20000 | B57: 700 | C57: 13 | D57: 13 | E57: B7 | F57: Underfunksjon | G57: 20726 | H57: 142 | I57: B7 - 13
A58: 20000 | B58: 700 | C58: 14 | D58: 14 | E58: B7 | F58: Underfunksjon | G58: 20728 | H58: 143 | I58: B7 - 14
A59: 20000 | B59: 700 | C59: 15 | D59: 15 | E59: B7 | F59: Underfunksjon | G59: 20730 | H59: 144 | I59: B7 - 15
A60: 20000 | B60: 700 | C60: 16 | D60: 16 | E60: B7 | F60: Underfunksjon | G60: 20732 | H60: 145 | I60: B7 - 16
A61: 20000 | B61: 700 | C61: 17 | D61: 17 | E61: B7 | F61: Underfunksjon | G61: 20734 | H61: 146 | I61: B7 - 17
A62: 20000 | B62: 700 | C62: 18 | D62: 18 | E62: B7 | F62: Underfunksjon | G62: 20736 | H62: 147 | I62: B7 - 18
A63: 20000 | B63: 700 | C63: 19 | D63: 19 | E63: B7 | F63: Underfunksjon | G63: 20738 | H63: 148 | I63: B7 - 19
A64: 20000 | B64: 800 | D64: F | E64: B | F64: Funksjon | G64: =A64+B64+C64 -> 20800 | H64: 149 | I64: B8
A65: 20000 | B65: 800 | C65: 0 | D65: 0 | E65: B8 | F65: Underfunksjon | G65: 20800 | H65: 150 | I65: B8 - 00
A66: 20000 | B66: 800 | C66: 1 | D66: 1 | E66: B8 | F66: Underfunksjon | G66: 20801 | H66: 151 | I66: B8 - 01
A67: 20000 | B67: 800 | C67: 2 | D67: 2 | E67: B8 | F67: Underfunksjon | G67: 20802 | H67: 152 | I67: B8 - 02
A68: 20000 | B68: 800 | C68: 3 | D68: 3 | E68: B8 | F68: Underfunksjon | G68: 20803 | H68: 153 | I68: B8 - 03
A69: 20000 | B69: 800 | C69: 4 | D69: 4 | E69: B8 | F69: Underfunksjon | G69: 20804 | H69: 154 | I69: B8 - 04
A70: 20000 | B70: 800 | C70: 5 | D70: 5 | E70: B8 | F70: Underfunksjon | G70: 20805 | H70: 155 | I70: B8 - 05
A71: 20000 | B71: 800 | C71: 6 | D71: 6 | E71: B8 | F71: Underfunksjon | G71: 20806 | H71: 156 | I71: B8 - 06
A72: 20000 | B72: 800 | C72: 7 | D72: 7 | E72: B8 | F72: Underfunksjon | G72: 20807 | H72: 157 | I72: B8 - 07
A73: 20000 | B73: 800 | C73: 8 | D73: 8 | E73: B8 | F73: Underfunksjon | G73: 20808 | H73: 158 | I73: B8 - 08
A74: 20000 | B74: 800 | C74: 9 | D74: 9 | E74: B8 | F74: Underfunksjon | G74: 20809 | H74: 159 | I74: B8 - 09
A75: 20000 | B75: 800 | C75: 10 | D75: 10 | E75: B8 | F75: Underfunksjon | G75: =A75+B75+C75+D75 -> 20820 | H75: 160 | I75: =E75&" - "&D75 -> B8 - 10
A76: 20000 | B76: 800 | C76: 11 | D76: 11 | E76: B8 | F76: Underfunksjon | G76: 20822 | H76: 161 | I76: B8 - 11
A77: 20000 | B77: 800 | C77: 12 | D77: 12 | E77: B8 | F77: Underfunksjon | G77: 20824 | H77: 162 | I77: B8 - 12
A78: 20000 | B78: 800 | C78: 13 | D78: 13 | E78: B8 | F78: Underfunksjon | G78: 20826 | H78: 163 | I78: B8 - 13
A79: 20000 | B79: 800 | C79: 14 | D79: 14 | E79: B8 | F79: Underfunksjon | G79: 20828 | H79: 164 | I79: B8 - 14
A80: 20000 | B80: 800 | C80: 15 | D80: 15 | E80: B8 | F80: Underfunksjon | G80: 20830 | H80: 165 | I80: B8 - 15
A81: 20000 | B81: 800 | C81: 16 | D81: 16 | E81: B8 | F81: Underfunksjon | G81: 20832 | H81: 166 | I81: B8 - 16
A82: 20000 | B82: 800 | C82: 17 | D82: 17 | E82: B8 | F82: Underfunksjon | G82: 20834 | H82: 167 | I82: B8 - 17
A83: 20000 | B83: 800 | C83: 18 | D83: 18 | E83: B8 | F83: Underfunksjon | G83: 20836 | H83: 168 | I83: B8 - 18
A84: 20000 | B84: 800 | C84: 19 | D84: 19 | E84: B8 | F84: Underfunksjon | G84: 20838 | H84: 169 | I84: B8 - 19
A85: 20000 | B85: 900 | D85: F | E85: B | F85: Funksjon | G85: =A85+B85+C85 -> 20900 | H85: 170 | I85: B9
A86: 20000 | B86: 900 | C86: 0 | D86: 0 | E86: B9 | F86: Underfunksjon | G86: 20900 | H86: 171 | I86: B9 - 00
A87: 20000 | B87: 900 | C87: 1 | D87: 1 | E87: B9 | F87: Underfunksjon | G87: 20901 | H87: 172 | I87: B9 - 01
A88: 20000 | B88: 900 | C88: 2 | D88: 2 | E88: B9 | F88: Underfunksjon | G88: 20902 | H88: 173 | I88: B9 - 02
A89: 20000 | B89: 900 | C89: 3 | D89: 3 | E89: B9 | F89: Underfunksjon | G89: 20903 | H89: 174 | I89: B9 - 03
A90: 20000 | B90: 900 | C90: 4 | D90: 4 | E90: B9 | F90: Underfunksjon | G90: 20904 | H90: 175 | I90: B9 - 04
A91: 20000 | B91: 900 | C91: 5 | D91: 5 | E91: B9 | F91: Underfunksjon | G91: 20905 | H91: 176 | I91: B9 - 05
A92: 20000 | B92: 900 | C92: 6 | D92: 6 | E92: B9 | F92: Underfunksjon | G92: 20906 | H92: 177 | I92: B9 - 06
A93: 20000 | B93: 900 | C93: 7 | D93: 7 | E93: B9 | F93: Underfunksjon | G93: 20907 | H93: 178 | I93: B9 - 07
A94: 20000 | B94: 900 | C94: 8 | D94: 8 | E94: B9 | F94: Underfunksjon | G94: 20908 | H94: 179 | I94: B9 - 08
A95: 20000 | B95: 900 | C95: 9 | D95: 9 | E95: B9 | F95: Underfunksjon | G95: 20909 | H95: 180 | I95: B9 - 09
A96: 20000 | B96: 900 | C96: 10 | D96: 10 | E96: B9 | F96: Underfunksjon | G96: =A96+B96+C96+D96 -> 20920 | H96: 181 | I96: =E96&" - "&D96 -> B9 - 10
A97: 20000 | B97: 900 | C97: 11 | D97: 11 | E97: B9 | F97: Underfunksjon | G97: 20922 | H97: 182 | I97: B9 - 11
A98: 20000 | B98: 900 | C98: 12 | D98: 12 | E98: B9 | F98: Underfunksjon | G98: 20924 | H98: 183 | I98: B9 - 12
A99: 20000 | B99: 900 | C99: 13 | D99: 13 | E99: B9 | F99: Underfunksjon | G99: 20926 | H99: 184 | I99: B9 - 13
A100: 20000 | B100: 900 | C100: 14 | D100: 14 | E100: B9 | F100: Underfunksjon | G100: 20928 | H100: 185 | I100: B9 - 14
A101: 20000 | B101: 900 | C101: 15 | D101: 15 | E101: B9 | F101: Underfunksjon | G101: 20930 | H101: 186 | I101: B9 - 15
A102: 20000 | B102: 900 | C102: 16 | D102: 16 | E102: B9 | F102: Underfunksjon | G102: 20932 | H102: 187 | I102: B9 - 16
A103: 20000 | B103: 900 | C103: 17 | D103: 17 | E103: B9 | F103: Underfunksjon | G103: 20934 | H103: 188 | I103: B9 - 17
A104: 20000 | B104: 900 | C104: 18 | D104: 18 | E104: B9 | F104: Underfunksjon | G104: 20936 | H104: 189 | I104: B9 - 18
A105: 20000 | B105: 900 | C105: 19 | D105: 19 | E105: B9 | F105: Underfunksjon | G105: 20938 | H105: 190 | I105: B9 - 19
A106: 20000 | B106: 1000 | D106: F | E106: B | F106: Funksjon | G106: =A106+B106+C106 -> 21000 | H106: 191 | I106: B10
A107: 20000 | B107: 1000 | C107: 0 | D107: 0 | E107: B10 | F107: Underfunksjon | G107: 21000 | H107: 192 | I107: B10 - 00
A108: 20000 | B108: 1000 | C108: 1 | D108: 1 | E108: B10 | F108: Underfunksjon | G108: 21001 | H108: 193 | I108: B10 - 01
A109: 20000 | B109: 1000 | C109: 2 | D109: 2 | E109: B10 | F109: Underfunksjon | G109: 21002 | H109: 194 | I109: B10 - 02
A110: 20000 | B110: 1000 | C110: 3 | D110: 3 | E110: B10 | F110: Underfunksjon | G110: 21003 | H110: 195 | I110: B10 - 03
A111: 20000 | B111: 1000 | C111: 4 | D111: 4 | E111: B10 | F111: Underfunksjon | G111: 21004 | H111: 196 | I111: B10 - 04
A112: 20000 | B112: 1000 | C112: 5 | D112: 5 | E112: B10 | F112: Underfunksjon | G112: 21005 | H112: 197 | I112: B10 - 05
A113: 20000 | B113: 1000 | C113: 6 | D113: 6 | E113: B10 | F113: Underfunksjon | G113: 21006 | H113: 198 | I113: B10 - 06
A114: 20000 | B114: 1000 | C114: 7 | D114: 7 | E114: B10 | F114: Underfunksjon | G114: 21007 | H114: 199 | I114: B10 - 07
A115: 20000 | B115: 1000 | C115: 8 | D115: 8 | E115: B10 | F115: Underfunksjon | G115: 21008 | H115: 200 | I115: B10 - 08
A116: 20000 | B116: 1000 | C116: 9 | D116: 9 | E116: B10 | F116: Underfunksjon | G116: 21009 | H116: 201 | I116: B10 - 09
A117: 20000 | B117: 1000 | C117: 10 | D117: 10 | E117: B10 | F117: Underfunksjon | G117: =A117+B117+C117+D117 -> 21020 | H117: 202 | I117: =E117&" - "&D117 -> B10 - 10
A118: 20000 | B118: 1000 | C118: 11 | D118: 11 | E118: B10 | F118: Underfunksjon | G118: 21022 | H118: 203 | I118: B10 - 11
A119: 20000 | B119: 1000 | C119: 12 | D119: 12 | E119: B10 | F119: Underfunksjon | G119: 21024 | H119: 204 | I119: B10 - 12
A120: 20000 | B120: 1000 | C120: 13 | D120: 13 | E120: B10 | F120: Underfunksjon | G120: 21026 | H120: 205 | I120: B10 - 13
A121: 20000 | B121: 1000 | C121: 14 | D121: 14 | E121: B10 | F121: Underfunksjon | G121: 21028 | H121: 206 | I121: B10 - 14
A122: 20000 | B122: 1000 | C122: 15 | D122: 15 | E122: B10 | F122: Underfunksjon | G122: 21030 | H122: 207 | I122: B10 - 15
A123: 20000 | B123: 1000 | C123: 16 | D123: 16 | E123: B10 | F123: Underfunksjon | G123: 21032 | H123: 208 | I123: B10 - 16
A124: 20000 | B124: 1000 | C124: 17 | D124: 17 | E124: B10 | F124: Underfunksjon | G124: 21034 | H124: 209 | I124: B10 - 17
A125: 20000 | B125: 1000 | C125: 18 | D125: 18 | E125: B10 | F125: Underfunksjon | G125: 21036 | H125: 210 | I125: B10 - 18
A126: 20000 | B126: 1000 | C126: 19 | D126: 19 | E126: B10 | F126: Underfunksjon | G126: 21038 | H126: 211 | I126: B10 - 19
A127: 20000 | B127: 1100 | D127: F | E127: B | F127: Funksjon | G127: =A127+B127+C127 -> 21100 | H127: 212 | I127: B11
A128: 20000 | B128: 1100 | C128: 0 | D128: 0 | E128: B11 | F128: Underfunksjon | G128: 21100 | H128: 213 | I128: =E128&" - "&D128 -> B11 - 0
A129: 20000 | B129: 1100 | C129: 1 | D129: 1 | E129: B11 | F129: Underfunksjon | G129: 21101 | H129: 214 | I129: B11 - 1
A130: 20000 | B130: 1100 | C130: 2 | D130: 2 | E130: B11 | F130: Underfunksjon | G130: 21102 | H130: 215 | I130: B11 - 2
A131: 20000 | B131: 1100 | C131: 3 | D131: 3 | E131: B11 | F131: Underfunksjon | G131: 21103 | H131: 216 | I131: B11 - 3
A132: 20000 | B132: 1100 | C132: 4 | D132: 4 | E132: B11 | F132: Underfunksjon | G132: 21104 | H132: 217 | I132: B11 - 4
A133: 20000 | B133: 1100 | C133: 5 | D133: 5 | E133: B11 | F133: Underfunksjon | G133: 21105 | H133: 218 | I133: B11 - 5
A134: 20000 | B134: 1100 | C134: 6 | D134: 6 | E134: B11 | F134: Underfunksjon | G134: 21106 | H134: 219 | I134: B11 - 6
A135: 20000 | B135: 1100 | C135: 7 | D135: 7 | E135: B11 | F135: Underfunksjon | G135: 21107 | H135: 220 | I135: B11 - 7
A136: 20000 | B136: 1100 | C136: 8 | D136: 8 | E136: B11 | F136: Underfunksjon | G136: 21108 | H136: 221 | I136: B11 - 8
A137: 20000 | B137: 1100 | C137: 9 | D137: 9 | E137: B11 | F137: Underfunksjon | G137: 21109 | H137: 222 | I137: B11 - 9
A138: 20000 | B138: 1100 | C138: 10 | D138: 10 | E138: B11 | F138: Underfunksjon | G138: =A138+B138+C138+D138 -> 21120 | H138: 223 | I138: B11 - 10
A139: 20000 | B139: 1100 | C139: 11 | D139: 11 | E139: B11 | F139: Underfunksjon | G139: 21122 | H139: 224 | I139: B11 - 11
A140: 20000 | B140: 1100 | C140: 12 | D140: 12 | E140: B11 | F140: Underfunksjon | G140: 21124 | H140: 225 | I140: B11 - 12
A141: 20000 | B141: 1100 | C141: 13 | D141: 13 | E141: B11 | F141: Underfunksjon | G141: 21126 | H141: 226 | I141: B11 - 13
A142: 20000 | B142: 1100 | C142: 14 | D142: 14 | E142: B11 | F142: Underfunksjon | G142: 21128 | H142: 227 | I142: B11 - 14
A143: 20000 | B143: 1100 | C143: 15 | D143: 15 | E143: B11 | F143: Underfunksjon | G143: 21130 | H143: 228 | I143: B11 - 15
A144: 20000 | B144: 1100 | C144: 16 | D144: 16 | E144: B11 | F144: Underfunksjon | G144: 21132 | H144: 229 | I144: B11 - 16
A145: 20000 | B145: 1100 | C145: 17 | D145: 17 | E145: B11 | F145: Underfunksjon | G145: 21134 | H145: 230 | I145: B11 - 17
A146: 20000 | B146: 1100 | C146: 18 | D146: 18 | E146: B11 | F146: Underfunksjon | G146: 21136 | H146: 231 | I146: B11 - 18
A147: 20000 | B147: 1100 | C147: 19 | D147: 19 | E147: B11 | F147: Underfunksjon | G147: 21138 | H147: 232 | I147: B11 - 19
A148: 20000 | B148: 1200 | D148: F | E148: B | F148: Funksjon | G148: =A148+B148+C148 -> 21200 | H148: 233 | I148: B12
A149: 20000 | B149: 1200 | C149: 0 | D149: 0 | E149: B12 | F149: Underfunksjon | G149: 21200 | H149: 234 | I149: =E149&" - "&D149 -> B12 - 0
A150: 20000 | B150: 1200 | C150: 1 | D150: 1 | E150: B12 | F150: Underfunksjon | G150: 21201 | H150: 235 | I150: B12 - 1
A151: 20000 | B151: 1200 | C151: 2 | D151: 2 | E151: B12 | F151: Underfunksjon | G151: 21202 | H151: 236 | I151: B12 - 2
A152: 20000 | B152: 1200 | C152: 3 | D152: 3 | E152: B12 | F152: Underfunksjon | G152: 21203 | H152: 237 | I152: B12 - 3
A153: 20000 | B153: 1200 | C153: 4 | D153: 4 | E153: B12 | F153: Underfunksjon | G153: 21204 | H153: 238 | I153: B12 - 4
A154: 20000 | B154: 1200 | C154: 5 | D154: 5 | E154: B12 | F154: Underfunksjon | G154: 21205 | H154: 239 | I154: B12 - 5
A155: 20000 | B155: 1200 | C155: 6 | D155: 6 | E155: B12 | F155: Underfunksjon | G155: 21206 | H155: 240 | I155: B12 - 6
A156: 20000 | B156: 1200 | C156: 7 | D156: 7 | E156: B12 | F156: Underfunksjon | G156: 21207 | H156: 241 | I156: B12 - 7
A157: 20000 | B157: 1200 | C157: 8 | D157: 8 | E157: B12 | F157: Underfunksjon | G157: 21208 | H157: 242 | I157: B12 - 8
A158: 20000 | B158: 1200 | C158: 9 | D158: 9 | E158: B12 | F158: Underfunksjon | G158: 21209 | H158: 243 | I158: B12 - 9
A159: 20000 | B159: 1200 | C159: 10 | D159: 10 | E159: B12 | F159: Underfunksjon | G159: =A159+B159+C159+D159 -> 21220 | H159: 244 | I159: B12 - 10
A160: 20000 | B160: 1200 | C160: 11 | D160: 11 | E160: B12 | F160: Underfunksjon | G160: 21222 | H160: 245 | I160: B12 - 11
A161: 20000 | B161: 1200 | C161: 12 | D161: 12 | E161: B12 | F161: Underfunksjon | G161: 21224 | H161: 246 | I161: B12 - 12
A162: 20000 | B162: 1200 | C162: 13 | D162: 13 | E162: B12 | F162: Underfunksjon | G162: 21226 | H162: 247 | I162: B12 - 13
A163: 20000 | B163: 1200 | C163: 14 | D163: 14 | E163: B12 | F163: Underfunksjon | G163: 21228 | H163: 248 | I163: B12 - 14
A164: 20000 | B164: 1200 | C164: 15 | D164: 15 | E164: B12 | F164: Underfunksjon | G164: 21230 | H164: 249 | I164: B12 - 15
A165: 20000 | B165: 1200 | C165: 16 | D165: 16 | E165: B12 | F165: Underfunksjon | G165: 21232 | H165: 250 | I165: B12 - 16
A166: 20000 | B166: 1200 | C166: 17 | D166: 17 | E166: B12 | F166: Underfunksjon | G166: 21234 | H166: 251 | I166: B12 - 17
A167: 20000 | B167: 1200 | C167: 18 | D167: 18 | E167: B12 | F167: Underfunksjon | G167: 21236 | H167: 252 | I167: B12 - 18
A168: 20000 | B168: 1200 | C168: 19 | D168: 19 | E168: B12 | F168: Underfunksjon | G168: 21238 | H168: 253 | I168: B12 - 19
A169: 20000 | B169: 1300 | D169: F | E169: B | F169: Funksjon | G169: =A169+B169+C169 -> 21300 | H169: 254 | I169: B13
A170: 20000 | B170: 1300 | C170: 0 | D170: 0 | E170: B13 | F170: Underfunksjon | G170: 21300 | H170: 255 | I170: =E170&" - "&D170 -> B13 - 0
A171: 20000 | B171: 1300 | C171: 1 | D171: 1 | E171: B13 | F171: Underfunksjon | G171: 21301 | H171: 256 | I171: B13 - 1
A172: 20000 | B172: 1300 | C172: 2 | D172: 2 | E172: B13 | F172: Underfunksjon | G172: 21302 | H172: 257 | I172: B13 - 2
A173: 20000 | B173: 1300 | C173: 3 | D173: 3 | E173: B13 | F173: Underfunksjon | G173: 21303 | H173: 258 | I173: B13 - 3
A174: 20000 | B174: 1300 | C174: 4 | D174: 4 | E174: B13 | F174: Underfunksjon | G174: 21304 | H174: 259 | I174: B13 - 4
A175: 20000 | B175: 1300 | C175: 5 | D175: 5 | E175: B13 | F175: Underfunksjon | G175: 21305 | H175: 260 | I175: B13 - 5
A176: 20000 | B176: 1300 | C176: 6 | D176: 6 | E176: B13 | F176: Underfunksjon | G176: 21306 | H176: 261 | I176: B13 - 6
A177: 20000 | B177: 1300 | C177: 7 | D177: 7 | E177: B13 | F177: Underfunksjon | G177: 21307 | H177: 262 | I177: B13 - 7
A178: 20000 | B178: 1300 | C178: 8 | D178: 8 | E178: B13 | F178: Underfunksjon | G178: 21308 | H178: 263 | I178: B13 - 8
A179: 20000 | B179: 1300 | C179: 9 | D179: 9 | E179: B13 | F179: Underfunksjon | G179: 21309 | H179: 264 | I179: B13 - 9
A180: 20000 | B180: 1300 | C180: 10 | D180: 10 | E180: B13 | F180: Underfunksjon | G180: =A180+B180+C180+D180 -> 21320 | H180: 265 | I180: B13 - 10
A181: 20000 | B181: 1300 | C181: 11 | D181: 11 | E181: B13 | F181: Underfunksjon | G181: 21322 | H181: 266 | I181: B13 - 11
A182: 20000 | B182: 1300 | C182: 12 | D182: 12 | E182: B13 | F182: Underfunksjon | G182: 21324 | H182: 267 | I182: B13 - 12
A183: 20000 | B183: 1300 | C183: 13 | D183: 13 | E183: B13 | F183: Underfunksjon | G183: 21326 | H183: 268 | I183: B13 - 13
A184: 20000 | B184: 1300 | C184: 14 | D184: 14 | E184: B13 | F184: Underfunksjon | G184: 21328 | H184: 269 | I184: B13 - 14
A185: 20000 | B185: 1300 | C185: 15 | D185: 15 | E185: B13 | F185: Underfunksjon | G185: 21330 | H185: 270 | I185: B13 - 15
A186: 20000 | B186: 1300 | C186: 16 | D186: 16 | E186: B13 | F186: Underfunksjon | G186: 21332 | H186: 271 | I186: B13 - 16
A187: 20000 | B187: 1300 | C187: 17 | D187: 17 | E187: B13 | F187: Underfunksjon | G187: 21334 | H187: 272 | I187: B13 - 17
A188: 20000 | B188: 1300 | C188: 18 | D188: 18 | E188: B13 | F188: Underfunksjon | G188: 21336 | H188: 273 | I188: B13 - 18
A189: 20000 | B189: 1300 | C189: 19 | D189: 19 | E189: B13 | F189: Underfunksjon | G189: 21338 | H189: 274 | I189: B13 - 19
A190: 20000 | B190: 1400 | D190: F | E190: B | F190: Funksjon | G190: =A190+B190+C190 -> 21400 | H190: 275 | I190: B14
A191: 20000 | B191: 1400 | C191: 0 | D191: 0 | E191: B14 | F191: Underfunksjon | G191: 21400 | H191: 276 | I191: =E191&" - "&D191 -> B14 - 0
A192: 20000 | B192: 1400 | C192: 1 | D192: 1 | E192: B14 | F192: Underfunksjon | G192: 21401 | H192: 277 | I192: B14 - 1
A193: 20000 | B193: 1400 | C193: 2 | D193: 2 | E193: B14 | F193: Underfunksjon | G193: 21402 | H193: 278 | I193: B14 - 2
A194: 20000 | B194: 1400 | C194: 3 | D194: 3 | E194: B14 | F194: Underfunksjon | G194: 21403 | H194: 279 | I194: B14 - 3
A195: 20000 | B195: 1400 | C195: 4 | D195: 4 | E195: B14 | F195: Underfunksjon | G195: 21404 | H195: 280 | I195: B14 - 4
A196: 20000 | B196: 1400 | C196: 5 | D196: 5 | E196: B14 | F196: Underfunksjon | G196: 21405 | H196: 281 | I196: B14 - 5
A197: 20000 | B197: 1400 | C197: 6 | D197: 6 | E197: B14 | F197: Underfunksjon | G197: 21406 | H197: 282 | I197: B14 - 6
A198: 20000 | B198: 1400 | C198: 7 | D198: 7 | E198: B14 | F198: Underfunksjon | G198: 21407 | H198: 283 | I198: B14 - 7
A199: 20000 | B199: 1400 | C199: 8 | D199: 8 | E199: B14 | F199: Underfunksjon | G199: 21408 | H199: 284 | I199: B14 - 8
A200: 20000 | B200: 1400 | C200: 9 | D200: 9 | E200: B14 | F200: Underfunksjon | G200: 21409 | H200: 285 | I200: B14 - 9
... 136 more rows

Sheet C
A1: Nivå 1 | B1: Nivå 2 | C1: Nivå 3 | D1: Nummer | E1: Overliggende | F1: Funksjon | H1: Løpenummer | I1: Kode | J1: Tittel | K1: Her legges | L1: BK-vurdering | M1: Tidligere arkivnøkkel | N1: Aktuelt lovverk | O1: Kommentar
A2: 30000 | D2: H | F2: Hovedfunksjon | G2: =A2+B2+C2 -> 30000 | H2: 1 | I2: C | J2: Styre og lede Oslo kommune | K2: «Virksomhetsstyring» som gjelder hele Oslo kommune | L2: Bevaring og kassasjon finnes på underliggende nivåer
A3: 30000 | B3: 100 | D3: F | E3: C | F3: Funksjon | G3: 30100 | H3: 2 | I3: C1 | J3: Utarbeide strategier for Oslo Kommune
A4: 30000 | B4: 100 | C4: 0 | D4: 0 | E4: C1 | F4: Underfunksjon | G4: 30100 | H4: 3 | I4: C1 - 00 | J4: Dokumentere generelt om utarbeide strategi for Oslo Kommune | K4: Her legges kun dokumenter som ikke naturlig hører hjemme i andre koder og som man vet at ikke har særlig dokumentasjonsverdi. Dersom man mener dokumentet har lengre dokumentasjonsverdi skal det legges på andre koder. | L4: Kasseres 5 år etter avslutning
A5: 30000 | B5: 100 | C5: 1 | D5: 1 | E5: C1 | F5: Underfunksjon | G5: 30101 | H5: 4 | I5: C1 - 01 | J5: Utarbeide kommuneplan | K5: Kommuneplanen, forarbeid, koordinering, planprogram, eksterne høringsuttalelser | L5: Bevares og avleveres Byarkivet | M5: 112 Kommuneplan | N5: Kapittel 11. Kommuneplan i plan- og bygningsloven
A6: 30000 | B6: 100 | C6: 2 | D6: 2 | E6: C1 | F6: Underfunksjon | G6: 30102 | H6: 5 | I6: C1 - 02 | J6: Planlegge statsningsområder | L6: Bevares og avleveres Byarkivet
A7: 30000 | B7: 100 | C7: 3 | D7: 3 | E7: C1 | F7: Underfunksjon | G7: 30103 | H7: 6 | I7: C1 - 03 | J7: Implementere og følge opp kommunale strategier | K7: For eksempel koordinering og oppfølging av klima- og energistrategi, koordinering og oppfølging av sikkerhets- og beredskapsarbeid, koordinering og oppfølging av arbeid med risiko og internkontroll. Brukes i oppfølgingsarbeid av særskilt strategisk arbeid | L7: Bevares og avleveres Byarkivet
A8: 30000 | B8: 100 | C8: 4 | D8: 4 | E8: C1 | F8: Underfunksjon | G8: 30104 | H8: 7 | I8: C1 - 04
A9: 30000 | B9: 100 | C9: 5 | D9: 5 | E9: C1 | F9: Underfunksjon | G9: 30105 | H9: 8 | I9: C1 - 05
A10: 30000 | B10: 100 | C10: 6 | D10: 6 | E10: C1 | F10: Underfunksjon | G10: 30106 | H10: 9 | I10: C1 - 06
A11: 30000 | B11: 100 | C11: 7 | D11: 7 | E11: C1 | F11: Underfunksjon | G11: 30107 | H11: 10 | I11: C1 - 07
A12: 30000 | B12: 100 | C12: 8 | D12: 8 | E12: C1 | F12: Underfunksjon | G12: 30108 | H12: 11 | I12: C1 - 08
A13: 30000 | B13: 100 | C13: 9 | D13: 9 | E13: C1 | F13: Underfunksjon | G13: 30109 | H13: 12 | I13: C1 - 09
A14: 30000 | B14: 100 | C14: 10 | D14: 10 | E14: C1 | F14: Underfunksjon | G14: =A14+B14+C14+D14 -> 30120 | H14: 13 | I14: =E14&" - "&D14 -> C1 - 10
A15: 30000 | B15: 100 | C15: 11 | D15: 11 | E15: C1 | F15: Underfunksjon | G15: 30122 | H15: 14 | I15: C1 - 11
A16: 30000 | B16: 100 | C16: 12 | D16: 12 | E16: C1 | F16: Underfunksjon | G16: 30124 | H16: 15 | I16: C1 - 12
A17: 30000 | B17: 100 | C17: 13 | D17: 13 | E17: C1 | F17: Underfunksjon | G17: 30126 | H17: 16 | I17: C1 - 13
A18: 30000 | B18: 100 | C18: 14 | D18: 14 | E18: C1 | F18: Underfunksjon | G18: 30128 | H18: 17 | I18: C1 - 14
A19: 30000 | B19: 100 | C19: 15 | D19: 15 | E19: C1 | F19: Underfunksjon | G19: 30130 | H19: 18 | I19: C1 - 15
A20: 30000 | B20: 100 | C20: 16 | D20: 16 | E20: C1 | F20: Underfunksjon | G20: 30132 | H20: 19 | I20: C1 - 16
A21: 30000 | B21: 100 | C21: 17 | D21: 17 | E21: C1 | F21: Underfunksjon | G21: 30134 | H21: 20 | I21: C1 - 17
A22: 30000 | B22: 100 | C22: 18 | D22: 18 | E22: C1 | F22: Underfunksjon | G22: 30136 | H22: 21 | I22: C1 - 18
A23: 30000 | B23: 100 | C23: 19 | D23: 19 | E23: C1 | F23: Underfunksjon | G23: 30138 | H23: 22 | I23: C1 - 19
A24: 30000 | B24: 200 | D24: F | E24: C | F24: Funksjon | G24: =A24+B24+C24 -> 30200 | H24: 23 | I24: C2 | J24: Utarbeide styrende dokumenter i Oslo kommune
A25: 30000 | B25: 200 | C25: 0 | D25: 0 | E25: C2 | F25: Underfunksjon | G25: 30200 | H25: 24 | I25: C2 - 00 | J25: Dokumentere generelt om utarbeidelse av styrende dokumenter i Oslo kommune | K25: Her legges kun dokumenter som ikke naturlig hører hjemme i andre koder og som man vet at ikke har særlig dokumentasjonsverdi. Dersom man mener dokumentet har lengre dokumentasjonsverdi skal det legges på andre koder. | L25: Kasseres 5 år etter avslutning
A26: 30000 | B26: 200 | C26: 1 | D26: 1 | E26: C2 | F26: Underfunksjon | G26: 30201 | H26: 25 | I26: C2 - 01 | J26: Utarbeide styrende dokumenter som krever politisk behandling | K26: Mandat for utarbeidelse av instruksen, koordinering, dokumentasjon av høring, forarbeid til forslag til politisk behandling, forslag til delegasjonsvedtak. | L26: Bevares og avleveres Byarkivet | M26: På generelt under hvert saksområde
A27: 30000 | B27: 200 | C27: 2 | D27: 2 | E27: C2 | F27: Underfunksjon | G27: 30202 | H27: 26 | I27: C2 - 02 | J27: Utarbeide styrende dokumenter som ikke krever politisk behandling | K27: Mandat for utviklingen, koordinering av forarbeid, referat fra møter, dokumentasjon av høring, styrende dokumenter. Herunder også dok 24, dok 25, tariff-forhandlinger, overordnet kommunikasjonsstrategi, instruks for informasjonssikkerhet etc. | L27: Bevares og avleveres Byarkivet | M27: På generelt under hvert saksområde
A28: 30000 | B28: 200 | C28: 3 | D28: 3 | E28: C2 | F28: Underfunksjon | G28: 30203 | H28: 27 | I28: C2 - 03
A29: 30000 | B29: 200 | C29: 4 | D29: 4 | E29: C2 | F29: Underfunksjon | G29: 30204 | H29: 28 | I29: C2 - 04
A30: 30000 | B30: 200 | C30: 5 | D30: 5 | E30: C2 | F30: Underfunksjon | G30: 30205 | H30: 29 | I30: C2 - 05
A31: 30000 | B31: 200 | C31: 6 | D31: 6 | E31: C2 | F31: Underfunksjon | G31: 30206 | H31: 30 | I31: C2 - 06
A32: 30000 | B32: 200 | C32: 7 | D32: 7 | E32: C2 | F32: Underfunksjon | G32: 30207 | H32: 31 | I32: C2 - 07
A33: 30000 | B33: 200 | C33: 8 | D33: 8 | E33: C2 | F33: Underfunksjon | G33: 30208 | H33: 32 | I33: C2 - 08
A34: 30000 | B34: 200 | C34: 9 | D34: 9 | E34: C2 | F34: Underfunksjon | G34: 30209 | H34: 33 | I34: C2 - 09
A35: 30000 | B35: 200 | C35: 10 | D35: 10 | E35: C2 | F35: Underfunksjon | G35: =A35+B35+C35+D35 -> 30220 | H35: 34 | I35: =E35&" - "&D35 -> C2 - 10
A36: 30000 | B36: 200 | C36: 11 | D36: 11 | E36: C2 | F36: Underfunksjon | G36: 30222 | H36: 35 | I36: C2 - 11
A37: 30000 | B37: 200 | C37: 12 | D37: 12 | E37: C2 | F37: Underfunksjon | G37: 30224 | H37: 36 | I37: C2 - 12
A38: 30000 | B38: 200 | C38: 13 | D38: 13 | E38: C2 | F38: Underfunksjon | G38: 30226 | H38: 37 | I38: C2 - 13
A39: 30000 | B39: 200 | C39: 14 | D39: 14 | E39: C2 | F39: Underfunksjon | G39: 30228 | H39: 38 | I39: C2 - 14
A40: 30000 | B40: 200 | C40: 15 | D40: 15 | E40: C2 | F40: Underfunksjon | G40: 30230 | H40: 39 | I40: C2 - 15
A41: 30000 | B41: 200 | C41: 16 | D41: 16 | E41: C2 | F41: Underfunksjon | G41: 30232 | H41: 40 | I41: C2 - 16
A42: 30000 | B42: 200 | C42: 17 | D42: 17 | E42: C2 | F42: Underfunksjon | G42: 30234 | H42: 41 | I42: C2 - 17
A43: 30000 | B43: 200 | C43: 18 | D43: 18 | E43: C2 | F43: Underfunksjon | G43: 30236 | H43: 42 | I43: C2 - 18
A44: 30000 | B44: 200 | C44: 19 | D44: 19 | E44: C2 | F44: Underfunksjon | G44: 30238 | H44: 43 | I44: C2 - 19
A45: 30000 | B45: 300 | D45: F | E45: C | F45: Funksjon | G45: =A45+B45+C45 -> 30300 | H45: 44 | I45: C3 | J45: Styre og følge opp bydeler og etater
A46: 30000 | B46: 300 | C46: 0 | D46: 0 | E46: C3 | F46: Underfunksjon | G46: 30300 | H46: 45 | I46: C3 - 00 | J46: Dokumentere generelt om styring av underliggende virksomheter | K46: Her legges kun dokumenter som ikke naturlig hører hjemme i andre koder og som man vet at ikke har særlig dokumentasjonsverdi. Dersom man mener dokumentet har lengre dokumentasjonsverdi skal det legges på andre koder. | L46: Kasseres 5 år etter avslutning | N46: Instruks for virksomhetsstyring (byrådssak 1070/15)
A47: 30000 | B47: 300 | C47: 1 | D47: 1 | E47: C3 | F47: Underfunksjon | G47: 30301 | H47: 46 | I47: C3 - 01 | J47: Utarbeide tildelingsbrev | K47: Forarbeider, dialog med virksomhet, tildelingsbrev | L47: Bevares og avleveres Byarkivet | N47: Instruks for virksomhetsstyring (byrådssak 1070/15)
A48: 30000 | B48: 300 | C48: 2 | D48: 2 | E48: C3 | F48: Underfunksjon | G48: 30302 | H48: 47 | I48: C3 - 02 | J48: Virksomhetsstyring av underliggende virksomheter og etater | K48: Dokumentasjon av styringsdialog, etatsstyringsmøter, annen oppfølging iht Instruks for virksomhetsstyring (byrådssak 1070/15) | L48: Bevares og avleveres Byarkivet | N48: Instruks for virksomhetsstyring (byrådssak 1070/15)
A49: 30000 | B49: 300 | C49: 3 | D49: 3 | E49: C3 | F49: Underfunksjon | G49: 30303 | H49: 48 | I49: C3 - 03
A50: 30000 | B50: 300 | C50: 4 | D50: 4 | E50: C3 | F50: Underfunksjon | G50: 30304 | H50: 49 | I50: C3 - 04
A51: 30000 | B51: 300 | C51: 5 | D51: 5 | E51: C3 | F51: Underfunksjon | G51: 30305 | H51: 50 | I51: C3 - 05
A52: 30000 | B52: 300 | C52: 6 | D52: 6 | E52: C3 | F52: Underfunksjon | G52: 30306 | H52: 51 | I52: C3 - 06
A53: 30000 | B53: 300 | C53: 7 | D53: 7 | E53: C3 | F53: Underfunksjon | G53: 30307 | H53: 52 | I53: C3 - 07
A54: 30000 | B54: 300 | C54: 8 | D54: 8 | E54: C3 | F54: Underfunksjon | G54: 30308 | H54: 53 | I54: C3 - 08
A55: 30000 | B55: 300 | C55: 9 | D55: 9 | E55: C3 | F55: Underfunksjon | G55: 30309 | H55: 54 | I55: C3 - 09
A56: 30000 | B56: 300 | C56: 10 | D56: 10 | E56: C3 | F56: Underfunksjon | G56: =A56+B56+C56+D56 -> 30320 | H56: 55 | I56: =E56&" - "&D56 -> C3 - 10
A57: 30000 | B57: 300 | C57: 11 | D57: 11 | E57: C3 | F57: Underfunksjon | G57: 30322 | H57: 56 | I57: C3 - 11
A58: 30000 | B58: 300 | C58: 12 | D58: 12 | E58: C3 | F58: Underfunksjon | G58: 30324 | H58: 57 | I58: C3 - 12
A59: 30000 | B59: 300 | C59: 13 | D59: 13 | E59: C3 | F59: Underfunksjon | G59: 30326 | H59: 58 | I59: C3 - 13
A60: 30000 | B60: 300 | C60: 14 | D60: 14 | E60: C3 | F60: Underfunksjon | G60: 30328 | H60: 59 | I60: C3 - 14
A61: 30000 | B61: 300 | C61: 15 | D61: 15 | E61: C3 | F61: Underfunksjon | G61: 30330 | H61: 60 | I61: C3 - 15
A62: 30000 | B62: 300 | C62: 16 | D62: 16 | E62: C3 | F62: Underfunksjon | G62: 30332 | H62: 61 | I62: C3 - 16
A63: 30000 | B63: 300 | C63: 17 | D63: 17 | E63: C3 | F63: Underfunksjon | G63: 30334 | H63: 62 | I63: C3 - 17
A64: 30000 | B64: 300 | C64: 18 | D64: 18 | E64: C3 | F64: Underfunksjon | G64: 30336 | H64: 63 | I64: C3 - 18
A65: 30000 | B65: 300 | C65: 19 | D65: 19 | E65: C3 | F65: Underfunksjon | G65: 30338 | H65: 64 | I65: C3 - 19
A66: 30000 | B66: 400 | D66: F | E66: C | F66: Funksjon | G66: =A66+B66+C66 -> 30400 | H66: 65 | I66: C4 | J66: Styre og følge opp kommunale og interkommunale foretak
A67: 30000 | B67: 400 | C67: 0 | D67: 0 | E67: C4 | F67: Underfunksjon | G67: 30400 | H67: 66 | I67: C4 - 00 | J67: Dokumentere generelt om styring av kommunale og interkommunale foretak | K67: Her legges kun dokumenter som ikke naturlig hører hjemme i andre koder og som man vet at ikke har særlig dokumentasjonsverdi. Dersom man mener dokumentet har lengre dokumentasjonsverdi skal det legges på andre koder. | L67: Kasseres 5 år etter avslutning
A68: 30000 | B68: 400 | C68: 1 | D68: 1 | E68: C4 | F68: Underfunksjon | G68: 30401 | H68: 67 | I68: C4 - 01 | J68: Oppnevne styre til kommunale og interkommunale foretak | K68: Oppnevningsbrev og forarbeider | L68: Bevares og avleveres Byarkivet | M68: 27 Utvalg, styrer, råd og nemder
A69: 30000 | B69: 400 | C69: 2 | D69: 2 | E69: C4 | F69: Underfunksjon | G69: 30402 | H69: 68 | I69: C4 - 02 | J69: Styre kommunale og interkommunale foretak | K69: Styrearbeid. Møteinnkallinger og -protokoller | L69: Bevares og avleveres Byarkivet | M69: 27 Utvalg, styrer, råd og nemder | N69: - Lov om interkommunale selskaper - Kommunelovens kapittel 11 kommunalt og fylkeskommunalt foretak - Forskrift om rapportering fra interkommunale selskaper og kommunale og fylkeskommunale foretak som driver næringsvirksomhet
A70: 30000 | B70: 400 | C70: 3 | D70: 3 | E70: C4 | F70: Underfunksjon | G70: 30403 | H70: 69 | I70: C4 - 03 | J70: Utvikle kommunale og interkommunale foretak | K70: Vedtekter, samarbeidsavtaler, andre avtaler og vedtak | L70: Bevares og avleveres Byarkivet | N70: - Lov om interkommunale selskaper - Kommunelovens kapittel 11 kommunalt og fylkeskommunalt foretak - Forskrift om rapportering fra interkommunale selskaper og kommunale og fylkeskommunale foretak som driver næringsvirksomhet | O70: Bevares etter § 7-24 (3) i RAF
A71: 30000 | B71: 400 | C71: 4 | D71: 4 | E71: C4 | F71: Underfunksjon | G71: 30404 | H71: 70 | I71: C4 - 04 | J71: Utarbeide tildelingsbrev | K71: Tildelingsbrev | L71: Bevares og avleveres Byarkivet | N71: Instruks for virksomhetsstyring (byrådssak 1070/15) | O71: Bevares
A72: 30000 | B72: 400 | C72: 5 | D72: 5 | E72: C4 | F72: Underfunksjon | G72: 30405 | H72: 71 | I72: C4 - 05 | J72: Virksomhetsstyring av foretak | K72: Dokumentasjon av styringsdialog, foretaksmøter, annen oppfølging iht Instruks for virksomhetsstyring (byrådssak 1070/15) | L72: Bevares og avleveres Byarkivet | N72: - Forskrift om rapportering fra interkommunale selskaper og kommunale og fylkeskommunale foretak som driver næringsvirksomhet | O72: Bevares etter § 7-24 (3) i RAF
A73: 30000 | B73: 400 | C73: 6 | D73: 6 | E73: C4 | F73: Underfunksjon | G73: 30406 | H73: 72 | I73: C4 - 06
A74: 30000 | B74: 400 | C74: 7 | D74: 7 | E74: C4 | F74: Underfunksjon | G74: 30407 | H74: 73 | I74: C4 - 07
A75: 30000 | B75: 400 | C75: 8 | D75: 8 | E75: C4 | F75: Underfunksjon | G75: 30408 | H75: 74 | I75: C4 - 08
A76: 30000 | B76: 400 | C76: 9 | D76: 9 | E76: C4 | F76: Underfunksjon | G76: 30409 | H76: 75 | I76: C4 - 09
A77: 30000 | B77: 400 | C77: 10 | D77: 10 | E77: C4 | F77: Underfunksjon | G77: =A77+B77+C77+D77 -> 30420 | H77: 76 | I77: =E77&" - "&D77 -> C4 - 10
A78: 30000 | B78: 400 | C78: 11 | D78: 11 | E78: C4 | F78: Underfunksjon | G78: 30422 | H78: 77 | I78: C4 - 11
A79: 30000 | B79: 400 | C79: 12 | D79: 12 | E79: C4 | F79: Underfunksjon | G79: 30424 | H79: 78 | I79: C4 - 12
A80: 30000 | B80: 400 | C80: 13 | D80: 13 | E80: C4 | F80: Underfunksjon | G80: 30426 | H80: 79 | I80: C4 - 13
A81: 30000 | B81: 400 | C81: 14 | D81: 14 | E81: C4 | F81: Underfunksjon | G81: 30428 | H81: 80 | I81: C4 - 14
A82: 30000 | B82: 400 | C82: 15 | D82: 15 | E82: C4 | F82: Underfunksjon | G82: 30430 | H82: 81 | I82: C4 - 15
A83: 30000 | B83: 400 | C83: 16 | D83: 16 | E83: C4 | F83: Underfunksjon | G83: 30432 | H83: 82 | I83: C4 - 16
A84: 30000 | B84: 400 | C84: 17 | D84: 17 | E84: C4 | F84: Underfunksjon | G84: 30434 | H84: 83 | I84: C4 - 17
A85: 30000 | B85: 400 | C85: 18 | D85: 18 | E85: C4 | F85: Underfunksjon | G85: 30436 | H85: 84 | I85: C4 - 18
A86: 30000 | B86: 400 | C86: 19 | D86: 19 | E86: C4 | F86: Underfunksjon | G86: 30438 | H86: 85 | I86: C4 - 19
A87: 30000 | B87: 500 | D87: F | E87: C | F87: Funksjon | G87: =A87+B87+C87 -> 30500 | H87: 86 | I87: C5 | J87: Finansforvaltning og økonomistyring
A88: 30000 | B88: 500 | C88: 0 | D88: 0 | E88: C5 | F88: Underfunksjon | G88: 30500 | H88: 87 | I88: C5 - 00 | J88: Dokumentere generelt om finansforvaltning og økonomistyring | K88: Her legges kun dokumenter som ikke naturlig hører hjemme i andre koder og som man vet at ikke har særlig dokumentasjonsverdi. Dersom man mener dokumentet har lengre dokumentasjonsverdi skal det legges på andre koder. | L88: Kasseres 5 år etter avslutning
A89: 30000 | B89: 500 | C89: 1 | D89: 1 | E89: C5 | F89: Underfunksjon | G89: 30501 | H89: 88 | I89: C5 - 01 | J89: Utarbeide og vedta finansreglement | K89: - Reglement for finansforvaltning i Oslo kommune | L89: Bevares og avleveres Byarkivet | N89: - Kommuneloven § 52 Finansforvaltning - Forskrift om kommuners og fylkeskommuners finansforvaltning | O89: Finansreglementet skal, etter forskrift om kommuners og fylkeskommuners finansforvaltning, vedtas minst én gang i hver valgperiode. Bevares etter §7-25 i RAF
A90: 30000 | B90: 500 | C90: 2 | D90: 2 | E90: C5 | F90: Underfunksjon | G90: 30502 | H90: 89 | I90: C5 - 02 | J90: Planlegge og følge opp finansforvaltning | K90: - Strategi for finans- og gjeldsforvaltningen - Rutiner for finans- og gjeldsforvaltningen | L90: Bevares og avleveres Byarkivet | M90: 14 Penger, fond og legater 15 Lån og garantier 131.6 Eiendomsskatt | N90: - Kommuneloven § 52 Finansforvaltning - Forskrift om kommuners og fylkeskommuners finansforvaltning | O90: Bevares etter §7-25 i RAF
A91: 30000 | B91: 500 | C91: 3 | D91: 3 | E91: C5 | F91: Underfunksjon | G91: 30503 | H91: 90 | I91: C5 - 03 | J91: Forvalte kapital | K91: Pensjonskasse? | L91: Bevares og avleveres Byarkivet | M91: 14 Penger, fond og legater | O91: Bevares etter § 7-25 i RAF
A92: 30000 | B92: 500 | C92: 4 | D92: 4 | E92: C5 | F92: Underfunksjon | G92: 30504 | H92: 91 | I92: C5 - 04 | J92: Forvalte lån | K92: Lånefondet? Bykassen? Lånebeskrivelser, låneavtaler, lånedokumentasjon, anbudsinvitasjon, tilbud, signert avtale? | L92: Bevares og avleveres Byarkivet | M92: 15 Lån, garanti | O92: Bevares etter § 7-25 i RAF
A93: 30000 | B93: 500 | C93: 5 | D93: 5 | E93: C5 | F93: Underfunksjon | G93: 30505 | H93: 92 | I93: C5 - 05 | J93: Plassere likviditet | L93: Bevares og avleveres Byarkivet | M93: 14 Penger, fond og legater
A94: 30000 | B94: 500 | C94: 6 | D94: 6 | E94: C5 | F94: Underfunksjon | G94: 30506 | H94: 93 | I94: C5 - 06 | J94: Administrere bankavtaler | K94: Kommunens konsernovergripende bankavtale | L94: Bevares og avleveres Byarkivet
A95: 30000 | B95: 500 | C95: 7 | D95: 7 | E95: C5 | F95: Underfunksjon | G95: 30507 | H95: 94 | I95: C5 - 07 | J95: Administrere bankkontosystemer | L95: Bevares og avleveres Byarkivet
A96: 30000 | B96: 500 | C96: 8 | D96: 8 | E96: C5 | F96: Underfunksjon | G96: 30508 | H96: 95 | I96: C5 - 08 | J96: Administrere forsikringer | L96: Bevares og avleveres Byarkivet | M96: 16 Forsikring, ansvar, risiki
A97: 30000 | B97: 500 | C97: 9 | D97: 9 | E97: C5 | F97: Underfunksjon | G97: 30509 | H97: 96 | I97: C5 - 09 | J97: Utarbeide økonomiplan | K97: - Forslag til økonomiplan - Innstilling til økonomiplan - Vedtak - Vedtatt økonomiplan | L97: Bevares og avleveres Byarkivet | M97: 113 Økonomisk planlegging, langtidsplan | N97: Kommuneloven § 44 Økonomiplan | O97: Vedtas en gang i året. Skal minst omfattes de fire neste budsjettår. Bevares etter §7-25 i RAF
A98: 30000 | B98: 500 | C98: 10 | D98: 10 | E98: C5 | F98: Underfunksjon | G98: =A98+B98+C98+D98 -> 30520 | H98: 97 | I98: =E98&" - "&D98 -> C5 - 10 | J98: Utarbeide årsbudsjett | K98: - Forslag til årsbudsjett - Innstilling til årsbudsjett - Vedtak - Vedtatt årsbudsjett - Budsjettrevisjoner - Tilleggsbevilninger - Overføring av uanvendte midler | L98: Bevares og avleveres Byarkivet | M98: 121 Budsjett | N98: Kommuneloven § 45 Årsbudsjettet, § 46 Årsbudsjettets innhold, § 47 Årsbudsjettets bindende virkning | O98: Bevares etter §7-25 i RAF
A99: 30000 | B99: 500 | C99: 11 | D99: 11 | E99: C5 | F99: Underfunksjon | G99: 30522 | H99: 98 | I99: C5 - 11 | J99: Levere konsernregnskap | L99: Ikke vurdert | O99: Forvaltningsoppgave som leveres av UKE
A100: 30000 | B100: 500 | C100: 12 | D100: 12 | E100: C5 | F100: Underfunksjon | G100: 30524 | H100: 99 | I100: C5 - 12
A101: 30000 | B101: 500 | C101: 13 | D101: 13 | E101: C5 | F101: Underfunksjon | G101: 30526 | H101: 100 | I101: C5 - 13
A102: 30000 | B102: 500 | C102: 14 | D102: 14 | E102: C5 | F102: Underfunksjon | G102: 30528 | H102: 101 | I102: C5 - 14
A103: 30000 | B103: 500 | C103: 15 | D103: 15 | E103: C5 | F103: Underfunksjon | G103: 30530 | H103: 102 | I103: C5 - 15
A104: 30000 | B104: 500 | C104: 16 | D104: 16 | E104: C5 | F104: Underfunksjon | G104: 30532 | H104: 103 | I104: C5 - 16
A105: 30000 | B105: 500 | C105: 17 | D105: 17 | E105: C5 | F105: Underfunksjon | G105: 30534 | H105: 104 | I105: C5 - 17
A106: 30000 | B106: 500 | C106: 18 | D106: 18 | E106: C5 | F106: Underfunksjon | G106: 30536 | H106: 105 | I106: C5 - 18
A107: 30000 | B107: 500 | C107: 19 | D107: 19 | E107: C5 | F107: Underfunksjon | G107: 30538 | H107: 106 | I107: C5 - 19
A108: 30000 | B108: 700 | D108: F | E108: C | F108: Funksjon | G108: =A108+B108+C108 -> 30700 | H108: 128 | I108: C6 | J108: Planlegge, gjennomføre og evaluere investeringsprosjekter
A109: 30000 | B109: 700 | C109: 0 | D109: 0 | E109: C7 | F109: Underfunksjon | G109: 30700 | H109: 129 | I109: C6 - 00 | J109: Dokumentere generelt om investeringsprosjekter | K109: Her legges kun dokumenter som ikke naturlig hører hjemme i andre koder og som man vet at ikke har særlig dokumentasjonsverdi. Dersom man mener dokumentet har lengre dokumentasjonsverdi skal det legges på andre koder. | L109: Kasseres 5 år etter avslutning
A110: 30000 | B110: 700 | C110: 1 | D110: 1 | E110: C7 | F110: Underfunksjon | G110: 30701 | H110: 130 | I110: C6 - 01 | J110: Initiere og konseptvalgutrede investeringsprosjekter | K110: Dokumentasjon til og med KS1 rapport: Oppdrag, bestilling fra operativ bestiller til utførere, konseptvalgutredning til KS1 | L110: Bevares og avleveres Byarkivet | M110: 174 Byggeplaner | N110: Byrådssak 1038/14 Instruks for beslutningsprosessen i investeringsobjekter
A111: 30000 | B111: 700 | C111: 2 | D111: 2 | E111: C7 | F111: Underfunksjon | G111: 30702 | H111: 131 | I111: C6 - 02 | J111: Gjennomføre forprosjekt for investeringsprosjekter | K111: Dokumentasjon av forprosjekt og oppfølging til og med KS2-rapport, bestilling til utfører | L111: Bevares og avleveres byarkivet | M111: 175 Byggeplaner | N111: Byrådssak 1038/14 Instruks for beslutningsprosessen i investeringsobjekter
A112: 30000 | B112: 700 | C112: 3 | D112: 3 | E112: C7 | F112: Underfunksjon | G112: 30703 | H112: 132 | I112: C6 - 03 | J112: Gjennomføre og avslutte investeringsprosjekter | K112: Eierstyring av prosjekter, dokumentasjon av eierstyringsmøter og annen oppfølging, prosjektrapport og -evaluering | L112: Bevares og avleveres Byarkivet | M112: 175 Byggeplaner | N112: Byrådssak 1038/14 Instruks for beslutningsprosessen i investeringsobjekter
A113: 30000 | B113: 700 | C113: 4 | D113: 4 | E113: C7 | F113: Underfunksjon | G113: 30704 | H113: 133 | I113: C7 - 04
A114: 30000 | B114: 700 | C114: 5 | D114: 5 | E114: C7 | F114: Underfunksjon | G114: 30705 | H114: 134 | I114: C7 - 05
A115: 30000 | B115: 700 | C115: 6 | D115: 6 | E115: C7 | F115: Underfunksjon | G115: 30706 | H115: 135 | I115: C7 - 06
A116: 30000 | B116: 700 | C116: 7 | D116: 7 | E116: C7 | F116: Underfunksjon | G116: 30707 | H116: 136 | I116: C7 - 07
A117: 30000 | B117: 700 | C117: 8 | D117: 8 | E117: C7 | F117: Underfunksjon | G117: 30708 | H117: 137 | I117: C7 - 08
A118: 30000 | B118: 700 | C118: 9 | D118: 9 | E118: C7 | F118: Underfunksjon | G118: 30709 | H118: 138 | I118: C7 - 09
A119: 30000 | B119: 700 | C119: 10 | D119: 10 | E119: C7 | F119: Underfunksjon | G119: =A119+B119+C119+D119 -> 30720 | H119: 139 | I119: =E119&" - "&D119 -> C7 - 10
A120: 30000 | B120: 700 | C120: 11 | D120: 11 | E120: C7 | F120: Underfunksjon | G120: 30722 | H120: 140 | I120: C7 - 11
A121: 30000 | B121: 700 | C121: 12 | D121: 12 | E121: C7 | F121: Underfunksjon | G121: 30724 | H121: 141 | I121: C7 - 12
A122: 30000 | B122: 700 | C122: 13 | D122: 13 | E122: C7 | F122: Underfunksjon | G122: 30726 | H122: 142 | I122: C7 - 13
A123: 30000 | B123: 700 | C123: 14 | D123: 14 | E123: C7 | F123: Underfunksjon | G123: 30728 | H123: 143 | I123: C7 - 14
A124: 30000 | B124: 700 | C124: 15 | D124: 15 | E124: C7 | F124: Underfunksjon | G124: 30730 | H124: 144 | I124: C7 - 15
A125: 30000 | B125: 700 | C125: 16 | D125: 16 | E125: C7 | F125: Underfunksjon | G125: 30732 | H125: 145 | I125: C7 - 16
A126: 30000 | B126: 700 | C126: 17 | D126: 17 | E126: C7 | F126: Underfunksjon | G126: 30734 | H126: 146 | I126: C7 - 17
A127: 30000 | B127: 700 | C127: 18 | D127: 18 | E127: C7 | F127: Underfunksjon | G127: 30736 | H127: 147 | I127: C7 - 18
A128: 30000 | B128: 700 | C128: 19 | D128: 19 | E128: C7 | F128: Underfunksjon | G128: 30738 | H128: 148 | I128: C7 - 19
A129: 30000 | B129: 800 | D129: F | E129: C | F129: Funksjon | G129: =A129+B129+C129 -> 30800 | H129: 149 | I129: C7 | J129: Rapportere og uttale seg samlet for Oslo kommune
A130: 30000 | B130: 800 | C130: 0 | D130: 0 | E130: C8 | F130: Underfunksjon | G130: 30800 | H130: 150 | I130: C7 - 00 | J130: Dokumentere generelt om samlet rapportering og uttalelse for Oslo kommune | K130: Her legges kun dokumenter som ikke naturlig hører hjemme i andre koder og som man vet at ikke har særlig dokumentasjonsverdi. Dersom man mener dokumentet har lengre dokumentasjonsverdi skal det legges på andre koder. | L130: Kasseres 5 år etter avslutning | M130: Rapportering har ikke tidligere hatt egen arkivkode
A131: 30000 | B131: 800 | C131: 1 | D131: 1 | E131: C8 | F131: Underfunksjon | G131: 30801 | H131: 151 | I131: C7 - 01 | J131: Delta i eksterne høringer og utredninger | K131: Koordinere, samle og avgi kommunens uttalelse i statlige høringer, utredninger | L131: Bevares og avleveres Byarkivet | M131: Rapportering har ikke tidligere hatt egen arkivkode
A132: 30000 | B132: 800 | C132: 2 | D132: 2 | E132: C8 | F132: Underfunksjon | G132: 30802 | H132: 152 | I132: C7 - 02 | J132: Rapportere samlet til andre myndigheter | K132: Koordinere, samle og rapportere på vegne av kommunen til andre nasjonale og internasjonale myndigheter | L132: Bevares og avleveres Byarkivet | M132: Rapportering har ikke tidligere hatt egen arkivkode
A133: 30000 | B133: 800 | C133: 3 | D133: 3 | E133: C8 | F133: Underfunksjon | G133: 30803 | H133: 153 | I133: C7 - 03 | J133: Rapportere samlet til eget bruk | K133: Koordinere og samle informasjon fra andre virksomheter til kommunens egen bruk, rapportering som ikke omfattes av virksomhetsstyringen eller annen regelmessig rapportering | L133: Bevares og avleveres Byarkivet | M133: Rapportering har ikke tidligere hatt egen arkivkode
A134: 30000 | B134: 800 | C134: 4 | D134: 4 | E134: C8 | F134: Underfunksjon | G134: 30804 | H134: 154 | I134: C8 - 04
A135: 30000 | B135: 800 | C135: 5 | D135: 5 | E135: C8 | F135: Underfunksjon | G135: 30805 | H135: 155 | I135: C8 - 05
A136: 30000 | B136: 800 | C136: 6 | D136: 6 | E136: C8 | F136: Underfunksjon | G136: 30806 | H136: 156 | I136: C8 - 06
A137: 30000 | B137: 800 | C137: 7 | D137: 7 | E137: C8 | F137: Underfunksjon | G137: 30807 | H137: 157 | I137: C8 - 07
A138: 30000 | B138: 800 | C138: 8 | D138: 8 | E138: C8 | F138: Underfunksjon | G138: 30808 | H138: 158 | I138: C8 - 08
A139: 30000 | B139: 800 | C139: 9 | D139: 9 | E139: C8 | F139: Underfunksjon | G139: 30809 | H139: 159 | I139: C8 - 09
A140: 30000 | B140: 800 | C140: 10 | D140: 10 | E140: C8 | F140: Underfunksjon | G140: =A140+B140+C140+D140 -> 30820 | H140: 160 | I140: =E140&" - "&D140 -> C8 - 10
A141: 30000 | B141: 800 | C141: 11 | D141: 11 | E141: C8 | F141: Underfunksjon | G141: 30822 | H141: 161 | I141: C8 - 11
A142: 30000 | B142: 800 | C142: 12 | D142: 12 | E142: C8 | F142: Underfunksjon | G142: 30824 | H142: 162 | I142: C8 - 12
A143: 30000 | B143: 800 | C143: 13 | D143: 13 | E143: C8 | F143: Underfunksjon | G143: 30826 | H143: 163 | I143: C8 - 13
A144: 30000 | B144: 800 | C144: 14 | D144: 14 | E144: C8 | F144: Underfunksjon | G144: 30828 | H144: 164 | I144: C8 - 14
A145: 30000 | B145: 800 | C145: 15 | D145: 15 | E145: C8 | F145: Underfunksjon | G145: 30830 | H145: 165 | I145: C8 - 15
A146: 30000 | B146: 800 | C146: 16 | D146: 16 | E146: C8 | F146: Underfunksjon | G146: 30832 | H146: 166 | I146: C8 - 16
A147: 30000 | B147: 800 | C147: 17 | D147: 17 | E147: C8 | F147: Underfunksjon | G147: 30834 | H147: 167 | I147: C8 - 17
A148: 30000 | B148: 800 | C148: 18 | D148: 18 | E148: C8 | F148: Underfunksjon | G148: 30836 | H148: 168 | I148: C8 - 18
A149: 30000 | B149: 800 | C149: 19 | D149: 19 | E149: C8 | F149: Underfunksjon | G149: 30838 | H149: 169 | I149: C8 - 19
I150: C7 - 04 | J150: Utarbeide statistikker | L150: Bevares og avleveres Byarkivet
A151: 30000 | B151: 1000 | D151: F | E151: C | F151: Funksjon | G151: =A151+B151+C151 -> 31000 | H151: 191 | I151: C8 | J151: Administrere sikkerhet og beredskap | N151: - Forskrift om kommunal beredskapsplikt - Beredskapsloven - Lov om helsemessig og sosial beredskap - Sikkerhetsloven - Sivilbeskyttelsesloven
I152: C8 - 00 | J152: Dokumentere generelt om sikkerhet og beredskap | K152: Her legges kun dokumenter som ikke naturlig hører hjemme i andre koder og som man vet at ikke har særlig dokumentasjonsverdi. Dersom man mener dokumentet har lengre dokumentasjonsverdi skal det legges på andre koder. | L152: Kasseres 5 år etter avslutning
A153: 30000 | B153: 1000 | C153: 0 | D153: 0 | E153: C10 | F153: Underfunksjon | G153: 31000 | H153: 192 | I153: C8 - 01 | J153: Veilede og gi råd og opplæring innen sikkerhet og beredskap | K153: - Veiledere - Veileder for helhetlig beredskapsarbeid i kommunen - Opplæringsmateriell | L153: Bevares og avleveres Byarkivet | M153: 92 Forsvar, beredskap | O153: Beredskapsetaten foreslår i sitt kartleggingsskjema: - Bevares: beredskapsveiledere
A154: 30000 | B154: 1000 | C154: 1 | D154: 1 | E154: C10 | F154: Underfunksjon | G154: 31001 | H154: 193 | I154: C8 - 02 | J154: Utarbeide analyser innen sikkerhet og beredskap | K154: - Risiko- og sårbarhetsanalyser - Analysedokument - Høringsutgave - Høringssvar | L154: Bevares og avleveres Byarkivet | M154: 92 Forsvar, beredskap | O154: Beredskapsetaten foreslår i sitt kartleggingsskjema: - Bevares: analysedokument - Kasseres etter 3 år: høringsutgave og høringssvar
A155: 30000 | B155: 1000 | C155: 2 | D155: 2 | E155: C10 | F155: Underfunksjon | G155: 31002 | H155: 194 | I155: C8 - 03 | J155: Gjennomføre øvelser innen sikkerhet og beredskap | K155: - Øvelsesplan - Øvelsesinstruks - Situasjonsrapporter - Evalueringsrapport, kommunale øvelser - Evalueringsrapport, virksomhetsøvelser | L155: Bevares og avleveres Byarkivet | M155: 92 Forsvar, beredskap | O155: Beredskapsetaten foreslår i sitt kartleggingsskjema: - Kasseres etter 10 år: øvelsesplan, øvelsesinstruks, situasjonsrapporter, evalueringsrapport fra virksomhetsøvelser - Bevares: evalueringsrapport fra kommunale øvelser CK: Riksarkivarens forskrift mener at planer og evalueringer innen beredskap- og sikkerhetsøvelser skal bevares.
A156: 30000 | B156: 1000 | C156: 3 | D156: 3 | E156: C10 | F156: Underfunksjon | G156: 31003 | H156: 195 | I156: C8 - 04 | J156: Gjennomføre tilsyn innen sikkerhet og beredskap | K156: - Tilsynsrapport | L156: Kasseres 10 år etter avslutning | M156: 92 Forsvar, beredskap | O156: Beredskapsetaten foreslår kassasjon i sitt kartleggingsskjema. (Forslag til kassasjonsfrist: 10 år)
A157: 30000 | B157: 1000 | C157: 4 | D157: 4 | E157: C10 | F157: Underfunksjon | G157: 31004 | H157: 196 | I157: C8 - 05 | J157: Utarbeide og revidere beredskapsplanverk for Oslo kommune | K157: - Beredskapsplaner m/vedlegg - Høringsutgave - Høringssvar - Planer for krisehåndtering og kriseledelse - Langsiktige mål, strategier, prioriteringer og plan for oppfølging av samfunnssikkerhets- og beredskapsarbeidet - Overordnet strategi for tilsyn og øvelser - Retningslinjer for krisehåndteringen i Oslo kommune | L157: Bevares og avleveres Byarkivet | M157: 92 Forsvar, beredskap | O157: Beredskapsetaten foreslår i sitt kartleggingsskjema: - Bevare: beredskapsplanverk m/vedlegg - Kasseres etter 3 år: høringsutgave og høringssvar
A158: 30000 | B158: 1000 | C158: 5 | D158: 5 | E158: C10 | F158: Underfunksjon | G158: 31005 | H158: 197 | I158: C8 - 06 | J158: Håndtere reelle krisehendelser | K158: - Situasjonsrapport - Hendelseslogg - Evalueringsrapport - Evaluering etter uønskede hendelser | L158: Bevares og avleveres Byarkivet | M158: 92 Forsvar, beredskap | O158: Beredskapsetaten forslår i sitt kartleggingsskjema at dokumentene skal bevares.
A159: 30000 | B159: 1000 | C159: 6 | D159: 6 | E159: C10 | F159: Underfunksjon | G159: 31006 | H159: 198 | I159: C8 - 07 | J159: Følge opp samfunnssikkerhets- og beredskapsarbeidet | K159: - Plan for oppfølging av samfunnssikkerhets- og beredskapsarbeidet | L159: Bevares og avleveres Byarkivet | M159: 92 Forsvar, beredskap
A160: 30000 | B160: 1000 | C160: 7 | D160: 7 | E160: C10 | F160: Underfunksjon | G160: 31007 | H160: 199 | I160: C8 - 08 | J160: Forvalte sektorovergripende beredskapssystemer i Oslo kommune | L160: Bevares og avleveres Byarkivet | M160: 92 Forsvar, beredskap
A161: 30000 | B161: 1000 | C161: 8 | D161: 8 | E161: C10 | F161: Underfunksjon | G161: 31008 | H161: 200 | I161: C8 - 09 | J161: Etterleve sikkerhetsloven | K161: - Rundskriv for oppfølging av sikkerhetsloven - Tilsynsregime iht. sikkerhetsloven | L161: Bevares og avleveres Byarkivet | M161: 92 Forsvar, beredskap
A162: 30000 | B162: 1000 | C162: 9 | D162: 9 | E162: C10 | F162: Underfunksjon | G162: 31009 | H162: 201 | I162: C8 - 10 | J162: Samvirke innen sikkerhet og beredskap | K162: - Samarbeidsavtaler om beredskap | L162: Kasseres 10 år etter avslutning | M162: 92 Forsvar, beredskap | O162: Beredskapsetaten foreslår kassasjon i sitt kartleggingsskjema. (Vurdering: Kan kasseres 10 år etter at avtalen er utdatert, forslag til kassasjonsfrist: 10 år)
A163: 30000 | B163: 1000 | C163: 10 | D163: 10 | E163: C10 | F163: Underfunksjon | G163: =A163+B163+C163+D163 -> 31020 | H163: 202 | I163: C8 - 11 | J163: Gjennomføre oppgaver innen personellsikkerhet | K163: - Klareringssøknader - Personopplysningsblankett - Klareringsbevis - Autorisasjonsbevis | L163: Kasseres 5 år etter avslutning | M163: 92 Forsvar, beredskap | O163: Beredskapsetaten foreslår kassasjon i sitt kartleggingsskjema. (Vurdering: Kan kasseres når klareringen/autoriseringen er utgått, forslag til kassasjonsfrist: 5 år)
A164: 30000 | B164: 1000 | C164: 11 | D164: 11 | E164: C10 | F164: Underfunksjon | G164: 31022 | H164: 203 | I164: =E164&" - "&D164 -> C10 - 11
A165: 30000 | B165: 1000 | C165: 12 | D165: 12 | E165: C10 | F165: Underfunksjon | G165: 31024 | H165: 204 | I165: C10 - 12
A166: 30000 | B166: 1000 | C166: 13 | D166: 13 | E166: C10 | F166: Underfunksjon | G166: 31026 | H166: 205 | I166: C10 - 13
A167: 30000 | B167: 1000 | C167: 14 | D167: 14 | E167: C10 | F167: Underfunksjon | G167: 31028 | H167: 206 | I167: C10 - 14
A168: 30000 | B168: 1000 | C168: 15 | D168: 15 | E168: C10 | F168: Underfunksjon | G168: 31030 | H168: 207 | I168: C10 - 15
A169: 30000 | B169: 1000 | C169: 16 | D169: 16 | E169: C10 | F169: Underfunksjon | G169: 31032 | H169: 208 | I169: C10 - 16
A170: 30000 | B170: 1000 | C170: 17 | D170: 17 | E170: C10 | F170: Underfunksjon | G170: 31034 | H170: 209 | I170: C10 - 17
A171: 30000 | B171: 1000 | C171: 18 | D171: 18 | E171: C10 | F171: Underfunksjon | G171: 31036 | H171: 210 | I171: C10 - 18
A172: 30000 | B172: 1000 | C172: 19 | D172: 19 | E172: C10 | F172: Underfunksjon | G172: 31038 | H172: 211 | I172: C10 - 19
A173: 30000 | B173: 1100 | D173: F | E173: C | F173: Funksjon | G173: =A173+B173+C173 -> 31100 | H173: 212 | I173: C11 | L173: Bevaring og kassasjon finnes på underliggende nivåer
A174: 30000 | B174: 1100 | C174: 0 | D174: 0 | E174: C11 | F174: Underfunksjon | G174: 31100 | H174: 213 | I174: =E174&" - "&D174 -> C11 - 0
A175: 30000 | B175: 1100 | C175: 1 | D175: 1 | E175: C11 | F175: Underfunksjon | G175: 31101 | H175: 214 | I175: C11 - 1
A176: 30000 | B176: 1100 | C176: 2 | D176: 2 | E176: C11 | F176: Underfunksjon | G176: 31102 | H176: 215 | I176: C11 - 2
A177: 30000 | B177: 1100 | C177: 3 | D177: 3 | E177: C11 | F177: Underfunksjon | G177: 31103 | H177: 216 | I177: C11 - 3
A178: 30000 | B178: 1100 | C178: 4 | D178: 4 | E178: C11 | F178: Underfunksjon | G178: 31104 | H178: 217 | I178: C11 - 4
A179: 30000 | B179: 1100 | C179: 5 | D179: 5 | E179: C11 | F179: Underfunksjon | G179: 31105 | H179: 218 | I179: C11 - 5
A180: 30000 | B180: 1100 | C180: 6 | D180: 6 | E180: C11 | F180: Underfunksjon | G180: 31106 | H180: 219 | I180: C11 - 6
A181: 30000 | B181: 1100 | C181: 7 | D181: 7 | E181: C11 | F181: Underfunksjon | G181: 31107 | H181: 220 | I181: C11 - 7
A182: 30000 | B182: 1100 | C182: 8 | D182: 8 | E182: C11 | F182: Underfunksjon | G182: 31108 | H182: 221 | I182: C11 - 8
A183: 30000 | B183: 1100 | C183: 9 | D183: 9 | E183: C11 | F183: Underfunksjon | G183: 31109 | H183: 222 | I183: C11 - 9
A184: 30000 | B184: 1100 | C184: 10 | D184: 10 | E184: C11 | F184: Underfunksjon | G184: =A184+B184+C184+D184 -> 31120 | H184: 223 | I184: C11 - 10
A185: 30000 | B185: 1100 | C185: 11 | D185: 11 | E185: C11 | F185: Underfunksjon | G185: 31122 | H185: 224 | I185: C11 - 11
A186: 30000 | B186: 1100 | C186: 12 | D186: 12 | E186: C11 | F186: Underfunksjon | G186: 31124 | H186: 225 | I186: C11 - 12
A187: 30000 | B187: 1100 | C187: 13 | D187: 13 | E187: C11 | F187: Underfunksjon | G187: 31126 | H187: 226 | I187: C11 - 13
A188: 30000 | B188: 1100 | C188: 14 | D188: 14 | E188: C11 | F188: Underfunksjon | G188: 31128 | H188: 227 | I188: C11 - 14
A189: 30000 | B189: 1100 | C189: 15 | D189: 15 | E189: C11 | F189: Underfunksjon | G189: 31130 | H189: 228 | I189: C11 - 15
A190: 30000 | B190: 1100 | C190: 16 | D190: 16 | E190: C11 | F190: Underfunksjon | G190: 31132 | H190: 229 | I190: C11 - 16
A191: 30000 | B191: 1100 | C191: 17 | D191: 17 | E191: C11 | F191: Underfunksjon | G191: 31134 | H191: 230 | I191: C11 - 17
A192: 30000 | B192: 1100 | C192: 18 | D192: 18 | E192: C11 | F192: Underfunksjon | G192: 31136 | H192: 231 | I192: C11 - 18
A193: 30000 | B193: 1100 | C193: 19 | D193: 19 | E193: C11 | F193: Underfunksjon | G193: 31138 | H193: 232 | I193: C11 - 19
A194: 30000 | B194: 1200 | D194: F | E194: C | F194: Funksjon | G194: =A194+B194+C194 -> 31200 | H194: 233 | I194: C12 | L194: Bevaring og kassasjon finnes på underliggende nivåer
A195: 30000 | B195: 1200 | C195: 0 | D195: 0 | E195: C12 | F195: Underfunksjon | G195: 31200 | H195: 234 | I195: =E195&" - "&D195 -> C12 - 0
A196: 30000 | B196: 1200 | C196: 1 | D196: 1 | E196: C12 | F196: Underfunksjon | G196: 31201 | H196: 235 | I196: C12 - 1
A197: 30000 | B197: 1200 | C197: 2 | D197: 2 | E197: C12 | F197: Underfunksjon | G197: 31202 | H197: 236 | I197: C12 - 2
A198: 30000 | B198: 1200 | C198: 3 | D198: 3 | E198: C12 | F198: Underfunksjon | G198: 31203 | H198: 237 | I198: C12 - 3
A199: 30000 | B199: 1200 | C199: 4 | D199: 4 | E199: C12 | F199: Underfunksjon | G199: 31204 | H199: 238 | I199: C12 - 4
A200: 30000 | B200: 1200 | C200: 5 | D200: 5 | E200: C12 | F200: Underfunksjon | G200: 31205 | H200: 239 | I200: C12 - 5
... 186 more rows

Sheet D
A1: Nivå 1 | B1: Nivå 2 | C1: Nivå 3 | D1: Nummer | E1: OverliggenEe | F1: Funksjon | H1: Løpenummer | I1: Kode | J1: Tittel | K1: Her legges | L1: BK-vurdering | M1: Tidligere arkivnøkkel | N1: Aktuelt lovverk | O1: Kommentar
A2: 50000 | D2: H | F2: Hovedfunksjon | G2: 50000 | H2: 1 | I2: D | J2: Levere administrative konserntjenester
A3: 50000 | B3: 100 | D3: F | E3: E | F3: Funksjon | G3: 50100 | H3: 2 | I3: D1 | J3: Levere regnskapstjenester
A4: 50000 | B4: 100 | C4: 0 | D4: 0 | E4: E1 | F4: Underfunksjon | G4: 50100 | H4: 3 | I4: D1 - 00 | J4: Dokumentere generelt om regnskapstjenester | K4: Her legges kun dokumenter som ikke naturlig hører hjemme i andre koder og som man vet at ikke har særlig dokumentasjonsverdi. Dersom man mener dokumentet har lengre dokumentasjonsverdi skal det legges på andre koder. | L4: Kasseres 5 år etter avslutning
A5: 50000 | B5: 100 | C5: 1 | D5: 1 | E5: E1 | F5: Underfunksjon | G5: 50101 | H5: 4 | I5: D1 - 01 | J5: Forvalte regnskapstjenester | K5: Styringsdokumenter i form av for eksempel forvaltningsdokument, overordnede beskrivelser av tjenesten, dens organisering og leveransemodell, tjenestestrategi, - design, - innføring, -forbedring og avvikling. | L5: Bevares og avleveres til Byarkivet
A6: 50000 | B6: 100 | C6: 2 | D6: 2 | E6: E1 | F6: Underfunksjon | G6: 50102 | H6: 5 | I6: D1 - 02 | J6: Administrere kundeforhold innen regnskapstjenester | K6: Dokumentasjon fra avtaleopprettelse til -avvikling, tjenesteavtale, endringshåndtering, referat fra kundemøter, klager, notater og rapporter. | L6: Kasseres 10 år etter avslutning
A7: 50000 | B7: 100 | C7: 3 | D7: 3 | E7: E1 | F7: Underfunksjon | G7: 50103 | H7: 6 | I7: D1 - 03 | J7: Forvalte applikasjoner innen regnskap | K7: Overordnet beskrivelse av system/applikasjon, teknisk dokumentasjon, retningslinjer for systemadministrasjon, rutiner, innholdsmessig oppfølging av eksterne leverandører og leveranser fra disse, for eksempel vedlikehold, oppgraderinger osv. Forhold som har mer merkantilt og kontraktsmessig innhold dokumenteres på E6 | L7: Bevares og avleveres til Byarkivet
A8: 50000 | B8: 100 | C8: 4 | D8: 4 | E8: E1 | F8: Underfunksjon | G8: 50104 | H8: 7 | I8: D1 - 04 | J8: Vedlikeholde og drifte regnskapsapplikasjoner | K8: Håndtering av innmeldte avvik, hendelser og problemer, oppfølging overfor kunde og leverandør, brukerstøttehåndtering. | L8: Kasseres 10 år etter avslutning
A9: 50000 | B9: 200 | D9: F | E9: E | F9: Funksjon | G9: 50200 | H9: 23 | I9: D2 | J9: Levere lønnstjenester
A10: 50000 | B10: 200 | C10: 0 | D10: 0 | E10: E2 | F10: Underfunksjon | G10: 50200 | H10: 24 | I10: D2 - 00 | J10: Dokumentere generelt om lønnstjenester | K10: Her legges kun dokumenter som ikke naturlig hører hjemme i andre koder og som man vet at ikke har særlig dokumentasjonsverdi. Dersom man mener dokumentet har lengre dokumentasjonsverdi skal det legges på andre koder. | L10: Kasseres 5 år etter avslutning
A11: 50000 | B11: 200 | C11: 1 | D11: 1 | E11: E2 | F11: Underfunksjon | G11: 50201 | H11: 25 | I11: D2 - 01 | J11: Forvalte lønnstjenester | K11: Styringsdokumenter i form av for eksempel forvaltningsdokument, overordnede beskrivelser av tjenesten, dens organisering og leveransemodell, tjenestestrategi, - design, - innføring, -forbedring og avvikling. | L11: Bevares og avleveres til Byarkivet
A12: 50000 | B12: 200 | C12: 2 | D12: 2 | E12: E2 | F12: Underfunksjon | G12: 50202 | H12: 26 | I12: D2 - 02 | J12: Administrere kundeforhold - lønnstjenester | K12: Dokumentasjon av avtaleopprettelse, tjenesteavtale, endringshåndtering, referat fra kundemøter, klager, notater og rapporter. | L12: Kasseres 10 år etter avslutning
A13: 50000 | B13: 200 | C13: 3 | D13: 3 | E13: E2 | F13: Underfunksjon | G13: 50203 | H13: 27 | I13: D2 - 03 | J13: Forvalte applikasjoner innen lønn | K13: Overordnet beskrivelse av system/applikasjon, teknisk dokumentasjon, retningslinjer for systemadministrasjon, rutiner, innholdsmessig oppfølging av eksterne leverandører og leveranser fra disse, for eksempel vedlikehold, oppgraderinger osv. Forhold som har mer merkantilt og kontraktsmessig innhold dokumenteres på E6 | L13: Bevares og avleveres til Byarkivet
A14: 50000 | B14: 200 | C14: 4 | D14: 4 | E14: E2 | F14: Underfunksjon | G14: 50204 | H14: 28 | I14: D2 - 04 | J14: Vedlikeholde og drifte lønnsapplikasjoner | K14: Dokumentasjon av lønnsavvik, prosesser ved for mye utbetalt lønn, løpende korrespondanse, håndtering av innmeldte avvik, hendelser og problemer, oppfølging overfor kunde og leverandør, brukerstøttehåndtering. | L14: Kasseres 10 år etter avslutning
A15: 50000 | B15: 300 | D15: F | E15: E | F15: Funksjon | G15: 50300 | H15: 44 | I15: D3 | J15: Levere tjenester innen kompetanse-, ledelses- og organisasjonsutvikling
A16: 50000 | B16: 300 | C16: 0 | D16: 0 | E16: E3 | F16: Underfunksjon | G16: 50300 | H16: 45 | I16: D3 - 00 | J16: Dokumentere generelt om kompetanse-, ledelses- og organisasjonsutvikling | K16: Her legges kun dokumenter som ikke naturlig hører hjemme i andre koder og som man vet at ikke har særlig dokumentasjonsverdi. Dersom man mener dokumentet har lengre dokumentasjonsverdi skal det legges på andre koder. | L16: Kasseres 5 år etter avslutning
A17: 50000 | B17: 300 | C17: 1 | D17: 1 | E17: E3 | F17: Underfunksjon | G17: 50301 | H17: 46 | I17: D3 - 01 | J17: Forvalte kurs- og kompetansetjenester | K17: Styringsdokumenter, kurs- og tjenestekatalog, tjenestenes organisering og leveransemodell. Dokumentasjon av avtaleoppfølging mot eksterne leverandører, endringshåndtering legges under E6. | L17: Bevares og avleveres til Byarkivet
A18: 50000 | B18: 300 | C18: 2 | D18: 2 | E18: E3 | F18: Underfunksjon | G18: 50302 | H18: 47 | I18: D3 - 02 | J18: Administrere kundeforhold, kurs- og kompetansetjenester | K18: Dokumentasjon av avtaleopprettelse, tjenesteavtale, endringshåndtering, referat fra kundemøter, klager, notater og rapporter. | L18: Kasseres 10 år etter avslutning
A19: 50000 | B19: 300 | C19: 3 | D19: 3 | E19: E3 | F19: Underfunksjon | G19: 50303 | H19: 48 | I19: D3 - 03 | J19: Løpende oppfølging - kurs- og kompetansetjenester | K19: Løpende dokumentasjon av tjenesteleveransen. | L19: Kasseres 10 år etter avslutning
A20: 50000 | B20: 300 | C20: 4 | D20: 4 | E20: E3 | F20: Underfunksjon | G20: 50304 | H20: 49 | I20: D3 - 04 | J20: Forvalte konsulenttjenester innen organisasjonsutvikling | K20: Styringsdokumenter, kurs- og tjenestekatalog, tjenestenes organisering og leveransemodell, avtaleoppfølging mot eksterne leverandører, endringshåndtering. | L20: Bevares og avleveres til Byarkivet
A21: 50000 | B21: 300 | C21: 5 | D21: 5 | E21: E3 | F21: Underfunksjon | G21: 50305 | H21: 50 | I21: D3 - 05 | J21: Administrere kundeforhold - organisasjonsutvikling | K21: Dokumentasjon av avtaleopprettelse, tjenesteavtale, endringshåndtering, referat fra kundemøter, klager, notater og rapporter innen personalomstilling, ledelses- og organisasjonsutviklingstjenester. | L21: Kasseres 10 år etter avslutning
A22: 50000 | B22: 300 | C22: 6 | D22: 6 | E22: E3 | F22: Underfunksjon | G22: 50306 | H22: 51 | I22: D3 - 06 | J22: Løpende oppfølging - organisasjonsutvikling | K22: Løpende dokumentasjon av tjenesteleveransen, for eksempel personalomstillingssaker, tilsettingssaker. | L22: Kasseres 3 år etter avslutning
A23: 50000 | B23: 400 | D23: F | E23: E | F23: Funksjon | G23: 50400 | H23: 65 | I23: D4 | J23: Levere personaltjenester | O23: Anskaffelser innen levering av tjenester til innbyggere finnes under respektive fagfelt
A24: 50000 | B24: 400 | C24: 0 | D24: 0 | E24: E4 | F24: Underfunksjon | G24: 50400 | H24: 66 | I24: D4 - 00 | J24: Dokumentere generelt om personaltjenester | K24: Her legges kun dokumenter som ikke naturlig hører hjemme i andre koder og som man vet at ikke har særlig dokumentasjonsverdi. Dersom man mener dokumentet har lengre dokumentasjonsverdi skal det legges på andre koder. | L24: Kasseres 5 år etter avslutning
A25: 50000 | B25: 400 | C25: 1 | D25: 1 | E25: E4 | F25: Underfunksjon | G25: 50401 | H25: 67 | I25: D4 - 01 | J25: Forvalte personaltjenester | K25: Styringsdokumenter i form av for eksempel forvaltningsdokument, overordnede beskrivelser av tjenesten, dens organisering og leveransemodell, tjenestestrategi, - design, - innføring, -forbedring og avvikling. | L25: Bevares og avleveres til Byarkivet
A26: 50000 | B26: 400 | C26: 2 | D26: 2 | E26: E4 | F26: Underfunksjon | G26: 50402 | H26: 68 | I26: D4 - 02 | J26: Administrere kundeforhold personaltjenester | K26: Dokumentasjon av avtaleopprettelse, tjenesteavtale, endringshåndtering, referat fra kundemøter, klager, notater og rapporter. | L26: Kasseres 10 år etter avslutning
A27: 50000 | B27: 400 | C27: 3 | D27: 3 | E27: E4 | F27: Underfunksjon | G27: 50403 | H27: 69 | I27: D4 - 03 | J27: Forvalte HR-applikasjoner | K27: Overordnet beskrivelse av system/applikasjon, teknisk dokumentasjon, retningslinjer for systemadministrasjon, rutiner, innholdsmessig oppfølging av eksterne leverandører og leveranser fra disse, for eksempel vedlikehold, oppgraderinger osv. Forhold som har mer merkantilt og kontraktsmessig innhold dokumenteres på E6. | L27: Bevares og avleveres til Byarkivet
A28: 50000 | B28: 400 | C28: 4 | D28: 4 | E28: E4 | F28: Underfunksjon | G28: 50404 | H28: 70 | I28: D4 - 04 | J28: Vedlikeholde og drifte HR-applikasjoner | K28: Løpende korrespondanse, håndtering av innmeldte avvik, hendelser og problemer, oppfølging overfor kunde og leverandør, brukerstøttehåndtering. | L28: Kasseres 10 år etter avslutning
A29: 50000 | B29: 400 | C29: 5 | D29: 5 | E29: E4 | F29: Underfunksjon | G29: 50405 | H29: 71 | I29: D4 - 05
A30: 50000 | B30: 400 | C30: 6 | D30: 6 | E30: E4 | F30: Underfunksjon | G30: 50406 | H30: 72 | I30: D4 - 06
A31: 50000 | B31: 400 | C31: 7 | D31: 7 | E31: E4 | F31: Underfunksjon | G31: 50407 | H31: 73 | I31: D4 - 07
A32: 50000 | B32: 400 | C32: 8 | D32: 8 | E32: E4 | F32: Underfunksjon | G32: 50408 | H32: 74 | I32: D4 - 08
A33: 50000 | B33: 400 | C33: 9 | D33: 9 | E33: E4 | F33: Underfunksjon | G33: 50409 | H33: 75 | I33: D4 - 09
A34: 50000 | B34: 400 | C34: 10 | D34: 10 | E34: E4 | F34: Underfunksjon | G34: 50420 | H34: 76 | I34: D4 - 10
A35: 50000 | B35: 500 | D35: F | E35: E | F35: Funksjon | G35: 50500 | H35: 86 | I35: D5 | J35: Levere konserninnkjøp- og anskaffelsestjenester | O35: Anskaffelser innen levering av tjenester til innbyggere finnes under respektive fagfelt
A36: 50000 | B36: 500 | C36: 0 | D36: 0 | E36: E5 | F36: Underfunksjon | G36: 50500 | H36: 87 | I36: E5 - 00 | J36: Dokumentere generelt om konserninnkjøp- og anskaffelsestjenester | K36: Her legges kun dokumenter som ikke naturlig hører hjemme i andre koder og som man vet ikke har særlig dokumentasjonsverdi. Dersom man mener dokumentet har lengre dokumentasjonsverdi skal det legges på andre koder. | L36: Kasseres 5 år etter avslutning
A37: 50000 | B37: 500 | C37: 1 | D37: 1 | E37: E5 | F37: Underfunksjon | G37: 50501 | H37: 88 | I37: D5 - 01 | J37: Planlegge konsernanskaffelser | K37: Avklare behov. Lage konkurranse strategi. Forberede gjennomføring av konkurranse. Lage tildelingskriterier. Mandat for anskaffelse Behovskartlegging. Anskaffelsensformål. Markedsundersøkelse. Alternativvurdering. Beslutning for anskaffelse. Konkurransestrategi. Risikokartlegging. Konkurransegrunnlag. Gjennomføringsplan. Ansvarsmatrise. Kravspesifikasjon. Tildelingskriterier. Kvalifikasjonskrav. Kontraktsvilkår. Konkurranseregler. | L37: Bevares og avleveres til Byarkivet | M37: 032.5 Konkurranseutsetting | N37: Lov om offentlige anskaffelser
A38: 50000 | B38: 500 | C38: 2 | D38: 2 | E38: E5 | F38: Underfunksjon | G38: 50502 | H38: 89 | I38: D5 - 02 | J38: Gjennomføre konkurranse på konsernanskaffelser | K38: Konkurransegrunnlag. Innstilling. Åpningsprotokoll. Utlysningstekst. Spørsmål fra intressenter. Svar på spørsmål fra avtaleansvarlig. Tilleggsinfo som oppdragsgiver legger på Doffin. Referat tilbyderkonferanse. Tilbud. Legg merke til at vinnende tilbud overføres til E5 - 03 | L38: Kasseres 10 år etter avslutning | M38: *Legges på saksområde | N38: Lov om offentlige anskaffelser
A39: 50000 | B39: 500 | C39: 3 | D39: 3 | E39: E5 | F39: Underfunksjon | G39: 50503 | H39: 90 | I39: D5 - 03 | J39: Inngå avtale for konsernanskaffelser | K39: Anskaffelsesprotokoll. Vinner tilbud. Signerte avtaler, signerte endringsordre. | L39: Bevares og avleveres til Byarkivet | N39: Lov om offentlige anskaffelser, anskaffelsesforskriften
A40: 50000 | B40: 500 | C40: 4 | D40: 4 | E40: E5 | F40: Underfunksjon | G40: 50504 | H40: 91 | I40: D5 - 04 | J40: Følge opp konsernovergripende avtaler | K40: Kontrakter og dokumentasjon av deres merkantile oppfølging, for eksempel dokumentasjon av avviksbehandling, reklamasjoner, garantioppfølging, omlevering, dagbøter, erstatning, tilbakebetaling, kontrollaktiviteter. | L40: Kasseres 10 år etter avslutning | M40: *Kontrakter legges på saksområde | N40: Lov om offentlige anskaffelser
A41: 50000 | B41: 500 | C41: 5 | D41: 5 | E41: E5 | F41: Underfunksjon | G41: 50505 | H41: 92 | I41: D5 - 05 | J41: Oppfølging av skatt, lønns- og arbeidsvilkår hos leverandører og underleverandører på konsernavtaler | K41: Fullmakt for innhenting av utvidet skatteattest. Utvidet skatteattest. Søknader om bruk av underleverandører. Godkjenning av underleverandører og kopi av ansattes legitimasjon, vitnemål. Annen dokumentasjon knyttet til bekjempelse av arbeidslivskriminalitet og sosial dumping. | L41: Kasseres 10 år etter avslutning | M41: 218 Arbeidervern, arbeidstilsyn | N41: Lov om offentlige anskaffelser, anskaffelsesforskriften
E42: E6 | F42: Underfunksjon | G42: 50506 | H42: 93 | I42: D5 - 06 | J42: Administrere kundeforhold for innkjøpsfaglig bistand, juridisk bistand og advokattjenester | K42: Dokumentasjon av kundeforholdet med andre virksomheter i Oslo kommune, bestillinger, tjenesteavtaler, endringer, klager, referater fra kundemøter. | L42: Kasseres 10 år etter avslutning
E43: E7 | F43: Underfunksjon | G43: 50507 | H43: 94 | I43: D5 - 07 | J43: Bistand til rettsaker | K43: Dokumentasjon av rettssaker og -forhandlinger hvor Kommuneadvokaten representerer | L43: Bevares og avleveres til Byarkivet
E44: E8 | F44: Underfunksjon | G44: 50508 | H44: 95 | I44: D5 - 08 | J44: Bistand til staten i rettsaker | K44: Dokumentasjon av rettssaker og -forhandlinger hvor Kommuneadvokaten representerer | L44: Bevares og avleveres til Byarkivet
E45: E9 | F45: Underfunksjon | G45: 50509 | H45: 96 | I45: D5 - 09 | J45: Dokumentere bistand utenfor rettsak | K45: Dokumentasjon av juridiske prosesser hvor UKE-KOI eller Kommuneadvoktanen representerer. For eksempel dokumentasjon av KOFA-saker, anskaffelsesfaglig bistand ifm konkurranser. | L45: Bevares og avleveres til Byarkivet
E46: E10 | F46: Underfunksjon | G46: 50510 | H46: 97 | I46: D5 - 10
A47: 50000 | B47: 600 | D47: F | E47: E | F47: Funksjon | G47: 50600 | H47: 107 | I47: D6 | J47: Levere IKT-tjenester, -applikasjoner og -infrastrukstur
A48: 50000 | B48: 600 | C48: 0 | D48: 0 | E48: E6 | F48: Underfunksjon | G48: 50600 | H48: 108 | I48: D6 - 00 | J48: Dokumentere generelt om IKT-tjenester, -applikasjoner og -infrastruktur | K48: Her legges kun dokumenter som ikke naturlig hører hjemme i andre koder og som man vet ikke har særlig dokumentasjonsverdi. Dersom man mener dokumentet har lengre dokumentasjonsverdi skal det legges på andre koder. | L48: Kasseres 5 år etter avslutning
A49: 50000 | B49: 600 | C49: 1 | D49: 1 | E49: E6 | F49: Underfunksjon | G49: 50601 | H49: 109 | I49: D6 - 01 | J49: Forvalte IKT-tjenester, -applikasjoner og -infrastruktur | K49: Dokumentasjon av etablering, endring og avvikling av tjenesten. Styringsdokumenter i form av for eksempel forvaltningsdokument, overordnede beskrivelser av tjenesten/applikasjonen/infrastrukturen, tjenesteorganisering og leveransemodell, tjenestestrategi, - design, - innføring, -forbedring og avvikling, årshjul, notater, rapporter og særdokumenter som lisensregnskap. | L49: Bevares og avleveres til Byarkivet | M49: 183 EDB-maskiner, - utstyr og programvare
A50: 50000 | B50: 600 | C50: 2 | D50: 2 | E50: E6 | F50: Underfunksjon | G50: 50602 | H50: 110 | I50: D6 - 02 | J50: Avtale og leverandøroppfølging - IKT-tjenester, -applikasjoner,- infrastruktur | K50: Dokumentasjon av oppfølging av eksterne leverandører og leveranser fra disse, for eksempel vedlikeholdeholdsavtaler, oppgraderinger osv. Periodiske rapporter, notater. | L50: Bevares og avleveres til Byarkivet | M50: 183 EDB-maskiner, - utstyr og programvare
A51: 50000 | B51: 600 | C51: 3 | D51: 3 | E51: E6 | F51: Underfunksjon | G51: 50603 | H51: 111 | I51: D6 - 03 | J51: Administrere kundeforhold - IKT-tjenester og -bistand | K51: Dokumentasjon av kundeforholdet med andre virksomheter i Oslo kommune på leveranse av IKT-tjenester og -bistand, bestillinger, tjenesteavtaler, endringer, klager, referater fra kundemøter. | L51: Kasseres 10 år etter avslutning
A52: 50000 | B52: 600 | C52: 4 | D52: 4 | E52: E6 | F52: Underfunksjon | G52: 50604 | H52: 112 | I52: D6 - 04 | J52: Vedlikeholde og drifte IKT-tjenester, -applikasjoner og -infrastruktur | K52: Håndtering av innmeldte avvik, hendelser og problemer, oppfølging overfor kunde og leverandør, brukerstøttehåndtering. | L52: Kasseres 10 år etter avslutning
E53: Underfunksjon | F53: Underfunksjon | G53: 50605 | H53: 113 | I53: D6 - 05 | J53: Følge opp informasjonssikkerhet | K53: Dokumentasjon av informasjonssikkerheten i sentralt teknisk miljø og sentralt forvaltede applikasjoner, dokumentasjon på hendelser, statistikker, ROS-analyser, dokumentasjon av sikkerhetsrevisjoner, oppfølging av tiltak. | L53: Bevares og avleveres til Byarkivet | M53: 183 EDB-maskiner, - utstyr og programvare | N53: Instruks for informasjonssikkehet, eForvaltningsforskriften, personopplysningsloven, sikkehetsloven
A54: 50000 | B54: 700 | D54: F | E54: E | F54: Funksjon | G54: 50700 | H54: 128 | I54: D7 | J54: Levere arkiv- og dokumentasjonsforvaltningstjenester
A55: 50000 | B55: 700 | C55: 0 | D55: 0 | E55: E7 | F55: Underfunksjon | G55: 50700 | H55: 129 | I55: D7 - 00 | J55: Dokumentere generelt om arkiv og dokumentasjonsforvaltningstjenester | K55: Her legges kun dokumenter som ikke naturlig hører hjemme i andre koder og som man vet ikke har særlig dokumentasjonsverdi. Dersom man mener dokumentet har lengre dokumentasjonsverdi skal det legges på andre koder. | L55: Kasseres 5 år etter avslutning
A56: 50000 | B56: 700 | C56: 1 | D56: 1 | E56: E7 | F56: Underfunksjon | G56: 50701 | H56: 130 | I56: D7 - 01 | J56: Gi råd og veilede innen arkiv- og dokumentasjonsforvaltning | K56: Tolkning av regelverk, kurs i arkivfag. | L56: Kasseres 10 år etter avslutning
A57: 50000 | B57: 700 | C57: 2 | D57: 2 | E57: E7 | F57: Underfunksjon | G57: 50702 | H57: 131 | I57: D7 - 02 | J57: Utøve myndighet innen arkiv- og dokumentasjonsforvaltning | K57: Utføre tilsyn med arkivskapere, Godkjenne elektronisk arkiv, Bevarings- og kassasjonsvurdering, Arkivutvikling, utarbeide rutiner, regelverk og klassifikasjonssystem/arkivnøkkel. | L57: Bevares og avleveres til Byarkivet
A58: 50000 | B58: 700 | C58: 3 | D58: 3 | E58: E7 | F58: Underfunksjon | G58: 50703 | H58: 132 | I58: D7 - 03 | J58: Utføre depotoppgaver | K58: Tilsyn i forbindelse med avleveringer. Motta og oppbevare avleveringer/deponeringer. Tilgjengeliggjøring. Drift og vedlikehold av arkivdepot. Håndtering av innsyn i arkivmateriale i depot. | L58: Bevares og avleveres til Byarkivet
A59: 50000 | B59: 700 | C59: 4 | D59: 4 | E59: E7 | F59: Underfunksjon | G59: 50704 | H59: 133 | I59: D7 - 04 | J59: Administrere kundeforhold - arkiv- og dokumentasjonsforvaltning | K59: Ordningsoppdrag, avtale om utleie av arkivfaglig ressurs | L59: Kasseres 10 år etter avslutning
A60: 50000 | B60: 800 | D60: F | E60: E | F60: Funksjon | G60: 50800 | H60: 149 | I60: D8 | J60: Levere fellestjenester innen kommunikasjon og samfunnskontakt
A61: 50000 | B61: 800 | C61: 0 | D61: 0 | E61: E8 | F61: Underfunksjon | G61: 50800 | H61: 150 | I61: D8 - 00 | J61: Dokumentere generelt om kommunikasjon og samfunnskontakt | K61: Her legges kun dokumenter som ikke naturlig hører hjemme i andre koder og som man vet ikke har særlig dokumentasjonsverdi. Dersom man mener dokumentet har lengre dokumentasjonsverdi skal det legges på andre koder. | L61: Kasseres 5 år etter avslutning
A62: 50000 | B62: 800 | C62: 1 | D62: 1 | E62: E8 | F62: Underfunksjon | G62: 50801 | H62: 151 | I62: D8 - 01 | J62: Forvalte kommunikasjons-, samfunnskontakt- og medietjenester | K62: Planer for webforvaltning, utarbeide designhåndbok. | L62: Bevares og avleveres til Byarkivet
A63: 50000 | B63: 800 | C63: 2 | D63: 2 | E63: E8 | F63: Underfunksjon | G63: 50802 | H63: 152 | I63: D8 - 02 | J63: Utføre kommunikasjons-, samfunnskontakt- og medieoppgaver | K63: Utarbeidelse av taler, foredrag, pressemeldinger, publikasjoner, bruker- og markedsundersøkelser, håndtere mediehenvendelser. | L63: Bevares og avleveres til Byarkivet
A64: 50000 | B64: 800 | C64: 3 | D64: 3 | E64: E8 | F64: Underfunksjon | G64: 50803 | H64: 153 | I64: D8 - 03 | J64: Administrere kundeforhold - kommunikasjons-, samfunnskontakt- og medietjenester | K64: Dokumentasjon av kundeforholdet med andre virksomheter i Oslo kommune, bestillinger, tjenesteavtaler, endringer, klager, referater fra kundemøter. | L64: Kasseres 3 år etter avslutning
A65: 50000 | B65: 800 | C65: 4 | D65: 4 | E65: E8 | F65: Underfunksjon | G65: 50804 | H65: 154 | I65: D8 - 04 | J65: Utføre omvisningsarbeid og guiding | K65: Dokumentasjon om guiding, omvisning, publikumshenvendelser. | L65: Kasseres 10 år etter avslutning
A66: 50000 | B66: 800 | C66: 5 | D66: 5 | E66: E8 | F66: Underfunksjon | G66: 50805 | H66: 155 | I66: D8 - 05
A67: 50000 | B67: 800 | C67: 6 | D67: 6 | E67: E8 | F67: Underfunksjon | G67: 50806 | H67: 156 | I67: D8 - 06
A68: 50000 | B68: 300 | C68: 16 | D68: 16 | E68: E3 | F68: Underfunksjon | G68: =A68+B68+C68+D68 -> 50332 | H68: 61 | I68: D8 - 07
A69: 50000 | B69: 300 | C69: 17 | D69: 17 | E69: E3 | F69: Underfunksjon | G69: 50334 | H69: 62 | I69: D8 - 08
A70: 50000 | B70: 300 | C70: 18 | D70: 18 | E70: E3 | F70: Underfunksjon | G70: 50336 | H70: 63 | I70: D8 - 09
A71: 50000 | B71: 300 | C71: 19 | D71: 19 | E71: E3 | F71: Underfunksjon | G71: 50338 | H71: 64 | I71: D8 - 10
A72: 50000 | B72: 400 | D72: F | E72: E | F72: Funksjon | G72: =A72+B72+C72 -> 50400 | H72: 65 | I72: D9 | J72: Drive prosjekter og utvikling innen konsernadministrative tjenester
A73: 50000 | B73: 400 | C73: 0 | D73: 0 | E73: E4 | F73: Underfunksjon | G73: 50400 | H73: 66 | I73: D9 - 00 | J73: Dokumentere generelt om prosjekter og utvikling innen konsernadministrative tjenester | K73: Her legges kun dokumenter som ikke naturlig hører hjemme i andre koder og som man vet ikke har særlig dokumentasjonsverdi. Dersom man mener dokumentet har lengre dokumentasjonsverdi skal det legges på andre koder. | L73: Kasseres 5 år etter avslutning
A74: 50000 | B74: 400 | C74: 1 | D74: 1 | E74: E4 | F74: Underfunksjon | G74: 50401 | H74: 67 | I74: D9 - 01 | J74: Planlegge, gjennomføre og styre prosjekter og utvikling innen konsernadministrative tjenester | K74: Overordnet dokumentasjon om prosjekter innen egenforvaltning. Styringsdokumenter og styringsgruppe for prosjekt, for eksempel prosjektbegrunnelse, -forslag og -mandat, gevinstrealiseringsplan, intressentregister, usikkerhetsanalyse. Dokumentasjon av gjennomføring av forprosjekt og prosjekt. | L74: Bevares og avleveres til Byarkivet
A75: 50000 | B75: 400 | C75: 2 | D75: 2 | E75: E4 | F75: Underfunksjon | G75: 50402 | H75: 68 | I75: D9 - 02 | J75: Evaluere, gevinstrealisere og avslutte prosjekter og utvikling innen konsernadministrative tjenester | K75: Leveransedokument. Sluttrapport. | L75: Bevares og avleveres til Byarkivet
A76: 50000 | B76: 400 | C76: 3 | D76: 3 | E76: E4 | F76: Underfunksjon | G76: 50403 | H76: 69 | I76: D9 - 03
A77: 50000 | B77: 400 | C77: 4 | D77: 4 | E77: E4 | F77: Underfunksjon | G77: 50404 | H77: 70 | I77: D9 - 04
A78: 50000 | B78: 400 | C78: 5 | D78: 5 | E78: E4 | F78: Underfunksjon | G78: 50405 | H78: 71 | I78: D9 - 05
A79: 50000 | B79: 400 | C79: 6 | D79: 6 | E79: E4 | F79: Underfunksjon | G79: 50406 | H79: 72 | I79: D9 - 06

Sheet E
A1: Nivå 1 | B1: Nivå 2 | C1: Nivå 3 | D1: Nummer | E1: OvFrliggFnFF | F1: Funksjon | H1: Løpenummer | I1: Kode | J1: Tittel | K1: Her legges | L1: BK-vurdering | M1: Tidligere arkivnøkkel | N1: Aktuelt lovverk | O1: Kommentar
A2: 60000 | D2: H | F2: Hovedfunksjon | G2: =A2+B2+C2 -> 60000 | H2: 1 | I2: E | J2: Levere eiendoms- og byggtjenester
A3: 60000 | B3: 100 | D3: F | E3: F | F3: Funksjon | G3: 60100 | H3: 2 | I3: E1 | J3: Forvalte eiendom og rettigheter
A4: 60000 | B4: 100 | C4: 0 | D4: 0 | E4: F1 | F4: Underfunksjon | G4: 60100 | H4: 3 | I4: E1 - 00 | J4: Dokumentere generelt om forvaltning av grunneiendom og rettigheter | K4: Her legges kun dokumenter som ikke naturlig hører hjemme i andre koder og som man vet at ikke har særlig dokumentasjonsverdi. Dersom man mener dokumentet har lengre dokumentasjonsverdi skal det legges på andre koder. | L4: Kasseres 5 år etter avslutning | M4: 171 Kommunale eiendomsverv (utbygget), 170.2 Prisbestemmelser, endomstakser, 170.3 Utnyttelse av kommunale tomtearealer, erstatningstomter, 173 Salg og bortfeste av kommunal eiendom | N4: Avhendingslova, Lov om kommunalt forkjøpsrett til leiegårder (1977) med forskrift (1993)
A5: 60000 | B5: 100 | C5: 1 | D5: 1 | E5: F1 | F5: Underfunksjon | G5: 60101 | H5: 4 | I5: E1 - 01 | J5: Erverve eiendom | K5: Dokumentasjon av kjøp av eiendom, for eksempel prospekt, verdivurdering, takst, anbudsdokumenter, kontrakt, dokumentasjon knyttet til overføring, overtakelsesprotokoller. | L5: Bevares og avleveres til Byarkivet | M5: 171 Kommunale eiendomsverv (utbygget), 170.2 Prisbestemmelser, endomstakser, 170.3 Utnyttelse av kommunale tomtearealer, erstatningstomter, 173 Salg og bortfeste av kommunal eiendom | N5: Avhendingslova, Lov om kommunalt forkjøpsrett til leiegårder (1977) med forskrift (1993)
A6: 60000 | B6: 100 | C6: 2 | D6: 2 | E6: F1 | F6: Underfunksjon | G6: 60102 | H6: 5 | I6: E1 - 02 | J6: Selge eiendom | K6: Dokumentasjon av salg av eiendom, for eksempel av innhenting av takst/verdivurdering, kartlegging av forurensning, dokumentasjon av salgsprosess og salg. | L6: Ikke vurdert | M6: 173 Salg og bortfeste av kommunal eiendom
A7: 60000 | B7: 100 | C7: 3 | D7: 3 | E7: F1 | F7: Underfunksjon | G7: 60103 | H7: 6 | I7: E1 - 03 | J7: Ekspropriere eiendom | K7: Dokumentasjon knyttet til ekspropriasjonsprosessen. | L7: Bevares og avleveres til Byarkivet | M7: 172 Makeskifter | N7: Oreigningslova, veilova, plan- og bygningsloven
A8: 60000 | B8: 100 | C8: 4 | D8: 4 | E8: F1 | F8: Underfunksjon | G8: 60104 | H8: 7 | I8: E1 - 04 | J8: Bortfeste av eiendom | K8: Dokumentasjon av fastsatt verdi, utlysning og interessentkartlegging, inngåelse av kontrakt, inngåelse av depositum, festekontrakt, festeforholdskorrespondanse, kontroll av rentenota, oppfølging av mislighold, regulering av feste. | L8: Bevares og avleveres til Byarkivet | M8: 173 Salg og bortfeste av kommunal eiendom | N8: Lov om tomtefeste
A9: 60000 | B9: 100 | C9: 5 | D9: 5 | E9: F1 | F9: Underfunksjon | G9: 60105 | H9: 8 | I9: E1 - 05 | J9: Fastsette bruksrett | K9: Korrespondanse og avtaler om bruksrett | L9: Bevares og avleveres til Byarkivet | N9: Servituttlova
A10: 60000 | B10: 100 | C10: 6 | D10: 6 | E10: F1 | F10: Underfunksjon | G10: 60106 | H10: 9 | I10: E1 - 06 | J10: Grensefastsetting | K10: Dokumentasjon av rettigheter og prosessen med å avklare disse. | L10: Bevares og avleveres til Byarkivet | N10: Matrikkellova
A11: 60000 | B11: 100 | C11: 7 | D11: 7 | E11: F1 | F11: Underfunksjon | G11: 60107 | H11: 10 | I11: E1 - 07 | J11: Søke behandling av eiendomstvist | K11: Dokumentasjon av behandling av eiendomstvist | L11: Bevares og avleveres til Byarkivet | N11: Plan- og bygningsloven, veilova, oreigningslova, mv
A12: 60000 | B12: 100 | C12: 8 | D12: 8 | E12: F1 | F12: Underfunksjon | G12: 60108 | H12: 11 | I12: E1 - 08 | J12: Tinglyse | K12: Erklæringer, søknader, dokumentasjon av tinglysningsspørsmål | L12: Kasseres 10 år etter avslutning | M12: 170.4 Tinglysningsspørsmål
A13: 60000 | B13: 100 | C13: 9 | D13: 9 | E13: F1 | F13: Underfunksjon | G13: 60109 | H13: 12 | I13: E1 - 09 | J13: Dokumentere kommunens eierskap og rettigheter til fast eiendom | K13: Hjemmelsdokumentasjon. | L13: Bevares og avleveres til Byarkivet | N13: Matrikkellova
A14: 60000 | B14: 100 | C14: 10 | D14: 10 | E14: F1 | F14: Underfunksjon | G14: =A14+B14+C14+D14 -> 60120 | H14: 13 | I14: E1 - 10 | J14: Dokumentere ledige kommunale bygg | K14: Lister over ledige kommunale bygg, korrespondanse | L14: Kasseres 10 år etter avslutning
A15: 60000 | B15: 100 | C15: 11 | D15: 11 | E15: F1 | F15: Underfunksjon | G15: 60122 | H15: 14 | I15: E2 | J15: Utvikle eiendom
A16: 60000 | B16: 100 | C16: 12 | D16: 12 | E16: F1 | F16: Underfunksjon | G16: 60124 | H16: 15 | I16: E2 - 00 | J16: Dokumentere generelt om eiendomsutvikling | K16: Her legges kun dokumenter som ikke naturlig hører hjemme i andre koder og som man vet at ikke har særlig dokumentasjonsverdi. Dersom man mener dokumentet har lengre dokumentasjonsverdi skal det legges på andre koder. | L16: Kasseres 5 år etter avslutning | N16: Plan- og bygningsloven
A17: 60000 | B17: 100 | C17: 13 | D17: 13 | E17: F1 | F17: Underfunksjon | G17: 60126 | H17: 16 | I17: E2 - 01 | J17: Stille forslag til regulering og omregulering | K17: Bestilling fra bestiller, svar på bestilling, stedsanalyse, volumskisse, møtereferat, korrespondanse med PBE: bestilling av oppstartsmøte, innkalling osv, utarbeide planforslag. | L17: Bevares og avleveres til Byarkivet | M17: 170.7 Utarbeidelse av reguleringsplaner ut fra kommunale eiendomsinteresser | N17: Plan- og bygningsloven | O17: Bevares av PBE
A18: 60000 | B18: 100 | C18: 14 | D18: 14 | E18: F1 | F18: Underfunksjon | G18: 60128 | H18: 17 | I18: E2 - 02 | J18: Svare på forslag om areal-, transport-, reguleringsplaner | K18: Høringsuttalelser, svar på nabovarsler i byggesaker. | L18: Bevares og avleveres til Byarkivet | M18: 170.7 Utarbeidelse av reguleringsplaner ut fra kommunale eiendomsinteresser | N18: Plan- og bygningsloven | O18: Bevares av PBE
A19: 60000 | B19: 100 | C19: 15 | D19: 15 | E19: F1 | F19: Underfunksjon | G19: 60130 | H19: 18 | I19: E2 - 03 | J19: Utvikle tomter og områder til kommunalt bruk | K19: Dialog om utbygging, intensjonsavtaler og utbyggingsavtaler. | L19: Bevares og avleveres til Byarkivet | M19: 170.7 Utarbeidelse av reguleringsplaner ut fra kommunale eiendomsinteresser | O19: Grenseoppgang til byutviklings- og eiendomsprosjekter for for eksempel sektorer.
A20: 60000 | B20: 100 | C20: 16 | D20: 16 | E20: F1 | F20: Underfunksjon | G20: 60132 | H20: 19 | I20: E3 | J20: Forvaltning, drift og vedlikehold av bygg og tomt
A21: 60000 | B21: 100 | C21: 17 | D21: 17 | E21: F1 | F21: Underfunksjon | G21: 60134 | H21: 20 | I21: E3 - 00 | J21: Dokumentere generelt om forvaltning, drift og vedlikehold av bygg og tomt | K21: Her legges kun dokumenter som ikke naturlig hører hjemme i andre koder og som man vet at ikke har særlig dokumentasjonsverdi. Dersom man mener dokumentet har lengre dokumentasjonsverdi skal det legges på andre koder. | L21: Kasseres 5 år etter avslutning | M21: 176 Vedlikehold og drift av eiendommene (utbygget) | N21: Husleielova
A22: 60000 | B22: 100 | C22: 18 | D22: 18 | E22: F1 | F22: Underfunksjon | G22: 60136 | H22: 21 | I22: E3 - 01 | J22: Forvalte eiendomsobjekt | K22: Dokumentasjon knyttet til skade og forsikring, politianmeldelser, naboforhold, tilknytning til vann- og avløp, strømtilknytning, skatter og avgifter, kunst, oppfølging av tilsyn fra ulike myndigheter, adkomstsaker som ikke hører til bruksrett (jf. E1). | L22: Bevares og avleveres til Byarkivet | M22: 175 Utleie, innleie, disponering av tomter, bygninger og lokaler (utbygget), 161 Eiendomsforsikring, innbo- og løsøreforsikring, 176.5 Hærverk og skade, 177 Naboforhold og adkomstsaker | N22: Husleielova
A23: 60000 | B23: 100 | C23: 19 | D23: 19 | E23: F1 | F23: Underfunksjon | G23: 60138 | H23: 22 | I23: E3 - 02 | J23: Forvalte utleieforhold | K23: Etablering, forvaltning og avvikling av leiekontrakt, kundeoppfølging: Henvendelse fra kunde, behovskartlegging, forslag til kontrakt, utleiekontrakt, husleieberegning, fakturering, innkreving, husleieregulering, livssyklusberegning, reforhandlede kontrakter, utløpslister / varsling for utløp, invitasjon til kundemøte, møtereferat, arbeidsordre for kundemøter, kundeundersøkelser, informasjon til kunde , oppsigelse fra leietaker, oppsigelse fra utleier, transport av leiekontakt ved salg / overføring, utkastelse, signert overtakelsesprotokoll. | L23: Kasseres 20 år etter avslutning | M23: 175 Utleie, innleie, disponering av tomter, bygninger og lokaler (utbygget) | N23: Husleielova
A24: 60000 | B24: 200 | D24: F | E24: F | F24: Funksjon | G24: =A24+B24+C24 -> 60200 | H24: 23 | I24: E3 - 03 | J24: Planlegge og evaluere vedlikehold | K24: Tilstandsanalyser, vedlikeholdsplaner, vedlikeholdsbudsjetter, miljøkartlegginger, evalueringsrapporter. | L24: Bevares og avleveres til Byarkivet | M24: 176 Vedlikehold og drift av eiendommene (utbygget) | N24: Byggteknisk forskrift, byggherreforskriften, lov om offentlige anskaffelser
A25: 60000 | B25: 200 | C25: 0 | D25: 0 | E25: F2 | F25: Underfunksjon | G25: 60200 | H25: 24 | I25: E3 - 04 | J25: Gjennomføre vedlikehold | K25: Planlegging, utføring og overlevering av vedlikeholdprosjekter. Forarbeider til anskaffelser knyttet til vedlikeholdsprosjekter ( se E4) For andre dokumenttyper knyttet til vedlikeholdsprosjekter, se eksempler fra E5. Aktuelle dokumenter kan feks. være fremdriftsplan, SHA / SJA dokumenter, korrespondanse med Arbeidstilsynet, avvik- og endringsmeldinger, økonomioppfølging, møtereferater, teknisk dokumentasjon – FDV, rapporter, notater, overtakelsesprotokoller mangelliste med ferdigstillelsesdato. | L25: Kasseres 20 år etter avslutning | M25: 176 Vedlikehold og drift av eiendommene (utbygget) | N25: Byggteknisk forskrift, byggherreforskriften, lov om offentlige anskaffelser
A26: 60000 | B26: 200 | C26: 1 | D26: 1 | E26: F2 | F26: Underfunksjon | G26: 60201 | H26: 25 | I26: E3 - 05 | J26: Planlegge, evaluere og korrigere drift | K26: Driftsplaner, rapporter og evalueringer. | L26: Kasseres 20 år etter avslutning | M26: 176 Vedlikehold og drift av eiendommene (utbygget) | N26: Byggteknisk forskrift, byggherreforskriften
A27: 60000 | B27: 200 | C27: 2 | D27: 2 | E27: F2 | F27: Underfunksjon | G27: 60202 | H27: 26 | I27: E3 - 06 | J27: Utføre drift | K27: Avviks- og forespørselhåndtering, arbeidsordre, melding til utøvende ressurs, behovsmelding, bestilling, melding til kunde om lukket avvik, sluttdokumentasjon, rapport fra leverandør, referater fra driftsmøter. | L27: Kasseres 10 år etter avslutning | M27: 176 Vedlikehold og drift av eiendommene (utbygget) | N27: Byggteknisk forskrift, byggherreforskriften, lov om offentlige anskaffelser
A28: 60000 | B28: 200 | C28: 3 | D28: 3 | E28: F2 | F28: Underfunksjon | G28: 60203 | H28: 27 | I28: E3 - 07 | J28: Planlegge og gjennomføre brannforebyggende tiltak | K28: Kontrollrapporter av slokkeanlegg og utstyr, dokumentasjon av brannøvelser. | L28: Kasseres 10 år etter avslutning | N28: Brann- og eksplosjonsvernloven
I29: E3 - 08 | J29: Følge opp tilsyn og risiko for brann og evaluering etter brann | K29: Tilsynsrapporter, risikokartlegging, evalueringer. | L29: Bevares og avleveres til Byarkivet | N29: Forskrift om brannforebygging, og brann- og eksplosjonsvernloven
A30: 60000 | B30: 200 | C30: 4 | D30: 4 | E30: F2 | F30: Underfunksjon | G30: 60204 | H30: 28 | I30: E3 - 09 | J30: Planlegge og gjennomføre energieffektiviseringtiltak | K30: Planer for energiledelse, innreguleringsprotokoller, driftsoversikter, energikartlegging, møtereferat fra energiledelsesmøter, forslag og utredninger til energieffektiviseringstiltak, rapporter, målinger, dokumentasjon av korrigerende og forebyggende tiltak, kontrollrapporter. | L30: Kasseres 10 år etter avslutning | N30: Ikke hjemlet
A31: 60000 | B31: 200 | C31: 5 | D31: 5 | E31: F2 | F31: Underfunksjon | G31: 60205 | H31: 29 | I31: E3-10 | J31: Dokumentere bygg, anlegg og tekniske installasjoner | K31: FDV-dokumentasjon, tegninger, innreguleringsprotokoller, BREEAM-sertifikat, energimerke. | L31: Bevares og avleveres til Byarkivet | N31: Byggteknisk forskrift
A32: 60000 | B32: 200 | C32: 6 | D32: 6 | E32: F2 | F32: Underfunksjon | G32: 60206 | H32: 30 | I32: E4 | J32: Innkjøp til eiendoms-, anlegg- og byggtjenester
A33: 60000 | B33: 200 | C33: 7 | D33: 7 | E33: F2 | F33: Underfunksjon | G33: 60207 | H33: 31 | I33: E4 - 00 | J33: Dokumentere generelt om innkjøp til eiendoms-, anlegg- og byggtjenester | K33: Her legges kun dokumenter som ikke naturlig hører hjemme i andre koder og som man vet at ikke har særlig dokumentasjonsverdi. Dersom man mener dokumentet har lengre dokumentasjonsverdi skal det legges på andre koder. | L33: Kasseres 5 år etter avslutning
A34: 60000 | B34: 200 | C34: 8 | D34: 8 | E34: F2 | F34: Underfunksjon | G34: 60208 | H34: 32 | I34: E4 - 01 | J34: Anskaffelse rammeavtale | K34: Dokumentasjon knyttet til planlegging og gjennomføring av anskaffelse: behovsvurdering, markedsundersøkelser, kontraktstrategi, konkurransedokumenter, kunngjøring og leverandørvalg, kontrakt. | L34: Bevares og avleveres til Byarkivet | N34: Lov om offentlige anskaffelser, anskaffelsesforskriften
A35: 60000 | B35: 200 | C35: 9 | D35: 9 | E35: F2 | F35: Underfunksjon | G35: 60209 | H35: 33 | I35: E4 - 02 | J35: Avrop rammeavtale | K35: Dokumentasjon av minikonkurranse eller direkteavrop. | L35: Kasseres 10 år etter avslutning
A36: 60000 | B36: 200 | C36: 10 | D36: 10 | E36: F2 | F36: Underfunksjon | G36: =A36+B36+C36+D36 -> 60220 | H36: 34 | I36: E4 - 03 | J36: Følge opp leverandører på rammeavtaler | K36: Referat fra kundemøter, klager, dialog rundt fakturaoppfølging, utløsning av opsjoner, oppfølging av internkontroller, indeksregulering. | L36: Kasseres 10 år etter avslutning
A37: 60000 | B37: 200 | C37: 11 | D37: 11 | E37: F2 | F37: Underfunksjon | G37: 60222 | H37: 35 | I37: E4 - 04 | J37: Gjennomføre enkeltanskaffelse | K37: Dokumentasjon knyttet til planlegging og gjennomføring av anskaffelse: behovsvurdering, markedsundersøkelser, kontraktstrategi, konkurransedokumenter, kunngjøring og leverandørvalg, kontrakt. | L37: Bevares og avleveres til Byarkivet | N37: Lov om offentlige anskaffelser, anskaffelsesforskriften
A38: 60000 | B38: 200 | C38: 12 | D38: 12 | E38: F2 | F38: Underfunksjon | G38: 60224 | H38: 36 | I38: E4 - 05 | J38: Gjennomføre leveranseoppfølging | K38: Dokumentasjon av avtaleimplementering, leveranseoppfølging, varsel om endring, endringsordre, rapportering. | L38: Kasseres 10 år etter avslutning
A39: 60000 | B39: 200 | C39: 13 | D39: 13 | E39: F2 | F39: Underfunksjon | G39: 60226 | H39: 37 | I39: E4 - 06 | J39: Følge opp skatt, lønns- og arbeidsvilkår hos leverandører og underleverandører | K39: Fullmakt for innhenting av utvidet skatteattest. Utvidet skatteattest. Søknader om bruk av underleverandører. Godkjenning av underleverandører og kopi av ansattes legitimasjon, vitnemål. Annen dokumentasjon knyttet til bekjempelse av arbeidslivskriminalitet og sosial dumping. | L39: Kasseres 10 år etter avslutning | M39: 218 Arbeidervern, arbeidstilsyn | N39: Byggherreforskriften §15, Oslomodellen iht Byrådssak 1057/17 Standard kontraksvilkår for Oslo kommunes anskaffelser av varer, tjenester og bygg og anlegg
A40: 60000 | B40: 200 | C40: 14 | D40: 14 | E40: F2 | F40: Underfunksjon | G40: 60228 | H40: 38 | I40: E4 - 07 | J40: Gjennomføre byggeplasskontroller | K40: Mannskapslister. Oversiktslister. Brann- og redniningslister. Rapport fra kontroller og stikkprøver. | L40: Kasseres 10 år etter avslutning | M40: 218 Arbeidervern, arbeidstilsyn, 533 Kontroll på byggeplass | N40: Byggherreforskriften §15, Oslomodellen iht Byrådssak 1057/17 Standard kontraksvilkår for Oslo kommunes anskaffelser av varer, tjenester og bygg og anlegg
A41: 60000 | B41: 200 | C41: 15 | D41: 15 | E41: F2 | F41: Underfunksjon | G41: 60230 | H41: 39 | I41: E5 | J41: Levere byggherretjenester
A42: 60000 | B42: 200 | C42: 16 | D42: 16 | E42: F2 | F42: Underfunksjon | G42: 60232 | H42: 40 | I42: E5 - 00 | J42: Dokumentere generelt om levering av byggherretjenester | K42: Her legges kun dokumenter som ikke naturlig hører hjemme i andre koder og som man vet at ikke har særlig dokumentasjonsverdi. Dersom man mener dokumentet har lengre dokumentasjonsverdi skal det legges på andre koder. | L42: Kasseres 5 år etter avslutning
A43: 60000 | B43: 200 | C43: 17 | D43: 17 | E43: F2 | F43: Underfunksjon | G43: 60234 | H43: 41 | I43: E5 - 01 | J43: Utvikle bygge- eller anleggsprosjekt | K43: Dokumentasjon knyttet til prosjektinitiering og oppstart inkl. informasjon fra bestiller og kunde, eksterne utredninger som ligger til grunn for prosjektet, forslag til mandat, bestemmelse av miljørammer, vurderinger av arealbehov og -utnyttelse, områdeutvikling, produksjon av fornybar energi, transporttiltak, avhengigheter og risikofaktorer, samsvarsvurdering, fram til vedtatt prosjektmandat. | L43: Kasseres 20 år etter avslutning | M43: 174 Byggeplaner | N43: Byggherreforskriften, plan- og bygningsloven, byggteknisk forskrift
A44: 60000 | B44: 200 | C44: 18 | D44: 18 | E44: F2 | F44: Underfunksjon | G44: 60236 | H44: 42 | I44: E5 - 02 | J44: Utvikle leveranse til konseptvalgutredning (KVU) eller mulighetsstudier | K44: Bestilling av bistand, oppdragsbrev, forslag til fremdriftsplan og økonomi, alternativanalyse, lissyklusberegninger(LCC), BREEAM - plan, dokumentasjon om beslutning om bistand, løpende dokumentasjon i form av møtereferater og korrespondanse fram til ferdig KVU og vedtak om innsending til KS1, utredninger, notater, KS1-rapport. | L44: Kasseres 20 år etter avslutning | M44: 174 Byggeplaner | N44: Byggherreforskriften, plan- og bygningsloven, byggteknisk forskrift
A45: 60000 | B45: 200 | C45: 19 | D45: 19 | E45: F2 | F45: Underfunksjon | G45: 60238 | H45: 43 | I45: E5 - 03 | J45: Etablere bygge- eller anleggsprosjekt | K45: Omforent prosjektmandat, milepælsplan, usikkerhetskart, forarbeider til anskaffelser av entreprenør og annen bistand, styringsdokument, godkjent plan for neste fase. | L45: Kasseres 20 år etter avslutning | M45: 174 Byggeplaner | N45: Byggherreforskriften, plan- og bygningsloven, byggteknisk forskrift
A46: 60000 | B46: 300 | D46: F | E46: F | F46: Funksjon | G46: =A46+B46+C46 -> 60300 | H46: 44 | I46: E5 - 04 | J46: Gjennomføre forprosjekt | K46: Dokumentasjon knyttet til oppstart og gjennomføring, referater fra oppstartsmøter, prosjekteringsmøter, notater, særmøter, brukermøter, AMU-vedtak, dokumentasjon av ivaretakelse av arbeidsmiljø, søknader om plan- og byggetillatelser, ferdig løsningsforslag for forprosjekt, miljøoppfølgingsplan. | L46: Kasseres 20 år etter avslutning | M46: 174 Byggeplaner | N46: Byggherreforskriften, plan- og bygningsloven, byggteknisk forskrift
A47: 60000 | B47: 300 | C47: 0 | D47: 0 | E47: F3 | F47: Underfunksjon | G47: 60300 | H47: 45 | I47: E5 - 05 | J47: Forberede gjennomføring av prosjekt | K47: Søknad om rammetillatelse og igangsettelse, etablering av leieforhold, bidrag i KS2-prosess med forprosjektrapport eller KS2-rapport iht investeringsregimet. | L47: Kasseres 20 år etter avslutning | M47: 174 Byggeplaner | N47: Byggherreforskriften, plan- og bygningsloven, byggteknisk forskrift
A48: 60000 | B48: 300 | C48: 1 | D48: 1 | E48: F3 | F48: Underfunksjon | G48: 60301 | H48: 46 | I48: E5 - 06 | J48: Gjennomføre prosjekt - detaljprosjektering og utførelse | K48: Bidrag i prosess fram til godkjente tegninger, revidert klimagassregnskap, endringshåndtering, rapportering inn og ut, møtereferater, tekniske notater, befaringer, SHA-plan, fremdriftsplan, fullmakter, HMS, avtale, Risikoanalalyse (SJA), dokumentasjon på vurdert substitusjonsplikt, dokumentasjon av forberedelser til overtakelse. | L48: Kasseres 20 år etter avslutning | M48: 174 Byggeplaner | N48: Byggherreforskriften, plan- og bygningsloven, byggteknisk forskrift
A49: 60000 | B49: 300 | C49: 2 | D49: 2 | E49: F3 | F49: Underfunksjon | G49: 60302 | H49: 47 | I49: E5 - 07 | J49: Overtakelse og avslutte prosjekt | K49: Plan for avslutningsfasen, overtakelsesforretning, overlevering til leietaker, målinger og protokoller, dokumenasjon av energibruk, sluttrapport og dokumentert beslutning om avslutning. | L49: Kasseres 20 år etter avslutning | M49: 174 Byggeplaner | N49: Byggherreforskriften, plan- og bygningsloven, byggteknisk forskrift
A50: 60000 | B50: 300 | C50: 3 | D50: 3 | E50: F3 | F50: Underfunksjon | G50: 60303 | H50: 48 | I50: E6 | J50: Produksjon av renholdstjenester
A51: 60000 | B51: 300 | C51: 4 | D51: 4 | E51: F3 | F51: Underfunksjon | G51: 60304 | H51: 49 | I51: E6 - 00 | J51: Dokumentere generelt om levering av renholdstjenester | K51: Her legges kun dokumenter som ikke naturlig hører hjemme i andre koder og som man vet at ikke har særlig dokumentasjonsverdi. Dersom man mener dokumentet har lengre dokumentasjonsverdi skal det legges på andre koder. | L51: Kasseres 5 år etter avslutning | M51: 176.3 Renhold | N51: Arbeidsmiljøloven
A52: 60000 | B52: 300 | C52: 5 | D52: 5 | E52: F3 | F52: Underfunksjon | G52: 60305 | H52: 50 | I52: E6 - 01 | J52: Planlegge, utvikle og evaluere renholdstjenester | L52: Kasseres 10 år etter avslutning | M52: 176.3 Renhold | N52: Arbeidsmiljøloven
A53: 60000 | B53: 300 | C53: 6 | D53: 6 | E53: F3 | F53: Underfunksjon | G53: 60306 | H53: 51 | I53: E6 - 02 | J53: Tilby renholdstjenester - opprette kundeforhold | K53: Tilbud på renhold i konkurranser og som direkte bestilling. | L53: Kasseres 10 år etter avslutning | M53: 176.3 Renhold | N53: Arbeidsmiljøloven
A54: 60000 | B54: 300 | C54: 7 | D54: 7 | E54: F3 | F54: Underfunksjon | G54: 60307 | H54: 52 | I54: E6 - 03 | J54: Forvalte kundeforhold - renholdstjenester | K54: Avtaler, endringer av avtale, oppsigelse av avtale. | L54: Kasseres 10 år etter avslutning | M54: 176.3 Renhold | N54: Arbeidsmiljøloven
A55: 60000 | B55: 700 | D55: F | E55: F | F55: Funksjon | G55: =A55+B55+C55 -> 60700 | H55: 128
A56: 60000 | B56: 700 | C56: 0 | D56: 0 | E56: F7 | F56: Underfunksjon | G56: 60700 | H56: 129
A57: 60000 | B57: 700 | C57: 1 | D57: 1 | E57: F7 | F57: Underfunksjon | G57: 60701 | H57: 130
A58: 60000 | B58: 700 | C58: 2 | D58: 2 | E58: F7 | F58: Underfunksjon | G58: 60702 | H58: 131
A59: 60000 | B59: 700 | C59: 3 | D59: 3 | E59: F7 | F59: Underfunksjon | G59: 60703 | H59: 132
A60: 60000 | B60: 700 | C60: 4 | D60: 4 | E60: F7 | F60: Underfunksjon | G60: 60704 | H60: 133
A61: 60000 | B61: 700 | C61: 5 | D61: 5 | E61: F7 | F61: Underfunksjon | G61: 60705 | H61: 134
A62: 60000 | B62: 700 | C62: 6 | D62: 6 | E62: F7 | F62: Underfunksjon | G62: 60706 | H62: 135
A63: 60000 | B63: 700 | C63: 7 | D63: 7 | E63: F7 | F63: Underfunksjon | G63: 60707 | H63: 136
A64: 60000 | B64: 700 | C64: 8 | D64: 8 | E64: F7 | F64: Underfunksjon | G64: 60708 | H64: 137
A65: 60000 | B65: 700 | C65: 9 | D65: 9 | E65: F7 | F65: Underfunksjon | G65: 60709 | H65: 138
A66: 60000 | B66: 700 | C66: 10 | D66: 10 | E66: F7 | F66: Underfunksjon | G66: =A66+B66+C66+D66 -> 60720 | H66: 139
A67: 60000 | B67: 700 | C67: 11 | D67: 11 | E67: F7 | F67: Underfunksjon | G67: 60722 | H67: 140
A68: 60000 | B68: 700 | C68: 12 | D68: 12 | E68: F7 | F68: Underfunksjon | G68: 60724 | H68: 141
A69: 60000 | B69: 700 | C69: 13 | D69: 13 | E69: F7 | F69: Underfunksjon | G69: 60726 | H69: 142
A70: 60000 | B70: 700 | C70: 14 | D70: 14 | E70: F7 | F70: Underfunksjon | G70: 60728 | H70: 143
A71: 60000 | B71: 700 | C71: 15 | D71: 15 | E71: F7 | F71: Underfunksjon | G71: 60730 | H71: 144
A72: 60000 | B72: 700 | C72: 16 | D72: 16 | E72: F7 | F72: Underfunksjon | G72: 60732 | H72: 145
A73: 60000 | B73: 700 | C73: 17 | D73: 17 | E73: F7 | F73: Underfunksjon | G73: 60734 | H73: 146
A74: 60000 | B74: 700 | C74: 18 | D74: 18 | E74: F7 | F74: Underfunksjon | G74: 60736 | H74: 147
A75: 60000 | B75: 700 | C75: 19 | D75: 19 | E75: F7 | F75: Underfunksjon | G75: 60738 | H75: 148
A76: 60000 | B76: 800 | D76: F | E76: F | F76: Funksjon | G76: =A76+B76+C76 -> 60800 | H76: 149
A77: 60000 | B77: 800 | C77: 0 | D77: 0 | E77: F8 | F77: Underfunksjon | G77: 60800 | H77: 150
A78: 60000 | B78: 800 | C78: 1 | D78: 1 | E78: F8 | F78: Underfunksjon | G78: 60801 | H78: 151
A79: 60000 | B79: 800 | C79: 2 | D79: 2 | E79: F8 | F79: Underfunksjon | G79: 60802 | H79: 152
A80: 60000 | B80: 800 | C80: 3 | D80: 3 | E80: F8 | F80: Underfunksjon | G80: 60803 | H80: 153
A81: 60000 | B81: 800 | C81: 4 | D81: 4 | E81: F8 | F81: Underfunksjon | G81: 60804 | H81: 154
A82: 60000 | B82: 800 | C82: 5 | D82: 5 | E82: F8 | F82: Underfunksjon | G82: 60805 | H82: 155
A83: 60000 | B83: 800 | C83: 6 | D83: 6 | E83: F8 | F83: Underfunksjon | G83: 60806 | H83: 156
A84: 60000 | B84: 800 | C84: 7 | D84: 7 | E84: F8 | F84: Underfunksjon | G84: 60807 | H84: 157
A85: 60000 | B85: 800 | C85: 8 | D85: 8 | E85: F8 | F85: Underfunksjon | G85: 60808 | H85: 158
A86: 60000 | B86: 800 | C86: 9 | D86: 9 | E86: F8 | F86: Underfunksjon | G86: 60809 | H86: 159
A87: 60000 | B87: 800 | C87: 10 | D87: 10 | E87: F8 | F87: Underfunksjon | G87: =A87+B87+C87+D87 -> 60820 | H87: 160
A88: 60000 | B88: 800 | C88: 11 | D88: 11 | E88: F8 | F88: Underfunksjon | G88: 60822 | H88: 161
A89: 60000 | B89: 800 | C89: 12 | D89: 12 | E89: F8 | F89: Underfunksjon | G89: 60824 | H89: 162
A90: 60000 | B90: 800 | C90: 13 | D90: 13 | E90: F8 | F90: Underfunksjon | G90: 60826 | H90: 163
A91: 60000 | B91: 800 | C91: 14 | D91: 14 | E91: F8 | F91: Underfunksjon | G91: 60828 | H91: 164
A92: 60000 | B92: 800 | C92: 15 | D92: 15 | E92: F8 | F92: Underfunksjon | G92: 60830 | H92: 165
A93: 60000 | B93: 800 | C93: 16 | D93: 16 | E93: F8 | F93: Underfunksjon | G93: 60832 | H93: 166
A94: 60000 | B94: 800 | C94: 17 | D94: 17 | E94: F8 | F94: Underfunksjon | G94: 60834 | H94: 167
A95: 60000 | B95: 800 | C95: 18 | D95: 18 | E95: F8 | F95: Underfunksjon | G95: 60836 | H95: 168
A96: 60000 | B96: 800 | C96: 19 | D96: 19 | E96: F8 | F96: Underfunksjon | G96: 60838 | H96: 169
A97: 60000 | B97: 900 | D97: F | E97: F | F97: Funksjon | G97: =A97+B97+C97 -> 60900 | H97: 170
A98: 60000 | B98: 900 | C98: 0 | D98: 0 | E98: F9 | F98: Underfunksjon | G98: 60900 | H98: 171
A99: 60000 | B99: 900 | C99: 1 | D99: 1 | E99: F9 | F99: Underfunksjon | G99: 60901 | H99: 172
A100: 60000 | B100: 900 | C100: 2 | D100: 2 | E100: F9 | F100: Underfunksjon | G100: 60902 | H100: 173
A101: 60000 | B101: 900 | C101: 3 | D101: 3 | E101: F9 | F101: Underfunksjon | G101: 60903 | H101: 174
A102: 60000 | B102: 900 | C102: 4 | D102: 4 | E102: F9 | F102: Underfunksjon | G102: 60904 | H102: 175
A103: 60000 | B103: 900 | C103: 5 | D103: 5 | E103: F9 | F103: Underfunksjon | G103: 60905 | H103: 176
A104: 60000 | B104: 900 | C104: 6 | D104: 6 | E104: F9 | F104: Underfunksjon | G104: 60906 | H104: 177
A105: 60000 | B105: 900 | C105: 7 | D105: 7 | E105: F9 | F105: Underfunksjon | G105: 60907 | H105: 178
A106: 60000 | B106: 900 | C106: 8 | D106: 8 | E106: F9 | F106: Underfunksjon | G106: 60908 | H106: 179
A107: 60000 | B107: 900 | C107: 9 | D107: 9 | E107: F9 | F107: Underfunksjon | G107: 60909 | H107: 180
A108: 60000 | B108: 900 | C108: 10 | D108: 10 | E108: F9 | F108: Underfunksjon | G108: =A108+B108+C108+D108 -> 60920 | H108: 181
A109: 60000 | B109: 900 | C109: 11 | D109: 11 | E109: F9 | F109: Underfunksjon | G109: 60922 | H109: 182
A110: 60000 | B110: 900 | C110: 12 | D110: 12 | E110: F9 | F110: Underfunksjon | G110: 60924 | H110: 183
A111: 60000 | B111: 900 | C111: 13 | D111: 13 | E111: F9 | F111: Underfunksjon | G111: 60926 | H111: 184
A112: 60000 | B112: 900 | C112: 14 | D112: 14 | E112: F9 | F112: Underfunksjon | G112: 60928 | H112: 185
A113: 60000 | B113: 900 | C113: 15 | D113: 15 | E113: F9 | F113: Underfunksjon | G113: 60930 | H113: 186
A114: 60000 | B114: 900 | C114: 16 | D114: 16 | E114: F9 | F114: Underfunksjon | G114: 60932 | H114: 187
A115: 60000 | B115: 900 | C115: 17 | D115: 17 | E115: F9 | F115: Underfunksjon | G115: 60934 | H115: 188
A116: 60000 | B116: 900 | C116: 18 | D116: 18 | E116: F9 | F116: Underfunksjon | G116: 60936 | H116: 189
A117: 60000 | B117: 900 | C117: 19 | D117: 19 | E117: F9 | F117: Underfunksjon | G117: 60938 | H117: 190
A118: 60000 | B118: 1000 | D118: F | E118: F | F118: Funksjon | G118: =A118+B118+C118 -> 61000 | H118: 191
A119: 60000 | B119: 1000 | C119: 0 | D119: 0 | E119: F10 | F119: Underfunksjon | G119: 61000 | H119: 192
A120: 60000 | B120: 1000 | C120: 1 | D120: 1 | E120: F10 | F120: Underfunksjon | G120: 61001 | H120: 193
A121: 60000 | B121: 1000 | C121: 2 | D121: 2 | E121: F10 | F121: Underfunksjon | G121: 61002 | H121: 194
A122: 60000 | B122: 1000 | C122: 3 | D122: 3 | E122: F10 | F122: Underfunksjon | G122: 61003 | H122: 195
A123: 60000 | B123: 1000 | C123: 4 | D123: 4 | E123: F10 | F123: Underfunksjon | G123: 61004 | H123: 196
A124: 60000 | B124: 1000 | C124: 5 | D124: 5 | E124: F10 | F124: Underfunksjon | G124: 61005 | H124: 197
A125: 60000 | B125: 1000 | C125: 6 | D125: 6 | E125: F10 | F125: Underfunksjon | G125: 61006 | H125: 198
A126: 60000 | B126: 1000 | C126: 7 | D126: 7 | E126: F10 | F126: Underfunksjon | G126: 61007 | H126: 199
A127: 60000 | B127: 1000 | C127: 8 | D127: 8 | E127: F10 | F127: Underfunksjon | G127: 61008 | H127: 200
A128: 60000 | B128: 1000 | C128: 9 | D128: 9 | E128: F10 | F128: Underfunksjon | G128: 61009 | H128: 201
A129: 60000 | B129: 1000 | C129: 10 | D129: 10 | E129: F10 | F129: Underfunksjon | G129: =A129+B129+C129+D129 -> 61020 | H129: 202
A130: 60000 | B130: 1000 | C130: 11 | D130: 11 | E130: F10 | F130: Underfunksjon | G130: 61022 | H130: 203
A131: 60000 | B131: 1000 | C131: 12 | D131: 12 | E131: F10 | F131: Underfunksjon | G131: 61024 | H131: 204
A132: 60000 | B132: 1000 | C132: 13 | D132: 13 | E132: F10 | F132: Underfunksjon | G132: 61026 | H132: 205
A133: 60000 | B133: 1000 | C133: 14 | D133: 14 | E133: F10 | F133: Underfunksjon | G133: 61028 | H133: 206
A134: 60000 | B134: 1000 | C134: 15 | D134: 15 | E134: F10 | F134: Underfunksjon | G134: 61030 | H134: 207
A135: 60000 | B135: 1000 | C135: 16 | D135: 16 | E135: F10 | F135: Underfunksjon | G135: 61032 | H135: 208
A136: 60000 | B136: 1000 | C136: 17 | D136: 17 | E136: F10 | F136: Underfunksjon | G136: 61034 | H136: 209
A137: 60000 | B137: 1000 | C137: 18 | D137: 18 | E137: F10 | F137: Underfunksjon | G137: 61036 | H137: 210
A138: 60000 | B138: 1000 | C138: 19 | D138: 19 | E138: F10 | F138: Underfunksjon | G138: 61038 | H138: 211
A139: 60000 | B139: 1100 | D139: F | E139: F | F139: Funksjon | G139: =A139+B139+C139 -> 61100 | H139: 212
A140: 60000 | B140: 1100 | C140: 0 | D140: 0 | E140: F11 | F140: Underfunksjon | G140: 61100 | H140: 213
A141: 60000 | B141: 1100 | C141: 1 | D141: 1 | E141: F11 | F141: Underfunksjon | G141: 61101 | H141: 214
A142: 60000 | B142: 1100 | C142: 2 | D142: 2 | E142: F11 | F142: Underfunksjon | G142: 61102 | H142: 215
A143: 60000 | B143: 1100 | C143: 3 | D143: 3 | E143: F11 | F143: Underfunksjon | G143: 61103 | H143: 216
A144: 60000 | B144: 1100 | C144: 4 | D144: 4 | E144: F11 | F144: Underfunksjon | G144: 61104 | H144: 217
A145: 60000 | B145: 1100 | C145: 5 | D145: 5 | E145: F11 | F145: Underfunksjon | G145: 61105 | H145: 218
A146: 60000 | B146: 1100 | C146: 6 | D146: 6 | E146: F11 | F146: Underfunksjon | G146: 61106 | H146: 219
A147: 60000 | B147: 1100 | C147: 7 | D147: 7 | E147: F11 | F147: Underfunksjon | G147: 61107 | H147: 220
A148: 60000 | B148: 1100 | C148: 8 | D148: 8 | E148: F11 | F148: Underfunksjon | G148: 61108 | H148: 221
A149: 60000 | B149: 1100 | C149: 9 | D149: 9 | E149: F11 | F149: Underfunksjon | G149: 61109 | H149: 222
A150: 60000 | B150: 1100 | C150: 10 | D150: 10 | E150: F11 | F150: Underfunksjon | G150: =A150+B150+C150+D150 -> 61120 | H150: 223
A151: 60000 | B151: 1100 | C151: 11 | D151: 11 | E151: F11 | F151: Underfunksjon | G151: 61122 | H151: 224
A152: 60000 | B152: 1100 | C152: 12 | D152: 12 | E152: F11 | F152: Underfunksjon | G152: 61124 | H152: 225
A153: 60000 | B153: 1100 | C153: 13 | D153: 13 | E153: F11 | F153: Underfunksjon | G153: 61126 | H153: 226
A154: 60000 | B154: 1100 | C154: 14 | D154: 14 | E154: F11 | F154: Underfunksjon | G154: 61128 | H154: 227
A155: 60000 | B155: 1100 | C155: 15 | D155: 15 | E155: F11 | F155: Underfunksjon | G155: 61130 | H155: 228
A156: 60000 | B156: 1100 | C156: 16 | D156: 16 | E156: F11 | F156: Underfunksjon | G156: 61132 | H156: 229
A157: 60000 | B157: 1100 | C157: 17 | D157: 17 | E157: F11 | F157: Underfunksjon | G157: 61134 | H157: 230
A158: 60000 | B158: 1100 | C158: 18 | D158: 18 | E158: F11 | F158: Underfunksjon | G158: 61136 | H158: 231
A159: 60000 | B159: 1100 | C159: 19 | D159: 19 | E159: F11 | F159: Underfunksjon | G159: 61138 | H159: 232
A160: 60000 | B160: 1200 | D160: F | E160: F | F160: Funksjon | G160: =A160+B160+C160 -> 61200 | H160: 233
A161: 60000 | B161: 1200 | C161: 0 | D161: 0 | E161: F12 | F161: Underfunksjon | G161: 61200 | H161: 234
A162: 60000 | B162: 1200 | C162: 1 | D162: 1 | E162: F12 | F162: Underfunksjon | G162: 61201 | H162: 235
A163: 60000 | B163: 1200 | C163: 2 | D163: 2 | E163: F12 | F163: Underfunksjon | G163: 61202 | H163: 236
A164: 60000 | B164: 1200 | C164: 3 | D164: 3 | E164: F12 | F164: Underfunksjon | G164: 61203 | H164: 237
A165: 60000 | B165: 1200 | C165: 4 | D165: 4 | E165: F12 | F165: Underfunksjon | G165: 61204 | H165: 238
A166: 60000 | B166: 1200 | C166: 5 | D166: 5 | E166: F12 | F166: Underfunksjon | G166: 61205 | H166: 239
A167: 60000 | B167: 1200 | C167: 6 | D167: 6 | E167: F12 | F167: Underfunksjon | G167: 61206 | H167: 240
A168: 60000 | B168: 1200 | C168: 7 | D168: 7 | E168: F12 | F168: Underfunksjon | G168: 61207 | H168: 241
A169: 60000 | B169: 1200 | C169: 8 | D169: 8 | E169: F12 | F169: Underfunksjon | G169: 61208 | H169: 242
A170: 60000 | B170: 1200 | C170: 9 | D170: 9 | E170: F12 | F170: Underfunksjon | G170: 61209 | H170: 243
A171: 60000 | B171: 1200 | C171: 10 | D171: 10 | E171: F12 | F171: Underfunksjon | G171: =A171+B171+C171+D171 -> 61220 | H171: 244
A172: 60000 | B172: 1200 | C172: 11 | D172: 11 | E172: F12 | F172: Underfunksjon | G172: 61222 | H172: 245
A173: 60000 | B173: 1200 | C173: 12 | D173: 12 | E173: F12 | F173: Underfunksjon | G173: 61224 | H173: 246
A174: 60000 | B174: 1200 | C174: 13 | D174: 13 | E174: F12 | F174: Underfunksjon | G174: 61226 | H174: 247
A175: 60000 | B175: 1200 | C175: 14 | D175: 14 | E175: F12 | F175: Underfunksjon | G175: 61228 | H175: 248
A176: 60000 | B176: 1200 | C176: 15 | D176: 15 | E176: F12 | F176: Underfunksjon | G176: 61230 | H176: 249
A177: 60000 | B177: 1200 | C177: 16 | D177: 16 | E177: F12 | F177: Underfunksjon | G177: 61232 | H177: 250
A178: 60000 | B178: 1200 | C178: 17 | D178: 17 | E178: F12 | F178: Underfunksjon | G178: 61234 | H178: 251
A179: 60000 | B179: 1200 | C179: 18 | D179: 18 | E179: F12 | F179: Underfunksjon | G179: 61236 | H179: 252
A180: 60000 | B180: 1200 | C180: 19 | D180: 19 | E180: F12 | F180: Underfunksjon | G180: 61238 | H180: 253
A181: 60000 | B181: 1300 | D181: F | E181: F | F181: Funksjon | G181: =A181+B181+C181 -> 61300 | H181: 254
A182: 60000 | B182: 1300 | C182: 0 | D182: 0 | E182: F13 | F182: Underfunksjon | G182: 61300 | H182: 255
A183: 60000 | B183: 1300 | C183: 1 | D183: 1 | E183: F13 | F183: Underfunksjon | G183: 61301 | H183: 256
A184: 60000 | B184: 1300 | C184: 2 | D184: 2 | E184: F13 | F184: Underfunksjon | G184: 61302 | H184: 257
A185: 60000 | B185: 1300 | C185: 3 | D185: 3 | E185: F13 | F185: Underfunksjon | G185: 61303 | H185: 258
A186: 60000 | B186: 1300 | C186: 4 | D186: 4 | E186: F13 | F186: Underfunksjon | G186: 61304 | H186: 259
A187: 60000 | B187: 1300 | C187: 5 | D187: 5 | E187: F13 | F187: Underfunksjon | G187: 61305 | H187: 260
A188: 60000 | B188: 1300 | C188: 6 | D188: 6 | E188: F13 | F188: Underfunksjon | G188: 61306 | H188: 261
A189: 60000 | B189: 1300 | C189: 7 | D189: 7 | E189: F13 | F189: Underfunksjon | G189: 61307 | H189: 262
A190: 60000 | B190: 1300 | C190: 8 | D190: 8 | E190: F13 | F190: Underfunksjon | G190: 61308 | H190: 263
A191: 60000 | B191: 1300 | C191: 9 | D191: 9 | E191: F13 | F191: Underfunksjon | G191: 61309 | H191: 264
A192: 60000 | B192: 1300 | C192: 10 | D192: 10 | E192: F13 | F192: Underfunksjon | G192: =A192+B192+C192+D192 -> 61320 | H192: 265
A193: 60000 | B193: 1300 | C193: 11 | D193: 11 | E193: F13 | F193: Underfunksjon | G193: 61322 | H193: 266
A194: 60000 | B194: 1300 | C194: 12 | D194: 12 | E194: F13 | F194: Underfunksjon | G194: 61324 | H194: 267
A195: 60000 | B195: 1300 | C195: 13 | D195: 13 | E195: F13 | F195: Underfunksjon | G195: 61326 | H195: 268
A196: 60000 | B196: 1300 | C196: 14 | D196: 14 | E196: F13 | F196: Underfunksjon | G196: 61328 | H196: 269
A197: 60000 | B197: 1300 | C197: 15 | D197: 15 | E197: F13 | F197: Underfunksjon | G197: 61330 | H197: 270
A198: 60000 | B198: 1300 | C198: 16 | D198: 16 | E198: F13 | F198: Underfunksjon | G198: 61332 | H198: 271
A199: 60000 | B199: 1300 | C199: 17 | D199: 17 | E199: F13 | F199: Underfunksjon | G199: 61334 | H199: 272
A200: 60000 | B200: 1300 | C200: 18 | D200: 18 | E200: F13 | F200: Underfunksjon | G200: 61336 | H200: 273
... 148 more rows

Sheet F
A1: Nivå 1 | B1: Nivå 2 | C1: Nivå 3 | D1: Nummer | E1: OvGrliggGnGG | F1: Funksjon | H1: Løpenummer | I1: Kode | J1: Tittel | K1: Her legges | L1: BK-vurdering | M1: Tidligere arkivnøkkel | N1: Aktuelt lovverk | O1: Kommentar
A2: 70000 | D2: H | F2: Hovedfunksjon | G2: =A2+B2+C2 -> 70000 | H2: 1 | I2: F | J2: Innkreve og utbetale
A3: 70000 | B3: 100 | D3: F | E3: G | F3: Funksjon | G3: 70100 | H3: 2 | I3: F1 | J3: Innfordring av kommunale krav og avgifter
A4: 70000 | B4: 100 | C4: 0 | D4: 0 | E4: G1 | F4: Underfunksjon | G4: 70100 | H4: 3 | I4: F1 - 00 | J4: Dokumentere generelt om innfordring av kommunale krav | K4: Her legges kun dokumenter som ikke naturlig hører hjemme i andre koder og som man vet at ikke har særlig dokumentasjonsverdi. Dersom man mener dokumentet har lengre dokumentasjonsverdi skal det legges på andre koder. | L4: Kasseres 5 år etter avslutning
A5: 70000 | B5: 100 | C5: 1 | D5: 1 | E5: G1 | F5: Underfunksjon | G5: 70101 | H5: 4 | I5: F1 - 01 | J5: Behandle innfordring av kommunal inkasso | K5: Inkassovarsel. Betalingsoppfordring. Innsigelser. Forliksklage til Forliksrådet. Brev om utfall fra Forliksrådet. Brev til kreditor om overvåkning. Avslutningsbrev. | L5: Kasseres 10 år etter avslutning | M5: 123 Inkassosaker. 135 Innfordring av skatter og avgifter | N5: Inkassoloven. Tvisteloven.
A6: 70000 | B6: 100 | C6: 2 | D6: 2 | E6: G1 | F6: Underfunksjon | G6: 70102 | H6: 5 | I6: F1 - 02 | J6: Behandle innfordring som innebærer tvangstiltak | K6: Begjæring om utlegg til namsmannen / BBY. Begjæring om tvangssalg / tvangsdekning / fravikelse. Varsel om tvangsfullbyrdelse. Varsel om tvangssalg til medeier. Avgjørelse. | L6: Bevares og avleveres til Byarkivet | M6: 123 Inkassosaker. 135 Innfordring av skatter og avgifter | N6: Tvangsfullbyrdelsesloven
A7: 70000 | B7: 100 | C7: 3 | D7: 3 | E7: G1 | F7: Underfunksjon | G7: 70103 | H7: 6 | I7: F1 - 03 | J7: Behandle manglende innbetaling av parkeringsbøter | K7: Purring / melding om forhøyelse. Purring / inkassovarsel. 4-18 varsel. | L7: Kasseres 10 år etter avslutning | M7: 123 Inkassosaker. 135 Innfordring av skatter og avgifter
A8: 70000 | B8: 100 | C8: 4 | D8: 4 | E8: G1 | F8: Underfunksjon | G8: 70104 | H8: 7 | I8: F1 - 04 | J8: Behandle manglende innbetaling som innebærer tvangstiltak | K8: Beslutning om utleggstrekk. Brev om ansvarliggjøring. Begjæring om tvangssalg. Varsel om tvangssalg. Utleggsforretning. Begjæring om anvisning til innkreving. Svar fra namsmannen. | L8: Bevares og avleveres til Byarkivet | M8: 123 Inkassosaker. 135 Innfordring av skatter og avgifter | N8: Tvangsfullbyrdelsesloven
A9: 70000 | B9: 100 | C9: 5 | D9: 5 | E9: G1 | F9: Underfunksjon | G9: 70105 | H9: 8 | I9: F1 - 05 | J9: Behandle innfordringer | K9: Fordringsanmeldelse | L9: Kasseres 10 år etter avslutning | M9: 123 Inkassosaker. 135 Innfordring av skatter og avgifter
A10: 70000 | B10: 100 | C10: 6 | D10: 6 | E10: G1 | F10: Underfunksjon | G10: 70106 | H10: 9 | I10: F1 - 06 | J10: Annet i forbindelse med innkreving av kommunale avgifter | K10: Her legges det for eksempel dokumentasjon av endringer av eieropplysninger og/eller fakturamottaker, endring av kontonummer o.l. i forbindelse med innkreving av kommunale avgifter og gebyrer. | L10: Kasseres 10 år etter avslutning | M10: 133.1 Kommunale avgifter, gebyrer og betalingssatser.
A11: 70000 | B11: 100 | C11: 7 | D11: 7 | E11: G1 | F11: Underfunksjon | G11: 70107 | H11: 10
A12: 70000 | B12: 100 | C12: 8 | D12: 8 | E12: G1 | F12: Underfunksjon | G12: 70108 | H12: 11
A13: 70000 | B13: 200 | D13: F | E13: G | F13: Funksjon | G13: =A13+B13+C13 -> 70200 | H13: 23 | I13: F2 | J13: Innfordre skatter | O13: Hvor skal følgende legges: Endring av foreldelse. Posteringsordre. Summarisk avskriving. Utgiftsføring - avskriving og berostillelse.
A14: 70000 | B14: 200 | C14: 0 | D14: 0 | E14: G2 | F14: Underfunksjon | G14: 70200 | H14: 24 | I14: F2 - 00 | J14: Dokumentere generelt om innfordring av skatter | K14: Her legges kun dokumenter som ikke naturlig hører hjemme i andre koder og som man vet at ikke har særlig dokumentasjonsverdi. Dersom man mener dokumentet har lengre dokumentasjonsverdi skal det legges på andre koder. | L14: Kasseres 5 år etter avslutning
A15: 70000 | B15: 200 | C15: 1 | D15: 1 | E15: G2 | F15: Underfunksjon | G15: 70201 | H15: 25 | I15: F2 - 01 | J15: Behandle utleggsforretning | K15: Varsel om utleggsforretning. Forespørsel til bank. Svar på forespørsel til bank. Notifikasjon av utleggsforretning. Informasjon om avholdt utleggforretning til saksøkte. Utleggsprotokoll. | L15: Bevares og avleveres til Byarkivet | M15: 132 Skattetvister | N15: Tvangsforbyrdelsesloven
A16: 70000 | B16: 200 | C16: 2 | D16: 2 | E16: G2 | F16: Underfunksjon | G16: 70202 | H16: 26 | I16: F2 - 02 | J16: Registrere dødsbo og ansvarliggjøring | K16: Forespørsel til skifteretten. Fordringsanmeldelse. Brev til involverte parter. Korrigert fordringsanmeldelse. Purring. Forbehold i offentlig skifte | L16: Kasseres 10 år etter avslutning | M16: 132 Skattetvister | N16: Skifteloven
A17: 70000 | B17: 200 | C17: 3 | D17: 3 | E17: G2 | F17: Underfunksjon | G17: 70203 | H17: 27 | I17: F2 - 03 | J17: Behandle søknader om utsatt betaling ved klage på fastsettelse | K17: Søknad om betalingsutsettelse ved likningsklage. Midlertidig stans innkreving av restskatt. Avslag på søknad om betalingsutsettelse ved likningsklage. | L17: Kasseres 10 år etter avslutning | M17: 132 Skattetvister | N17: Skattebetalingsloven §10-1
A18: 70000 | B18: 200 | C18: 4 | D18: 4 | E18: G2 | F18: Underfunksjon | G18: 70204 | H18: 28 | I18: F2 - 04 | J18: Behandle søknader om betalingsavtale / betalingsutsettelse | K18: Søknad om betalingsavtale / betalingsutsettelse. Brev om mangelfull dokumentasjon. Svar - oversendelse av dokumentasjon. Avslagsbrev. Innvilgelse. Purring. Innstilling til Skatt Øst. Brev til skyldner. Bekreftelse på at saken oversendt til Skatt Øst. Kopi av vedtak fra Skatt Øst til skyldneren. Betalingsinformasjon til skyldner med vedlegg giroer. | L18: Bevares og avleveres til Byarkivet | M18: 132 Skattetvister | N18: Skattebetalingsloven §15-2 | O18: Kemneren har kassasjonsvedtak på dokumentasjon der Kemneren er innstiller og Skatt Øst er vedtaksmyndighet
I19: F2 - 05 | J19: Skatt Øst - Behandle søknader om betalingsavtale / betalingsutsettelse | K19: Søknad om betalingsavtale / betalingsutsettelse. Brev om mangelfull dokumentasjon. Svar - oversendelse av dokumentasjon. Avslagsbrev. Innvilgelse. Purring. Innstilling til Skatt Øst. Brev til skyldner. Bekreftelse på at saken oversendt til Skatt Øst. Kopi av vedtak fra Skatt Øst til skyldneren. Betalingsinformasjon til skyldner med vedlegg giroer. | L19: Kasseres 10 år etter avslutning | M19: 132 Skattetvister | N19: Skattebetalingsloven § 15-2 3. ledd
A20: 70000 | B20: 200 | C20: 5 | D20: 5 | E20: G2 | F20: Underfunksjon | G20: 70205 | H20: 29 | I20: F2 - 06 | J20: Behandle klager som havner i retten | K20: Klage. Brev om mangelfull dokumentasjon. Vedtak. Tilbakemelding om avslag. Dokumentasjon til retten. Klagetilsvar til retten. Brev med tilsvarsfrist fra retten. Prosesskriv. Innkalling til rettsmøte. Kjennelse fra retten. | L20: Kasseres 15 år etter avslutning | M20: 132 Skattetvister | N20: Tvangsloven §5-16
A21: 70000 | B21: 200 | C21: 6 | D21: 6 | E21: G2 | F21: Underfunksjon | G21: 70206 | H21: 30 | I21: F2 - 07 | J21: Behandle klager på tilleggsskatt | K21: E-post om klage. Klage. Berostilt innfordring av tilleggsskatt | L21: Kasseres 1 år etter avslutning | M21: 132 Skattetvister | N21: Skatteforvaltningsloven §14
A22: 70000 | B22: 200 | C22: 7 | D22: 7 | E22: G2 | F22: Underfunksjon | G22: 70207 | H22: 31 | I22: F2 - 08 | J22: Følge opp erstatningssøksmål | K22: Varsel om mulig erstatningssøksmål. Påkrav. Henvendelse fra skyldner. Gjeldsbrev. Forliksavtale. Forliksklage. Posteringsordre. Innkalling til mekling i Forliksrådet. Forlikrådets avgjørelse. | L22: Kasseres 15 år etter avslutning | N22: Tvisteloven | O22: Ikke oppgitt hvilken type erstatsningssøksmål det er snakk om
A23: 70000 | B23: 200 | C23: 8 | D23: 8 | E23: G2 | F23: Underfunksjon | G23: 70208 | H23: 32 | I23: F2 - 09 | J23: Behandle søknader om sletting / ettergivelse av skattegjeld | K23: Søknad. Brev om mangelfull dokumentasjon. Svar - ettersending av dokumentasjon. Vedtak. | L23: Bevares og avleveres til Byarkivet | M23: 132 Skattetvister | N23: Skattebetalingsloven §15-1/2 | O23: Kemneren har kassasjonsvedtak på dokumentasjon der Kemneren er innstiller og Skatt Øst er vedtaksmyndighet. Må vurdere egen underfunksjon for dokumentasjon med kassasjonsvedtak
I24: F2 - 10 | J24: Skatt Øst - Behandle søknader om sletting / ettergivelse av skattegjeld | K24: Søknad. Brev om mangelfull dokumentasjon. Svar - ettersending av dokumentasjon. Vedtak. | L24: Kasseres 10 år etter avslutning | M24: 132 Skattetvister | N24: Skattebetalingsloven § 15-2 3. ledd
A25: 70000 | B25: 200 | C25: 9 | D25: 9 | E25: G2 | F25: Underfunksjon | G25: 70209 | H25: 33 | I25: F2 - 11 | J25: Søknad om fritak fra solidaransvar | K25: Søknad om fritak for solidaransvar med eventuelle vedlegg. Tilleggsdokumentasjon. Vedtak. | L25: Kasseres 10 år etter avslutning | N25: Skattebetalingsloven §4-1
A26: 70000 | B26: 200 | C26: 10 | D26: 10 | E26: G2 | F26: Underfunksjon | G26: =A26+B26+C26+D26 -> 70220 | H26: 34 | I26: F2 - 12 | J26: Behandle garanti for skattetrekk | K26: Garanti fra banken. Bekreftelse på mottatt brev. Opphør av garanti. Bekreftelse av opphør av skattetrekksgaranti. Endring av skattetrekksgaranti. | L26: Kasseres 20 år etter avslutning | N26: Skattebetalingsloven §5-12
A27: 70000 | B27: 200 | C27: 11 | D27: 11 | E27: G2 | F27: Underfunksjon | G27: 70222 | H27: 35 | I27: F2 - 13 | J27: Politianmelde | K27: Varsel om anmeldelse. Politianmeldelse. Bekreftelse på mottatt anmeldelse. Svar på politianmeldelse. Klage på utfallet. | L27: Kasseres 10 år etter avslutning | N27: Skattebetalingsloven §18-1 og kap 5
A28: 70000 | B28: 200 | C28: 12 | D28: 12 | E28: G2 | F28: Underfunksjon | G28: 70224 | H28: 36 | I28: F2 - 14 | J28: Følge opp ansvarsrelasjoner | K28: Brev til primær debitør. Brev til sekundær leverandør. | L28: Kasseres 10 år etter avslutning | N28: Skattebetalingsloven §4-1
A29: 70000 | B29: 200 | C29: 13 | D29: 13 | E29: G2 | F29: Underfunksjon | G29: 70226 | H29: 37 | I29: F2 - 15 | J29: Behandle søknader om omdisponering av skattetrekkskonto | K29: Søknad. Avslag / delvis avslag. Innvilgelse. Avvisning. | L29: Kasseres 1 år etter avslutning | N29: Skattebetalingsloven §5-12
A30: 70000 | B30: 200 | C30: 14 | D30: 14 | E30: G2 | F30: Underfunksjon | G30: 70228 | H30: 38 | I30: F2 - 16 | J30: Behandle utleggstrekk | K30: Nedleggelse, gjennomføring, endring og avslutning av utleggstrekk | L30: Kasseres 10 år etter avslutning | M30: 135 Innfordring av skatter og avgifter | N30: Skattebetalingsloven §14-4
A31: 70000 | B31: 200 | C31: 15 | D31: 15 | E31: G2 | F31: Underfunksjon | G31: 70230 | H31: 39 | I31: F2 - 17 | J31: Endre kontonummer | K31: Dokumentasjon i forbindelse med endring av kontonummer for utbetaling av tilgodebeløp skatt | L31: Kasseres 10 år etter avslutning | M31: 135 Innfordring av skatter og avgifter
A32: 70000 | B32: 200 | C32: 16 | D32: 16 | E32: G2 | F32: Underfunksjon | G32: 70232 | H32: 40 | I32: F2 - 18 | J32: Begjære konkurs | K32: Dokumentasjon slik som konkursvarsel, innkalling til rettsmøte, fordringsanmeldelse, konkursbegjæring, innberetning, bogaranti, sluttinnberetning m.m. | L32: Kasseres 10 år etter avslutning | M32: 135 Innfordring av skatter og avgifter
A33: 70000 | B33: 200 | C33: 17 | D33: 17 | E33: G2 | F33: Underfunksjon | G33: 70234 | H33: 41 | I33: F2 - 19 | J33: Gjennomføre tvangsdekning | K33: Dokumentasjon som for eksempel varsel om tvangsdekning, forespørsel om heftelser, svar på forespørsel, begjæring om tvangsdekning m.m. | L33: Kasseres 10 år etter avslutning | M33: 135 Innfordring av skatter og avgifter | N33: Tvangsfullbyrdelsesloven § 8-1 jf. § 8-2 Tvangsfullbyrdelsesloven § 10-1 jf. § 10-2
A34: 70000 | B34: 200 | C34: 18 | D34: 18 | E34: G2 | F34: Underfunksjon | G34: 70236 | H34: 42 | I34: F2 - 20 | J34: Oppfølging av gjeldsordning | K34: Dokumentasjon slik som gjeldsforhandling, kravanmeldelse, forslag til frivillig gjeldsordning, innstilling, kjennelse, frivillig endring av gjeldsordning, opphevelse av gjeldsordning m.m. | L34: Kasseres 10 år etter avslutning | M34: 135 Innfordring av skatter og avgifter
A35: 70000 | B35: 200 | C35: 19 | D35: 19 | E35: G2 | F35: Underfunksjon | G35: 70238 | H35: 43 | I35: F2 - 21 | J35: Behandle klage på motregning | K35: Klage, svar på klage, eventuelt oversendelse av klage til retten | L35: Kasseres 10 år etter avslutning | N35: Skattebetalingsloven § 13-5
A36: 70000 | B36: 300 | D36: F | E36: G | F36: Funksjon | G36: =A36+B36+C36 -> 70300 | H36: 44 | I36: F3 | J36: Innkreving av eiendomsskatt
A37: 70000 | B37: 300 | C37: 0 | D37: 0 | E37: G3 | F37: Underfunksjon | G37: 70300 | H37: 45 | I37: F3 - 00 | J37: Dokumentere generelt om innkreving av eiendomsskatt | K37: Her legges kun dokumenter som ikke naturlig hører hjemme i andre koder og som man vet at ikke har særlig dokumentasjonsverdi. Dersom man mener dokumentet har lengre dokumentasjonsverdi skal det legges på andre koder. | L37: Kasseres 5 år etter avslutning
A38: 70000 | B38: 300 | C38: 1 | D38: 1 | E38: G3 | F38: Underfunksjon | G38: 70301 | H38: 46 | I38: F3 - 01 | J38: Fastsette og taksere eiendomsskatt | K38: Registrering av takst (uten dokumenter). Bilder. Liste over eiendommer med begrunnelse og taksering. | L38: Kasseres 15 år etter avslutning | M38: 131.6 Eiendomsskatt | N38: Eiendomsskatteloven §8 A-3
A39: 70000 | B39: 300 | C39: 2 | D39: 2 | E39: G3 | F39: Underfunksjon | G39: 70302 | H39: 47 | I39: F3 - 02 | J39: Utskrive eiendomsskatt | K39: Varsel om utskriving. Innrapportering. Nytt utskrivningsvedtak. Skatteseddel. Avstemningsrapporter. | L39: Kasseres 5 år etter avslutning | M39: 131.6 Eiendomsskatt | N39: Eiendomsskatteloven §14
A40: 70000 | B40: 300 | C40: 3 | D40: 3 | E40: G3 | F40: Underfunksjon | G40: 70303 | H40: 48 | I40: F3 - 03 | J40: Nemndbehandle takst | K40: Liste med alle takster. Kontrollrapport med utplukk. Protokoll med takstvedtak. | L40: Kasseres 15 år etter avslutning | M40: 131.6 Eiendomsskatt | N40: Eiendomsskatteloven §8 A-3
A41: 70000 | B41: 300 | C41: 4 | D41: 4 | E41: G3 | F41: Underfunksjon | G41: 70304 | H41: 49 | I41: F3 - 04 | J41: Behandle klagesaker innen eiendomsskatt | L41: Bevares og avleveres til Byarkivet
A42: 70000 | B42: 300 | C42: 5 | D42: 5 | E42: G3 | F42: Underfunksjon | G42: 70305 | H42: 50 | I42: F3 - 05 | J42: Nemdsbehandling av klagesaker | L42: Bevares og avleveres til Byarkivet
A43: 70000 | B43: 300 | C43: 6 | D43: 6 | E43: G3 | F43: Underfunksjon | G43: 70306 | H43: 51 | I43: F3 - 06 | J43: Behandle søknader om fritak/ettergivelse av eiendomsskatt | L43: Kasseres 15 år etter avslutning
A44: 70000 | B44: 300 | C44: 7 | D44: 7 | E44: G3 | F44: Underfunksjon | G44: 70307 | H44: 52 | I44: F3 - 07 | J44: Veilede og informere om eiendomsskatt | K44: Svar på konkrete henvendelser. Informasjon om eiendomsskatt som publiseres på nettsider. | L44: Kasseres 15 år etter avslutning
A45: 70000 | B45: 300 | C45: 8 | D45: 8 | E45: G3 | F45: Underfunksjon | G45: 70308 | H45: 53
A46: 70000 | B46: 300 | C46: 9 | D46: 9 | E46: G3 | F46: Underfunksjon | G46: 70309 | H46: 54
A47: 70000 | B47: 300 | C47: 10 | D47: 10 | E47: G3 | F47: Underfunksjon | G47: =A47+B47+C47+D47 -> 70320 | H47: 55
A48: 70000 | B48: 300 | C48: 11 | D48: 11 | E48: G3 | F48: Underfunksjon | G48: 70322 | H48: 56
A49: 70000 | B49: 300 | C49: 12 | D49: 12 | E49: G3 | F49: Underfunksjon | G49: 70324 | H49: 57
A50: 70000 | B50: 300 | C50: 13 | D50: 13 | E50: G3 | F50: Underfunksjon | G50: 70326 | H50: 58
A51: 70000 | B51: 300 | C51: 14 | D51: 14 | E51: G3 | F51: Underfunksjon | G51: 70328 | H51: 59
A52: 70000 | B52: 300 | C52: 15 | D52: 15 | E52: G3 | F52: Underfunksjon | G52: 70330 | H52: 60
A53: 70000 | B53: 300 | C53: 16 | D53: 16 | E53: G3 | F53: Underfunksjon | G53: 70332 | H53: 61
A54: 70000 | B54: 300 | C54: 17 | D54: 17 | E54: G3 | F54: Underfunksjon | G54: 70334 | H54: 62
A55: 70000 | B55: 300 | C55: 18 | D55: 18 | E55: G3 | F55: Underfunksjon | G55: 70336 | H55: 63
A56: 70000 | B56: 300 | C56: 19 | D56: 19 | E56: G3 | F56: Underfunksjon | G56: 70338 | H56: 64
A57: 70000 | B57: 300 | D57: F | E57: G | F57: Funksjon | G57: =A57+B57+C57 -> 70300 | H57: 44 | I57: F3 | J57: Forvalte legater, støtte- og tilskuddsordninger
A58: 70000 | B58: 300 | C58: 0 | D58: 0 | E58: G3 | F58: Underfunksjon | G58: 70300 | H58: 45 | I58: F3 - 00 | J58: Dokumentere generelt om legater, støtte- og tilskuddsordninger | K58: Her legges kun dokumenter som ikke naturlig hører hjemme i andre koder og som man vet at ikke har særlig dokumentasjonsverdi. Dersom man mener dokumentet har lengre dokumentasjonsverdi skal det legges på andre koder. | L58: Kasseres 5 år etter avslutning
A59: 70000 | B59: 300 | C59: 4 | D59: 4 | E59: G3 | F59: Underfunksjon | G59: 70304 | H59: 49 | I59: F3 - 04 | J59: Forvalte legater, stipend og tilskudd | K59: Innkalling styremøter. Møteprotokoll. Retningslinjer og regler for utbetaling og søknader. Regnskap. | L59: Bevares og til Byarkivet | M59: 144 Legater, stiftelser | N59: Stiftelsesloven
A60: 70000 | B60: 300 | C60: 5 | D60: 5 | E60: G3 | F60: Underfunksjon | G60: 70305 | H60: 50 | I60: F3 - 05 | J60: Behandle søknader på legater, stipend og tilskudd | K60: Søknader. Tildelingsbrev. Avslagsbrev. Rapport over utbetalinger. | L60: Kasseres 10 år etter avslutning | M60: 144 Legater, stiftelser | N60: Stiftelsesloven. Forskrift om Oslos tilskudd til mangfoldstiltak
A61: 70000 | B61: 400 | C61: 7 | D61: 7 | E61: G4 | F61: Underfunksjon | G61: 70407 | H61: 73 | I61: F4 - 07
A62: 70000 | B62: 400 | C62: 8 | D62: 8 | E62: G4 | F62: Underfunksjon | G62: 70408 | H62: 74 | I62: F4 - 08
A63: 70000 | B63: 400 | C63: 9 | D63: 9 | E63: G4 | F63: Underfunksjon | G63: 70409 | H63: 75 | I63: F4 - 09
A64: 70000 | B64: 400 | C64: 10 | D64: 10 | E64: G4 | F64: Underfunksjon | G64: =A64+B64+C64+D64 -> 70420 | H64: 76
A65: 70000 | B65: 400 | C65: 11 | D65: 11 | E65: G4 | F65: Underfunksjon | G65: 70422 | H65: 77
A66: 70000 | B66: 400 | C66: 12 | D66: 12 | E66: G4 | F66: Underfunksjon | G66: 70424 | H66: 78
A67: 70000 | B67: 400 | C67: 13 | D67: 13 | E67: G4 | F67: Underfunksjon | G67: 70426 | H67: 79
A68: 70000 | B68: 400 | C68: 14 | D68: 14 | E68: G4 | F68: Underfunksjon | G68: 70428 | H68: 80
A69: 70000 | B69: 400 | C69: 15 | D69: 15 | E69: G4 | F69: Underfunksjon | G69: 70430 | H69: 81
A70: 70000 | B70: 400 | C70: 16 | D70: 16 | E70: G4 | F70: Underfunksjon | G70: 70432 | H70: 82
A71: 70000 | B71: 400 | C71: 17 | D71: 17 | E71: G4 | F71: Underfunksjon | G71: 70434 | H71: 83
A72: 70000 | B72: 400 | C72: 18 | D72: 18 | E72: G4 | F72: Underfunksjon | G72: 70436 | H72: 84
A73: 70000 | B73: 400 | C73: 19 | D73: 19 | E73: G4 | F73: Underfunksjon | G73: 70438 | H73: 85
A74: 70000 | B74: 500 | D74: F | E74: G | F74: Funksjon | G74: =A74+B74+C74 -> 70500 | H74: 86 | I74: F5
A75: 70000 | B75: 500 | C75: 0 | D75: 0 | E75: G5 | F75: Underfunksjon | G75: 70500 | H75: 87 | I75: F5 - 00
A76: 70000 | B76: 500 | C76: 1 | D76: 1 | E76: G5 | F76: Underfunksjon | G76: 70501 | H76: 88 | I76: F5 - 01
A77: 70000 | B77: 500 | C77: 2 | D77: 2 | E77: G5 | F77: Underfunksjon | G77: 70502 | H77: 89 | I77: F5 - 02
A78: 70000 | B78: 500 | C78: 3 | D78: 3 | E78: G5 | F78: Underfunksjon | G78: 70503 | H78: 90 | I78: F5 - 03
A79: 70000 | B79: 500 | C79: 4 | D79: 4 | E79: G5 | F79: Underfunksjon | G79: 70504 | H79: 91 | I79: F5 - 04
A80: 70000 | B80: 500 | C80: 5 | D80: 5 | E80: G5 | F80: Underfunksjon | G80: 70505 | H80: 92 | I80: F5 - 05
A81: 70000 | B81: 500 | C81: 6 | D81: 6 | E81: G5 | F81: Underfunksjon | G81: 70506 | H81: 93 | I81: F5 - 06
A82: 70000 | B82: 500 | C82: 7 | D82: 7 | E82: G5 | F82: Underfunksjon | G82: 70507 | H82: 94 | I82: F5 - 07
A83: 70000 | B83: 500 | C83: 8 | D83: 8 | E83: G5 | F83: Underfunksjon | G83: 70508 | H83: 95 | I83: G5 - 08
A84: 70000 | B84: 500 | C84: 9 | D84: 9 | E84: G5 | F84: Underfunksjon | G84: 70509 | H84: 96
A85: 70000 | B85: 500 | C85: 10 | D85: 10 | E85: G5 | F85: Underfunksjon | G85: =A85+B85+C85+D85 -> 70520 | H85: 97
A86: 70000 | B86: 500 | C86: 11 | D86: 11 | E86: G5 | F86: Underfunksjon | G86: 70522 | H86: 98
A87: 70000 | B87: 500 | C87: 12 | D87: 12 | E87: G5 | F87: Underfunksjon | G87: 70524 | H87: 99
A88: 70000 | B88: 500 | C88: 13 | D88: 13 | E88: G5 | F88: Underfunksjon | G88: 70526 | H88: 100
A89: 70000 | B89: 500 | C89: 14 | D89: 14 | E89: G5 | F89: Underfunksjon | G89: 70528 | H89: 101
A90: 70000 | B90: 500 | C90: 15 | D90: 15 | E90: G5 | F90: Underfunksjon | G90: 70530 | H90: 102
A91: 70000 | B91: 500 | C91: 16 | D91: 16 | E91: G5 | F91: Underfunksjon | G91: 70532 | H91: 103
A92: 70000 | B92: 500 | C92: 17 | D92: 17 | E92: G5 | F92: Underfunksjon | G92: 70534 | H92: 104
A93: 70000 | B93: 500 | C93: 18 | D93: 18 | E93: G5 | F93: Underfunksjon | G93: 70536 | H93: 105
A94: 70000 | B94: 500 | C94: 19 | D94: 19 | E94: G5 | F94: Underfunksjon | G94: 70538 | H94: 106
A95: 70000 | B95: 600 | D95: F | E95: G | F95: Funksjon | G95: =A95+B95+C95 -> 70600 | H95: 107
A96: 70000 | B96: 600 | C96: 0 | D96: 0 | E96: G6 | F96: Underfunksjon | G96: 70600 | H96: 108
A97: 70000 | B97: 600 | C97: 1 | D97: 1 | E97: G6 | F97: Underfunksjon | G97: 70601 | H97: 109
A98: 70000 | B98: 600 | C98: 2 | D98: 2 | E98: G6 | F98: Underfunksjon | G98: 70602 | H98: 110
A99: 70000 | B99: 600 | C99: 3 | D99: 3 | E99: G6 | F99: Underfunksjon | G99: 70603 | H99: 111
A100: 70000 | B100: 600 | C100: 4 | D100: 4 | E100: G6 | F100: Underfunksjon | G100: 70604 | H100: 112
A101: 70000 | B101: 600 | C101: 5 | D101: 5 | E101: G6 | F101: Underfunksjon | G101: 70605 | H101: 113
A102: 70000 | B102: 600 | C102: 6 | D102: 6 | E102: G6 | F102: Underfunksjon | G102: 70606 | H102: 114
A103: 70000 | B103: 600 | C103: 7 | D103: 7 | E103: G6 | F103: Underfunksjon | G103: 70607 | H103: 115
A104: 70000 | B104: 600 | C104: 8 | D104: 8 | E104: G6 | F104: Underfunksjon | G104: 70608 | H104: 116
A105: 70000 | B105: 600 | C105: 9 | D105: 9 | E105: G6 | F105: Underfunksjon | G105: 70609 | H105: 117
A106: 70000 | B106: 600 | C106: 10 | D106: 10 | E106: G6 | F106: Underfunksjon | G106: =A106+B106+C106+D106 -> 70620 | H106: 118
A107: 70000 | B107: 600 | C107: 11 | D107: 11 | E107: G6 | F107: Underfunksjon | G107: 70622 | H107: 119
A108: 70000 | B108: 600 | C108: 12 | D108: 12 | E108: G6 | F108: Underfunksjon | G108: 70624 | H108: 120
A109: 70000 | B109: 600 | C109: 13 | D109: 13 | E109: G6 | F109: Underfunksjon | G109: 70626 | H109: 121
A110: 70000 | B110: 600 | C110: 14 | D110: 14 | E110: G6 | F110: Underfunksjon | G110: 70628 | H110: 122
A111: 70000 | B111: 600 | C111: 15 | D111: 15 | E111: G6 | F111: Underfunksjon | G111: 70630 | H111: 123
A112: 70000 | B112: 600 | C112: 16 | D112: 16 | E112: G6 | F112: Underfunksjon | G112: 70632 | H112: 124
A113: 70000 | B113: 600 | C113: 17 | D113: 17 | E113: G6 | F113: Underfunksjon | G113: 70634 | H113: 125
A114: 70000 | B114: 600 | C114: 18 | D114: 18 | E114: G6 | F114: Underfunksjon | G114: 70636 | H114: 126
A115: 70000 | B115: 600 | C115: 19 | D115: 19 | E115: G6 | F115: Underfunksjon | G115: 70638 | H115: 127
A116: 70000 | B116: 700 | D116: F | E116: G | F116: Funksjon | G116: =A116+B116+C116 -> 70700 | H116: 128
A117: 70000 | B117: 700 | C117: 0 | D117: 0 | E117: G7 | F117: Underfunksjon | G117: 70700 | H117: 129
A118: 70000 | B118: 700 | C118: 1 | D118: 1 | E118: G7 | F118: Underfunksjon | G118: 70701 | H118: 130
A119: 70000 | B119: 700 | C119: 2 | D119: 2 | E119: G7 | F119: Underfunksjon | G119: 70702 | H119: 131
A120: 70000 | B120: 700 | C120: 3 | D120: 3 | E120: G7 | F120: Underfunksjon | G120: 70703 | H120: 132
A121: 70000 | B121: 700 | C121: 4 | D121: 4 | E121: G7 | F121: Underfunksjon | G121: 70704 | H121: 133
A122: 70000 | B122: 700 | C122: 5 | D122: 5 | E122: G7 | F122: Underfunksjon | G122: 70705 | H122: 134
A123: 70000 | B123: 700 | C123: 6 | D123: 6 | E123: G7 | F123: Underfunksjon | G123: 70706 | H123: 135
A124: 70000 | B124: 700 | C124: 7 | D124: 7 | E124: G7 | F124: Underfunksjon | G124: 70707 | H124: 136
A125: 70000 | B125: 700 | C125: 8 | D125: 8 | E125: G7 | F125: Underfunksjon | G125: 70708 | H125: 137
A126: 70000 | B126: 700 | C126: 9 | D126: 9 | E126: G7 | F126: Underfunksjon | G126: 70709 | H126: 138
A127: 70000 | B127: 700 | C127: 10 | D127: 10 | E127: G7 | F127: Underfunksjon | G127: =A127+B127+C127+D127 -> 70720 | H127: 139
A128: 70000 | B128: 700 | C128: 11 | D128: 11 | E128: G7 | F128: Underfunksjon | G128: 70722 | H128: 140
A129: 70000 | B129: 700 | C129: 12 | D129: 12 | E129: G7 | F129: Underfunksjon | G129: 70724 | H129: 141
A130: 70000 | B130: 700 | C130: 13 | D130: 13 | E130: G7 | F130: Underfunksjon | G130: 70726 | H130: 142
A131: 70000 | B131: 700 | C131: 14 | D131: 14 | E131: G7 | F131: Underfunksjon | G131: 70728 | H131: 143
A132: 70000 | B132: 700 | C132: 15 | D132: 15 | E132: G7 | F132: Underfunksjon | G132: 70730 | H132: 144
A133: 70000 | B133: 700 | C133: 16 | D133: 16 | E133: G7 | F133: Underfunksjon | G133: 70732 | H133: 145
A134: 70000 | B134: 700 | C134: 17 | D134: 17 | E134: G7 | F134: Underfunksjon | G134: 70734 | H134: 146
A135: 70000 | B135: 700 | C135: 18 | D135: 18 | E135: G7 | F135: Underfunksjon | G135: 70736 | H135: 147
A136: 70000 | B136: 700 | C136: 19 | D136: 19 | E136: G7 | F136: Underfunksjon | G136: 70738 | H136: 148
A137: 70000 | B137: 800 | D137: F | E137: G | F137: Funksjon | G137: =A137+B137+C137 -> 70800 | H137: 149
A138: 70000 | B138: 800 | C138: 0 | D138: 0 | E138: G8 | F138: Underfunksjon | G138: 70800 | H138: 150
A139: 70000 | B139: 800 | C139: 1 | D139: 1 | E139: G8 | F139: Underfunksjon | G139: 70801 | H139: 151
A140: 70000 | B140: 800 | C140: 2 | D140: 2 | E140: G8 | F140: Underfunksjon | G140: 70802 | H140: 152
A141: 70000 | B141: 800 | C141: 3 | D141: 3 | E141: G8 | F141: Underfunksjon | G141: 70803 | H141: 153
A142: 70000 | B142: 800 | C142: 4 | D142: 4 | E142: G8 | F142: Underfunksjon | G142: 70804 | H142: 154
A143: 70000 | B143: 800 | C143: 5 | D143: 5 | E143: G8 | F143: Underfunksjon | G143: 70805 | H143: 155
A144: 70000 | B144: 800 | C144: 6 | D144: 6 | E144: G8 | F144: Underfunksjon | G144: 70806 | H144: 156
A145: 70000 | B145: 800 | C145: 7 | D145: 7 | E145: G8 | F145: Underfunksjon | G145: 70807 | H145: 157
A146: 70000 | B146: 800 | C146: 8 | D146: 8 | E146: G8 | F146: Underfunksjon | G146: 70808 | H146: 158
A147: 70000 | B147: 800 | C147: 9 | D147: 9 | E147: G8 | F147: Underfunksjon | G147: 70809 | H147: 159
A148: 70000 | B148: 800 | C148: 10 | D148: 10 | E148: G8 | F148: Underfunksjon | G148: =A148+B148+C148+D148 -> 70820 | H148: 160
A149: 70000 | B149: 800 | C149: 11 | D149: 11 | E149: G8 | F149: Underfunksjon | G149: 70822 | H149: 161
A150: 70000 | B150: 800 | C150: 12 | D150: 12 | E150: G8 | F150: Underfunksjon | G150: 70824 | H150: 162
A151: 70000 | B151: 800 | C151: 13 | D151: 13 | E151: G8 | F151: Underfunksjon | G151: 70826 | H151: 163
A152: 70000 | B152: 800 | C152: 14 | D152: 14 | E152: G8 | F152: Underfunksjon | G152: 70828 | H152: 164
A153: 70000 | B153: 800 | C153: 15 | D153: 15 | E153: G8 | F153: Underfunksjon | G153: 70830 | H153: 165
A154: 70000 | B154: 800 | C154: 16 | D154: 16 | E154: G8 | F154: Underfunksjon | G154: 70832 | H154: 166
A155: 70000 | B155: 800 | C155: 17 | D155: 17 | E155: G8 | F155: Underfunksjon | G155: 70834 | H155: 167
A156: 70000 | B156: 800 | C156: 18 | D156: 18 | E156: G8 | F156: Underfunksjon | G156: 70836 | H156: 168
A157: 70000 | B157: 800 | C157: 19 | D157: 19 | E157: G8 | F157: Underfunksjon | G157: 70838 | H157: 169
A158: 70000 | B158: 900 | D158: F | E158: G | F158: Funksjon | G158: =A158+B158+C158 -> 70900 | H158: 170
A159: 70000 | B159: 900 | C159: 0 | D159: 0 | E159: G9 | F159: Underfunksjon | G159: 70900 | H159: 171
A160: 70000 | B160: 900 | C160: 1 | D160: 1 | E160: G9 | F160: Underfunksjon | G160: 70901 | H160: 172
A161: 70000 | B161: 900 | C161: 2 | D161: 2 | E161: G9 | F161: Underfunksjon | G161: 70902 | H161: 173
A162: 70000 | B162: 900 | C162: 3 | D162: 3 | E162: G9 | F162: Underfunksjon | G162: 70903 | H162: 174
A163: 70000 | B163: 900 | C163: 4 | D163: 4 | E163: G9 | F163: Underfunksjon | G163: 70904 | H163: 175
A164: 70000 | B164: 900 | C164: 5 | D164: 5 | E164: G9 | F164: Underfunksjon | G164: 70905 | H164: 176
A165: 70000 | B165: 900 | C165: 6 | D165: 6 | E165: G9 | F165: Underfunksjon | G165: 70906 | H165: 177
A166: 70000 | B166: 900 | C166: 7 | D166: 7 | E166: G9 | F166: Underfunksjon | G166: 70907 | H166: 178
A167: 70000 | B167: 900 | C167: 8 | D167: 8 | E167: G9 | F167: Underfunksjon | G167: 70908 | H167: 179
A168: 70000 | B168: 900 | C168: 9 | D168: 9 | E168: G9 | F168: Underfunksjon | G168: 70909 | H168: 180
A169: 70000 | B169: 900 | C169: 10 | D169: 10 | E169: G9 | F169: Underfunksjon | G169: =A169+B169+C169+D169 -> 70920 | H169: 181
A170: 70000 | B170: 900 | C170: 11 | D170: 11 | E170: G9 | F170: Underfunksjon | G170: 70922 | H170: 182
A171: 70000 | B171: 900 | C171: 12 | D171: 12 | E171: G9 | F171: Underfunksjon | G171: 70924 | H171: 183
A172: 70000 | B172: 900 | C172: 13 | D172: 13 | E172: G9 | F172: Underfunksjon | G172: 70926 | H172: 184
A173: 70000 | B173: 900 | C173: 14 | D173: 14 | E173: G9 | F173: Underfunksjon | G173: 70928 | H173: 185
A174: 70000 | B174: 900 | C174: 15 | D174: 15 | E174: G9 | F174: Underfunksjon | G174: 70930 | H174: 186
A175: 70000 | B175: 900 | C175: 16 | D175: 16 | E175: G9 | F175: Underfunksjon | G175: 70932 | H175: 187
A176: 70000 | B176: 900 | C176: 17 | D176: 17 | E176: G9 | F176: Underfunksjon | G176: 70934 | H176: 188
A177: 70000 | B177: 900 | C177: 18 | D177: 18 | E177: G9 | F177: Underfunksjon | G177: 70936 | H177: 189
A178: 70000 | B178: 900 | C178: 19 | D178: 19 | E178: G9 | F178: Underfunksjon | G178: 70938 | H178: 190
A179: 70000 | B179: 1000 | D179: F | E179: G | F179: Funksjon | G179: =A179+B179+C179 -> 71000 | H179: 191
A180: 70000 | B180: 1000 | C180: 0 | D180: 0 | E180: G10 | F180: Underfunksjon | G180: 71000 | H180: 192
A181: 70000 | B181: 1000 | C181: 1 | D181: 1 | E181: G10 | F181: Underfunksjon | G181: 71001 | H181: 193
A182: 70000 | B182: 1000 | C182: 2 | D182: 2 | E182: G10 | F182: Underfunksjon | G182: 71002 | H182: 194
A183: 70000 | B183: 1000 | C183: 3 | D183: 3 | E183: G10 | F183: Underfunksjon | G183: 71003 | H183: 195
A184: 70000 | B184: 1000 | C184: 4 | D184: 4 | E184: G10 | F184: Underfunksjon | G184: 71004 | H184: 196
A185: 70000 | B185: 1000 | C185: 5 | D185: 5 | E185: G10 | F185: Underfunksjon | G185: 71005 | H185: 197
A186: 70000 | B186: 1000 | C186: 6 | D186: 6 | E186: G10 | F186: Underfunksjon | G186: 71006 | H186: 198
A187: 70000 | B187: 1000 | C187: 7 | D187: 7 | E187: G10 | F187: Underfunksjon | G187: 71007 | H187: 199
A188: 70000 | B188: 1000 | C188: 8 | D188: 8 | E188: G10 | F188: Underfunksjon | G188: 71008 | H188: 200
A189: 70000 | B189: 1000 | C189: 9 | D189: 9 | E189: G10 | F189: Underfunksjon | G189: 71009 | H189: 201
A190: 70000 | B190: 1000 | C190: 10 | D190: 10 | E190: G10 | F190: Underfunksjon | G190: =A190+B190+C190+D190 -> 71020 | H190: 202
A191: 70000 | B191: 1000 | C191: 11 | D191: 11 | E191: G10 | F191: Underfunksjon | G191: 71022 | H191: 203
A192: 70000 | B192: 1000 | C192: 12 | D192: 12 | E192: G10 | F192: Underfunksjon | G192: 71024 | H192: 204
A193: 70000 | B193: 1000 | C193: 13 | D193: 13 | E193: G10 | F193: Underfunksjon | G193: 71026 | H193: 205
A194: 70000 | B194: 1000 | C194: 14 | D194: 14 | E194: G10 | F194: Underfunksjon | G194: 71028 | H194: 206
A195: 70000 | B195: 1000 | C195: 15 | D195: 15 | E195: G10 | F195: Underfunksjon | G195: 71030 | H195: 207
A196: 70000 | B196: 1000 | C196: 16 | D196: 16 | E196: G10 | F196: Underfunksjon | G196: 71032 | H196: 208
A197: 70000 | B197: 1000 | C197: 17 | D197: 17 | E197: G10 | F197: Underfunksjon | G197: 71034 | H197: 209
A198: 70000 | B198: 1000 | C198: 18 | D198: 18 | E198: G10 | F198: Underfunksjon | G198: 71036 | H198: 210
A199: 70000 | B199: 1000 | C199: 19 | D199: 19 | E199: G10 | F199: Underfunksjon | G199: 71038 | H199: 211
A200: 70000 | B200: 1100 | D200: F | E200: G | F200: Funksjon | G200: =A200+B200+C200 -> 71100 | H200: 212
... 209 more rows

Sheet G
A1: Nivå 1 | B1: Nivå 2 | C1: Nivå 3 | D1: Nummer | E1: OvHrliHHHnHH | F1: Funksjon | H1: Løpenummer | I1: Kode | J1: Tittel | K1: Her legges | L1: BK-vurdering | M1: Tidligere arkivnøkkel | N1: Aktuelt lovverk | O1: Kommentar
A2: 80000 | D2: H | F2: Hovedfunksjon | G2: =A2+B2+C2 -> 80000 | H2: 1 | I2: G | J2: Utøve myndighet og kontroll overfor næringslivet
A3: 80000 | B3: 100 | D3: F | E3: H | F3: Funksjon | G3: 80100 | H3: 2 | I3: G1 | J3: Forvalte serverings-, salgs-, skjenkebevilling og tilsyn med salg av tobakk og tobakkssurrogater
A4: 80000 | B4: 100 | C4: 0 | D4: 0 | E4: H1 | F4: Underfunksjon | G4: 80100 | H4: 3 | I4: G1 - 00 | J4: Dokumentere generelt om forvaltning av sjenkebevillingsordningen | K4: Her legges kun dokumenter som ikke naturlig hører hjemme i andre koder og som man vet at ikke har særlig dokumentasjonsverdi. Dersom man mener dokumentet har lengre dokumentasjonsverdi skal det legges på andre koder. | L4: Kasseres 5 år etter avslutning
A5: 80000 | B5: 100 | C5: 1 | D5: 1 | E5: H1 | F5: Underfunksjon | G5: 80101 | H5: 4 | I5: G1 - 01 | J5: Planlegge og styre sjenkebevillingsordningen | K5: Kommunens rutiner for kontroll med skjenke- og serveringssteder. Handlingsplan for alkohol og rus samt lokale forskrifter og retningslinjer for skjenke- og salgsbevillinger. | L5: Bevares og avleveres til Byarkivet
A6: 80000 | B6: 100 | C6: 2 | D6: 2 | E6: H1 | F6: Underfunksjon | G6: 80102 | H6: 5 | I6: G1 - 02 | J6: Behandle søknader om sjenkebevilling for enkeltarrangement (ambulerende) | K6: Sjenkebevilling for enkelt arrangement, lukket arrangement. Salgsbevilling for enkelt arrangement, åpent arrangement. Utvidelse av bevilling for enkelt anledning. | L6: Kasseres 5 år etter avslutning | M6: 944 Overnattings-, serverings- og sjenkesteder | N6: Alkoholloven, Serveringsloven
I7: G1 - 03 | J7: Behandle søknader om serverings-, salgs- og sjenkebevilling | K7: Salgsbevilling. Endring av salgsbevilling. Serveringsbevilling og sjenkebevilling. Endring av serverings- og sjenkebevilling. Innhenting av høringsuttalelser. Svar på høringsuttalelser. Forvaltningsmelding. Konkursinnberetninger. Foreleggelse av bemerkninger. Søkers kommentarer til bemerkningene. | L7: Kasseres 10 år etter avslutning | M7: 944 Overnattings-, serverings- og sjenkesteder | N7: Alkoholloven, Serveringsloven
A8: 80000 | B8: 100 | C8: 3 | D8: 3 | E8: H1 | F8: Underfunksjon | G8: 80103 | H8: 6 | I8: G1 - 04 | J8: Følge opp statlige sjenkebevillinger | K8: Melding om statlige sjenkebevillinger | L8: Kasseres 10 år etter avslutning | M8: 944 Overnattings-, serverings- og sjenkesteder | N8: Alkoholloven, Serveringsloven
A9: 80000 | B9: 100 | C9: 4 | D9: 4 | E9: H1 | F9: Underfunksjon | G9: 80104 | H9: 7 | I9: G1 - 05 | J9: Følge opp serverings-, salgs- og sjenkebevilling | K9: Klagesaker, bevilling og kontroll. Permanent inndraging av sjenkebevilling. Tilbakekall av serveringsbevilling. | L9: Bevares og avleveres til Byarkivet | M9: 944 Overnattings-, serverings- og sjenkesteder | N9: Alkoholloven, Serveringsloven
A10: 80000 | B10: 100 | C10: 5 | D10: 5 | E10: H1 | F10: Underfunksjon | G10: 80105 | H10: 8 | I10: G1 - 06 | J10: Gjennomføre salgs- skjenke- og vandelskontroll | K10: Kontrollsak (løpende vandel, midlertidig inndragning). Gebyrer. | L10: Ikke vurdert | M10: 944 Overnattings-, serverings- og sjenkesteder | N10: Alkoholloven, Serveringsloven
A11: 80000 | B11: 100 | C11: 6 | D11: 6 | E11: H1 | F11: Underfunksjon | G11: 80106 | H11: 9 | I11: G1 - 07 | J11: Gjennomføre etablerer- og kunnskapsprøve | K11: Vitnemål fra etablererprøven og kunnskapsprøven. Eksamensprostokoller. | L11: Bevares og avleveres til Byarkivet | M11: 944 Overnattings-, serverings- og sjenkesteder | N11: Alkoholloven, Serveringsloven, Forskrift om etablererprøve - serveringssted
A12: 80000 | B12: 100 | C12: 7 | D12: 7 | E12: H1 | F12: Underfunksjon | G12: 80107 | H12: 10 | I12: G1 - 08 | J12: Føre tilsyn med salg av tobakk og tobakksurrugater | L12: Ikke vurdert
A13: 80000 | B13: 100 | C13: 8 | D13: 8 | E13: H1 | F13: Underfunksjon | G13: 80108 | H13: 11 | I13: G1 - 09 | J13: Avholde kurs for ansatte på sjekesteder (Saluttkurs) | L13: Ikke vurdert
A14: 80000 | B14: 100 | C14: 9 | D14: 9 | E14: H1 | F14: Underfunksjon | G14: 80109 | H14: 12 | I14: G1 - 10
A15: 80000 | B15: 100 | C15: 10 | D15: 10 | E15: H1 | F15: Underfunksjon | G15: =A15+B15+C15+D15 -> 80120 | H15: 13
A16: 80000 | B16: 100 | C16: 11 | D16: 11 | E16: H1 | F16: Underfunksjon | G16: 80122 | H16: 14
A17: 80000 | B17: 100 | C17: 12 | D17: 12 | E17: H1 | F17: Underfunksjon | G17: 80124 | H17: 15
A18: 80000 | B18: 100 | C18: 13 | D18: 13 | E18: H1 | F18: Underfunksjon | G18: 80126 | H18: 16
A19: 80000 | B19: 100 | C19: 14 | D19: 14 | E19: H1 | F19: Underfunksjon | G19: 80128 | H19: 17
A20: 80000 | B20: 100 | C20: 15 | D20: 15 | E20: H1 | F20: Underfunksjon | G20: 80130 | H20: 18
A21: 80000 | B21: 100 | C21: 16 | D21: 16 | E21: H1 | F21: Underfunksjon | G21: 80132 | H21: 19
A22: 80000 | B22: 100 | C22: 17 | D22: 17 | E22: H1 | F22: Underfunksjon | G22: 80134 | H22: 20
A23: 80000 | B23: 100 | C23: 18 | D23: 18 | E23: H1 | F23: Underfunksjon | G23: 80136 | H23: 21
A24: 80000 | B24: 100 | C24: 19 | D24: 19 | E24: H1 | F24: Underfunksjon | G24: 80138 | H24: 22
A25: 80000 | B25: 200 | D25: F | E25: H | F25: Funksjon | G25: =A25+B25+C25 -> 80200 | H25: 23 | I25: G2 | J25: Forvalte transportløyver
A26: 80000 | B26: 200 | C26: 0 | D26: 0 | E26: H2 | F26: Underfunksjon | G26: 80200 | H26: 24 | I26: G2 - 00 | J26: Dokumentere generelt om forvaltning av transportløyver | K26: Her legges kun dokumenter som ikke naturlig hører hjemme i andre koder og som man vet at ikke har særlig dokumentasjonsverdi. Dersom man mener dokumentet har lengre dokumentasjonsverdi skal det legges på andre koder. | L26: Kasseres 5 år etter avslutning
A27: 80000 | B27: 200 | C27: 1 | D27: 1 | E27: H2 | F27: Underfunksjon | G27: 80201 | H27: 25 | I27: G2 - 01 | J27: Behandle søknader om transportløyve | K27: Drosjeløyve, løyve for transport til funksjonshemmede, selskapsvognløyve. Søknad. Vedtak. Klage. Garantier. Løyvedokumenter. Bestyrerkontrakter. Vandelsvurdering. | L27: Bevares og avleveres til Byarkivet | M27: 616.5 Persontransport utenfor rute, drosjer, uføretransport m.v. | N27: Yrkestransportlova og -forskriften
A28: 80000 | B28: 200 | C28: 2 | D28: 2 | E28: H2 | F28: Underfunksjon | G28: 80202 | H28: 26 | I28: G2 - 02
A29: 80000 | B29: 200 | C29: 3 | D29: 3 | E29: H2 | F29: Underfunksjon | G29: 80203 | H29: 27 | I29: G2 - 03
A30: 80000 | B30: 200 | C30: 4 | D30: 4 | E30: H2 | F30: Underfunksjon | G30: 80204 | H30: 28 | I30: G2 - 04
A31: 80000 | B31: 200 | C31: 5 | D31: 5 | E31: H2 | F31: Underfunksjon | G31: 80205 | H31: 29 | I31: G2 - 05
A32: 80000 | B32: 200 | C32: 6 | D32: 6 | E32: H2 | F32: Underfunksjon | G32: 80206 | H32: 30 | I32: G2 - 06
A33: 80000 | B33: 200 | C33: 7 | D33: 7 | E33: H2 | F33: Underfunksjon | G33: 80207 | H33: 31 | I33: G2 - 07
A34: 80000 | B34: 200 | C34: 8 | D34: 8 | E34: H2 | F34: Underfunksjon | G34: 80208 | H34: 32 | I34: G2 - 08
A35: 80000 | B35: 200 | C35: 9 | D35: 9 | E35: H2 | F35: Underfunksjon | G35: 80209 | H35: 33 | I35: G2 - 09
A36: 80000 | B36: 200 | C36: 10 | D36: 10 | E36: H2 | F36: Underfunksjon | G36: =A36+B36+C36+D36 -> 80220 | H36: 34
A37: 80000 | B37: 200 | C37: 11 | D37: 11 | E37: H2 | F37: Underfunksjon | G37: 80222 | H37: 35
A38: 80000 | B38: 200 | C38: 12 | D38: 12 | E38: H2 | F38: Underfunksjon | G38: 80224 | H38: 36
A39: 80000 | B39: 200 | C39: 13 | D39: 13 | E39: H2 | F39: Underfunksjon | G39: 80226 | H39: 37
A40: 80000 | B40: 200 | C40: 14 | D40: 14 | E40: H2 | F40: Underfunksjon | G40: 80228 | H40: 38
A41: 80000 | B41: 200 | C41: 15 | D41: 15 | E41: H2 | F41: Underfunksjon | G41: 80230 | H41: 39
A42: 80000 | B42: 200 | C42: 16 | D42: 16 | E42: H2 | F42: Underfunksjon | G42: 80232 | H42: 40
A43: 80000 | B43: 200 | C43: 17 | D43: 17 | E43: H2 | F43: Underfunksjon | G43: 80234 | H43: 41
A44: 80000 | B44: 200 | C44: 18 | D44: 18 | E44: H2 | F44: Underfunksjon | G44: 80236 | H44: 42
A45: 80000 | B45: 200 | C45: 19 | D45: 19 | E45: H2 | F45: Underfunksjon | G45: 80238 | H45: 43
A46: 80000 | B46: 300 | D46: F | E46: H | F46: Funksjon | G46: =A46+B46+C46 -> 80300 | H46: 44 | I46: G3 | J46: Utøve arbeidsgiverkontroll og informasjonstiltak mot arbeidsgivere
A47: 80000 | B47: 300 | C47: 0 | D47: 0 | E47: H3 | F47: Underfunksjon | G47: 80300 | H47: 45 | I47: G3 - 00 | J47: Dokumentere generelt om utøving av arbeidsgiverkontroll og informasjonstiltak mot arbeidsgivere | K47: Her legges kun dokumenter som ikke naturlig hører hjemme i andre koder og som man vet ikke har særlig dokumentasjonsverdi. Dersom man mener dokumentet har lengre dokumentasjonsverdi skal det legges på andre koder. | L47: Kasseres 5 år etter avslutning
A48: 80000 | B48: 300 | C48: 1 | D48: 1 | E48: H3 | F48: Underfunksjon | G48: 80301 | H48: 46 | I48: G3 - 01 | J48: Plalegge og evaluere arbeidsgiverkontroll og informasjonstiltak mot arbeidsgivere | K48: Planlegging og utarbeidelse av kontrollplan, rapportering til Skatt Øst | L48: Ikke vurdert
A49: 80000 | B49: 300 | C49: 2 | D49: 2 | E49: H3 | F49: Underfunksjon | G49: 80302 | H49: 47 | I49: G3 - 02 | J49: Gjennomføre arbeidsgiverkontroll | K49: Nekt godskrift - varsel om kontroll. Varsel om nekt godskriving av forskuddstrekk. Vedtak. Saksekpedering - oppdragsskjema til Skatt Øst. | L49: Kasseres 10 år etter avslutning
A50: 80000 | B50: 300 | C50: 3 | D50: 3 | E50: H3 | F50: Underfunksjon | G50: 80303 | H50: 48 | I50: G3 - 03 | J50: Informere arbeidsgivere | K50: Informasjon på nettsider. Veiledning via e-post. Opplæringsopplegg og manus. | L50: Bevares og avleveres til Byarkivet
A51: 80000 | B51: 300 | C51: 4 | D51: 4 | E51: H3 | F51: Underfunksjon | G51: 80304 | H51: 49 | I51: G3 - 04 | J51: Behandle avregningsklager | K51: Klage, svar/foreløpig svar på klage, oversendelsesbrev til andre SKO, varsel om vedtak, vedtak, ev. ompostering av forskuddstrekk, ev. ny avregning. | L51: Kasseres 10 år etter avslutning
A52: 80000 | B52: 300 | C52: 5 | D52: 5 | E52: H3 | F52: Underfunksjon | G52: 80305 | H52: 50 | I52: G3 - 05 | J52: Behandle boinnberetning | K52: Innberettning, forespørsel, varsel om bokettersyn, bankforespørsel, følgebrev med rapport, ev. underkjenning, oppdragsskjema til SØ, vedtak fra SØ, ev. klage. | L52: Kasseres 10 år etter avslutning
A53: 80000 | B53: 300 | C53: 6 | D53: 6 | E53: H3 | F53: Underfunksjon | G53: 80306 | H53: 51 | I53: G3 - 06 | J53: Gjennomføre bokettersyn | K53: Beslutning/begrunnelse, varsel om kontroll, dokumentasjon, følgebrev og rapport, tilsvar, svar på tilsvar/erstatningsrapport, oppdragsskjema til SØ | L53: Kasseres 10 år etter avslutning
A54: 80000 | B54: 300 | C54: 7 | D54: 7 | E54: H3 | F54: Underfunksjon | G54: 80307 | H54: 52 | I54: G4 - 02 | J54: Følge opp sosial dumping på arbeidsplasser | K54: Mannskapslister. Oversiktslister. Brann- og redniningslister | L54: Ikke vurdert | M54: 218 Arbeidervern, arbeidstilsyn?
A55: 80000 | B55: 300 | C55: 8 | D55: 8 | E55: H3 | F55: Underfunksjon | G55: 80308 | H55: 53 | I55: G3 - 08
A56: 80000 | B56: 300 | C56: 9 | D56: 9 | E56: H3 | F56: Underfunksjon | G56: 80309 | H56: 54 | I56: G3 - 09
A57: 80000 | B57: 300 | C57: 10 | D57: 10 | E57: H3 | F57: Underfunksjon | G57: =A57+B57+C57+D57 -> 80320 | H57: 55
A58: 80000 | B58: 300 | C58: 11 | D58: 11 | E58: H3 | F58: Underfunksjon | G58: 80322 | H58: 56
A59: 80000 | B59: 300 | C59: 12 | D59: 12 | E59: H3 | F59: Underfunksjon | G59: 80324 | H59: 57
A60: 80000 | B60: 300 | C60: 13 | D60: 13 | E60: H3 | F60: Underfunksjon | G60: 80326 | H60: 58
A61: 80000 | B61: 300 | C61: 14 | D61: 14 | E61: H3 | F61: Underfunksjon | G61: 80328 | H61: 59
A62: 80000 | B62: 300 | C62: 15 | D62: 15 | E62: H3 | F62: Underfunksjon | G62: 80330 | H62: 60
A63: 80000 | B63: 300 | C63: 16 | D63: 16 | E63: H3 | F63: Underfunksjon | G63: 80332 | H63: 61
A64: 80000 | B64: 300 | C64: 17 | D64: 17 | E64: H3 | F64: Underfunksjon | G64: 80334 | H64: 62
A65: 80000 | B65: 300 | C65: 18 | D65: 18 | E65: H3 | F65: Underfunksjon | G65: 80336 | H65: 63
A66: 80000 | B66: 300 | C66: 19 | D66: 19 | E66: H3 | F66: Underfunksjon | G66: 80338 | H66: 64
A67: 80000 | B67: 400 | D67: F | E67: H | F67: Funksjon | G67: =A67+B67+C67 -> 80400 | H67: 65 | I67: G4
A68: 80000 | B68: 400 | C68: 0 | D68: 0 | E68: H4 | F68: Underfunksjon | G68: 80400 | H68: 66 | I68: G4 - 00
I69: G4 - 01
A70: 80000 | B70: 400 | C70: 1 | D70: 1 | E70: H4 | F70: Underfunksjon | G70: 80401 | H70: 67 | I70: G4 - 02
A71: 80000 | B71: 400 | C71: 2 | D71: 2 | E71: H4 | F71: Underfunksjon | G71: 80402 | H71: 68 | I71: G4 - 03
A72: 80000 | B72: 400 | C72: 3 | D72: 3 | E72: H4 | F72: Underfunksjon | G72: 80403 | H72: 69 | I72: G4 - 04
A73: 80000 | B73: 400 | C73: 4 | D73: 4 | E73: H4 | F73: Underfunksjon | G73: 80404 | H73: 70 | I73: G4 - 05
A74: 80000 | B74: 400 | C74: 5 | D74: 5 | E74: H4 | F74: Underfunksjon | G74: 80405 | H74: 71 | I74: G4 - 06
A75: 80000 | B75: 400 | C75: 6 | D75: 6 | E75: H4 | F75: Underfunksjon | G75: 80406 | H75: 72 | I75: G4 - 06
A76: 80000 | B76: 400 | C76: 7 | D76: 7 | E76: H4 | F76: Underfunksjon | G76: 80407 | H76: 73
A77: 80000 | B77: 400 | C77: 8 | D77: 8 | E77: H4 | F77: Underfunksjon | G77: 80408 | H77: 74
A78: 80000 | B78: 400 | C78: 9 | D78: 9 | E78: H4 | F78: Underfunksjon | G78: 80409 | H78: 75
A79: 80000 | B79: 400 | C79: 10 | D79: 10 | E79: H4 | F79: Underfunksjon | G79: =A79+B79+C79+D79 -> 80420 | H79: 76
A80: 80000 | B80: 400 | C80: 11 | D80: 11 | E80: H4 | F80: Underfunksjon | G80: 80422 | H80: 77
A81: 80000 | B81: 400 | C81: 12 | D81: 12 | E81: H4 | F81: Underfunksjon | G81: 80424 | H81: 78
A82: 80000 | B82: 500 | D82: F | E82: H | F82: Funksjon | G82: =A82+B82+C82 -> 80500 | H82: 86 | I82: G5
A83: 80000 | B83: 500 | C83: 0 | D83: 0 | E83: H5 | F83: Underfunksjon | G83: 80500 | H83: 87 | I83: G5 - 00
A84: 80000 | B84: 500 | C84: 1 | D84: 1 | E84: H5 | F84: Underfunksjon | G84: 80501 | H84: 88 | I84: G5 - 01
A85: 80000 | B85: 500 | C85: 2 | D85: 2 | E85: H5 | F85: Underfunksjon | G85: 80502 | H85: 89 | I85: G5 - 02
A86: 80000 | B86: 500 | C86: 3 | D86: 3 | E86: H5 | F86: Underfunksjon | G86: 80503 | H86: 90 | I86: G5 - 03
A87: 80000 | B87: 500 | C87: 4 | D87: 4 | E87: H5 | F87: Underfunksjon | G87: 80504 | H87: 91 | I87: G5 - 04
A88: 80000 | B88: 500 | C88: 5 | D88: 5 | E88: H5 | F88: Underfunksjon | G88: 80505 | H88: 92 | I88: G5 - 05
A89: 80000 | B89: 500 | C89: 6 | D89: 6 | E89: H5 | F89: Underfunksjon | G89: 80506 | H89: 93 | I89: G5 - 06
A90: 80000 | B90: 500 | C90: 7 | D90: 7 | E90: H5 | F90: Underfunksjon | G90: 80507 | H90: 94 | I90: G5 - 07
A91: 80000 | B91: 500 | C91: 8 | D91: 8 | E91: H5 | F91: Underfunksjon | G91: 80508 | H91: 95 | I91: G5 - 08
A92: 80000 | B92: 500 | C92: 9 | D92: 9 | E92: H5 | F92: Underfunksjon | G92: 80509 | H92: 96 | I92: G5 - 09
A93: 80000 | B93: 500 | C93: 10 | D93: 10 | E93: H5 | F93: Underfunksjon | G93: =A93+B93+C93+D93 -> 80520 | H93: 97
A94: 80000 | B94: 500 | C94: 11 | D94: 11 | E94: H5 | F94: Underfunksjon | G94: 80522 | H94: 98
A95: 80000 | B95: 500 | C95: 12 | D95: 12 | E95: H5 | F95: Underfunksjon | G95: 80524 | H95: 99
A96: 80000 | B96: 500 | C96: 13 | D96: 13 | E96: H5 | F96: Underfunksjon | G96: 80526 | H96: 100
A97: 80000 | B97: 500 | C97: 14 | D97: 14 | E97: H5 | F97: Underfunksjon | G97: 80528 | H97: 101
A98: 80000 | B98: 500 | C98: 15 | D98: 15 | E98: H5 | F98: Underfunksjon | G98: 80530 | H98: 102
A99: 80000 | B99: 500 | C99: 16 | D99: 16 | E99: H5 | F99: Underfunksjon | G99: 80532 | H99: 103
A100: 80000 | B100: 500 | C100: 17 | D100: 17 | E100: H5 | F100: Underfunksjon | G100: 80534 | H100: 104
A101: 80000 | B101: 500 | C101: 18 | D101: 18 | E101: H5 | F101: Underfunksjon | G101: 80536 | H101: 105
A102: 80000 | B102: 500 | C102: 19 | D102: 19 | E102: H5 | F102: Underfunksjon | G102: 80538 | H102: 106
A103: 80000 | B103: 600 | D103: F | E103: H | F103: Funksjon | G103: =A103+B103+C103 -> 80600 | H103: 107
A104: 80000 | B104: 600 | C104: 0 | D104: 0 | E104: H6 | F104: Underfunksjon | G104: 80600 | H104: 108
A105: 80000 | B105: 600 | C105: 1 | D105: 1 | E105: H6 | F105: Underfunksjon | G105: 80601 | H105: 109
A106: 80000 | B106: 600 | C106: 2 | D106: 2 | E106: H6 | F106: Underfunksjon | G106: 80602 | H106: 110
A107: 80000 | B107: 600 | C107: 3 | D107: 3 | E107: H6 | F107: Underfunksjon | G107: 80603 | H107: 111
A108: 80000 | B108: 600 | C108: 4 | D108: 4 | E108: H6 | F108: Underfunksjon | G108: 80604 | H108: 112
A109: 80000 | B109: 600 | C109: 5 | D109: 5 | E109: H6 | F109: Underfunksjon | G109: 80605 | H109: 113
A110: 80000 | B110: 600 | C110: 6 | D110: 6 | E110: H6 | F110: Underfunksjon | G110: 80606 | H110: 114
A111: 80000 | B111: 600 | C111: 7 | D111: 7 | E111: H6 | F111: Underfunksjon | G111: 80607 | H111: 115
A112: 80000 | B112: 600 | C112: 8 | D112: 8 | E112: H6 | F112: Underfunksjon | G112: 80608 | H112: 116
A113: 80000 | B113: 600 | C113: 9 | D113: 9 | E113: H6 | F113: Underfunksjon | G113: 80609 | H113: 117
A114: 80000 | B114: 600 | C114: 10 | D114: 10 | E114: H6 | F114: Underfunksjon | G114: =A114+B114+C114+D114 -> 80620 | H114: 118
A115: 80000 | B115: 600 | C115: 11 | D115: 11 | E115: H6 | F115: Underfunksjon | G115: 80622 | H115: 119
A116: 80000 | B116: 600 | C116: 12 | D116: 12 | E116: H6 | F116: Underfunksjon | G116: 80624 | H116: 120
A117: 80000 | B117: 600 | C117: 13 | D117: 13 | E117: H6 | F117: Underfunksjon | G117: 80626 | H117: 121
A118: 80000 | B118: 600 | C118: 14 | D118: 14 | E118: H6 | F118: Underfunksjon | G118: 80628 | H118: 122
A119: 80000 | B119: 600 | C119: 15 | D119: 15 | E119: H6 | F119: Underfunksjon | G119: 80630 | H119: 123
A120: 80000 | B120: 600 | C120: 16 | D120: 16 | E120: H6 | F120: Underfunksjon | G120: 80632 | H120: 124
A121: 80000 | B121: 600 | C121: 17 | D121: 17 | E121: H6 | F121: Underfunksjon | G121: 80634 | H121: 125
A122: 80000 | B122: 600 | C122: 18 | D122: 18 | E122: H6 | F122: Underfunksjon | G122: 80636 | H122: 126
A123: 80000 | B123: 600 | C123: 19 | D123: 19 | E123: H6 | F123: Underfunksjon | G123: 80638 | H123: 127
A124: 80000 | B124: 700 | D124: F | E124: H | F124: Funksjon | G124: =A124+B124+C124 -> 80700 | H124: 128
A125: 80000 | B125: 700 | C125: 0 | D125: 0 | E125: H7 | F125: Underfunksjon | G125: 80700 | H125: 129
A126: 80000 | B126: 700 | C126: 1 | D126: 1 | E126: H7 | F126: Underfunksjon | G126: 80701 | H126: 130
A127: 80000 | B127: 700 | C127: 2 | D127: 2 | E127: H7 | F127: Underfunksjon | G127: 80702 | H127: 131
A128: 80000 | B128: 700 | C128: 3 | D128: 3 | E128: H7 | F128: Underfunksjon | G128: 80703 | H128: 132
A129: 80000 | B129: 700 | C129: 4 | D129: 4 | E129: H7 | F129: Underfunksjon | G129: 80704 | H129: 133
A130: 80000 | B130: 700 | C130: 5 | D130: 5 | E130: H7 | F130: Underfunksjon | G130: 80705 | H130: 134
A131: 80000 | B131: 700 | C131: 6 | D131: 6 | E131: H7 | F131: Underfunksjon | G131: 80706 | H131: 135
A132: 80000 | B132: 700 | C132: 7 | D132: 7 | E132: H7 | F132: Underfunksjon | G132: 80707 | H132: 136
A133: 80000 | B133: 700 | C133: 8 | D133: 8 | E133: H7 | F133: Underfunksjon | G133: 80708 | H133: 137
A134: 80000 | B134: 700 | C134: 9 | D134: 9 | E134: H7 | F134: Underfunksjon | G134: 80709 | H134: 138
A135: 80000 | B135: 700 | C135: 10 | D135: 10 | E135: H7 | F135: Underfunksjon | G135: =A135+B135+C135+D135 -> 80720 | H135: 139
A136: 80000 | B136: 700 | C136: 11 | D136: 11 | E136: H7 | F136: Underfunksjon | G136: 80722 | H136: 140
A137: 80000 | B137: 700 | C137: 12 | D137: 12 | E137: H7 | F137: Underfunksjon | G137: 80724 | H137: 141
A138: 80000 | B138: 700 | C138: 13 | D138: 13 | E138: H7 | F138: Underfunksjon | G138: 80726 | H138: 142
A139: 80000 | B139: 700 | C139: 14 | D139: 14 | E139: H7 | F139: Underfunksjon | G139: 80728 | H139: 143
A140: 80000 | B140: 700 | C140: 15 | D140: 15 | E140: H7 | F140: Underfunksjon | G140: 80730 | H140: 144
A141: 80000 | B141: 700 | C141: 16 | D141: 16 | E141: H7 | F141: Underfunksjon | G141: 80732 | H141: 145
A142: 80000 | B142: 700 | C142: 17 | D142: 17 | E142: H7 | F142: Underfunksjon | G142: 80734 | H142: 146
A143: 80000 | B143: 700 | C143: 18 | D143: 18 | E143: H7 | F143: Underfunksjon | G143: 80736 | H143: 147
A144: 80000 | B144: 700 | C144: 19 | D144: 19 | E144: H7 | F144: Underfunksjon | G144: 80738 | H144: 148
A145: 80000 | B145: 800 | D145: F | E145: H | F145: Funksjon | G145: =A145+B145+C145 -> 80800 | H145: 149
A146: 80000 | B146: 800 | C146: 0 | D146: 0 | E146: H8 | F146: Underfunksjon | G146: 80800 | H146: 150
A147: 80000 | B147: 800 | C147: 1 | D147: 1 | E147: H8 | F147: Underfunksjon | G147: 80801 | H147: 151
A148: 80000 | B148: 800 | C148: 2 | D148: 2 | E148: H8 | F148: Underfunksjon | G148: 80802 | H148: 152
A149: 80000 | B149: 800 | C149: 3 | D149: 3 | E149: H8 | F149: Underfunksjon | G149: 80803 | H149: 153
A150: 80000 | B150: 800 | C150: 4 | D150: 4 | E150: H8 | F150: Underfunksjon | G150: 80804 | H150: 154
A151: 80000 | B151: 800 | C151: 5 | D151: 5 | E151: H8 | F151: Underfunksjon | G151: 80805 | H151: 155
A152: 80000 | B152: 800 | C152: 6 | D152: 6 | E152: H8 | F152: Underfunksjon | G152: 80806 | H152: 156
A153: 80000 | B153: 800 | C153: 7 | D153: 7 | E153: H8 | F153: Underfunksjon | G153: 80807 | H153: 157
A154: 80000 | B154: 800 | C154: 8 | D154: 8 | E154: H8 | F154: Underfunksjon | G154: 80808 | H154: 158
A155: 80000 | B155: 800 | C155: 9 | D155: 9 | E155: H8 | F155: Underfunksjon | G155: 80809 | H155: 159
A156: 80000 | B156: 800 | C156: 10 | D156: 10 | E156: H8 | F156: Underfunksjon | G156: =A156+B156+C156+D156 -> 80820 | H156: 160
A157: 80000 | B157: 800 | C157: 11 | D157: 11 | E157: H8 | F157: Underfunksjon | G157: 80822 | H157: 161
A158: 80000 | B158: 800 | C158: 12 | D158: 12 | E158: H8 | F158: Underfunksjon | G158: 80824 | H158: 162
A159: 80000 | B159: 800 | C159: 13 | D159: 13 | E159: H8 | F159: Underfunksjon | G159: 80826 | H159: 163
A160: 80000 | B160: 800 | C160: 14 | D160: 14 | E160: H8 | F160: Underfunksjon | G160: 80828 | H160: 164
A161: 80000 | B161: 800 | C161: 15 | D161: 15 | E161: H8 | F161: Underfunksjon | G161: 80830 | H161: 165
A162: 80000 | B162: 800 | C162: 16 | D162: 16 | E162: H8 | F162: Underfunksjon | G162: 80832 | H162: 166
A163: 80000 | B163: 800 | C163: 17 | D163: 17 | E163: H8 | F163: Underfunksjon | G163: 80834 | H163: 167
A164: 80000 | B164: 800 | C164: 18 | D164: 18 | E164: H8 | F164: Underfunksjon | G164: 80836 | H164: 168
A165: 80000 | B165: 800 | C165: 19 | D165: 19 | E165: H8 | F165: Underfunksjon | G165: 80838 | H165: 169
A166: 80000 | B166: 900 | D166: F | E166: H | F166: Funksjon | G166: =A166+B166+C166 -> 80900 | H166: 170
A167: 80000 | B167: 900 | C167: 0 | D167: 0 | E167: H9 | F167: Underfunksjon | G167: 80900 | H167: 171
A168: 80000 | B168: 900 | C168: 1 | D168: 1 | E168: H9 | F168: Underfunksjon | G168: 80901 | H168: 172
A169: 80000 | B169: 900 | C169: 2 | D169: 2 | E169: H9 | F169: Underfunksjon | G169: 80902 | H169: 173
A170: 80000 | B170: 900 | C170: 3 | D170: 3 | E170: H9 | F170: Underfunksjon | G170: 80903 | H170: 174
A171: 80000 | B171: 900 | C171: 4 | D171: 4 | E171: H9 | F171: Underfunksjon | G171: 80904 | H171: 175
A172: 80000 | B172: 900 | C172: 5 | D172: 5 | E172: H9 | F172: Underfunksjon | G172: 80905 | H172: 176
A173: 80000 | B173: 900 | C173: 6 | D173: 6 | E173: H9 | F173: Underfunksjon | G173: 80906 | H173: 177
A174: 80000 | B174: 900 | C174: 7 | D174: 7 | E174: H9 | F174: Underfunksjon | G174: 80907 | H174: 178
A175: 80000 | B175: 900 | C175: 8 | D175: 8 | E175: H9 | F175: Underfunksjon | G175: 80908 | H175: 179
A176: 80000 | B176: 900 | C176: 9 | D176: 9 | E176: H9 | F176: Underfunksjon | G176: 80909 | H176: 180
A177: 80000 | B177: 900 | C177: 10 | D177: 10 | E177: H9 | F177: Underfunksjon | G177: =A177+B177+C177+D177 -> 80920 | H177: 181
A178: 80000 | B178: 900 | C178: 11 | D178: 11 | E178: H9 | F178: Underfunksjon | G178: 80922 | H178: 182
A179: 80000 | B179: 900 | C179: 12 | D179: 12 | E179: H9 | F179: Underfunksjon | G179: 80924 | H179: 183
A180: 80000 | B180: 900 | C180: 13 | D180: 13 | E180: H9 | F180: Underfunksjon | G180: 80926 | H180: 184
A181: 80000 | B181: 900 | C181: 14 | D181: 14 | E181: H9 | F181: Underfunksjon | G181: 80928 | H181: 185
A182: 80000 | B182: 900 | C182: 15 | D182: 15 | E182: H9 | F182: Underfunksjon | G182: 80930 | H182: 186
A183: 80000 | B183: 900 | C183: 16 | D183: 16 | E183: H9 | F183: Underfunksjon | G183: 80932 | H183: 187
A184: 80000 | B184: 900 | C184: 17 | D184: 17 | E184: H9 | F184: Underfunksjon | G184: 80934 | H184: 188
A185: 80000 | B185: 900 | C185: 18 | D185: 18 | E185: H9 | F185: Underfunksjon | G185: 80936 | H185: 189
A186: 80000 | B186: 900 | C186: 19 | D186: 19 | E186: H9 | F186: Underfunksjon | G186: 80938 | H186: 190
A187: 80000 | B187: 1000 | D187: F | E187: H | F187: Funksjon | G187: =A187+B187+C187 -> 81000 | H187: 191
A188: 80000 | B188: 1000 | C188: 0 | D188: 0 | E188: H10 | F188: Underfunksjon | G188: 81000 | H188: 192
A189: 80000 | B189: 1000 | C189: 1 | D189: 1 | E189: H10 | F189: Underfunksjon | G189: 81001 | H189: 193
A190: 80000 | B190: 1000 | C190: 2 | D190: 2 | E190: H10 | F190: Underfunksjon | G190: 81002 | H190: 194
A191: 80000 | B191: 1000 | C191: 3 | D191: 3 | E191: H10 | F191: Underfunksjon | G191: 81003 | H191: 195
A192: 80000 | B192: 1000 | C192: 4 | D192: 4 | E192: H10 | F192: Underfunksjon | G192: 81004 | H192: 196
A193: 80000 | B193: 1000 | C193: 5 | D193: 5 | E193: H10 | F193: Underfunksjon | G193: 81005 | H193: 197
A194: 80000 | B194: 1000 | C194: 6 | D194: 6 | E194: H10 | F194: Underfunksjon | G194: 81006 | H194: 198
A195: 80000 | B195: 1000 | C195: 7 | D195: 7 | E195: H10 | F195: Underfunksjon | G195: 81007 | H195: 199
A196: 80000 | B196: 1000 | C196: 8 | D196: 8 | E196: H10 | F196: Underfunksjon | G196: 81008 | H196: 200
A197: 80000 | B197: 1000 | C197: 9 | D197: 9 | E197: H10 | F197: Underfunksjon | G197: 81009 | H197: 201
A198: 80000 | B198: 1000 | C198: 10 | D198: 10 | E198: H10 | F198: Underfunksjon | G198: =A198+B198+C198+D198 -> 81020 | H198: 202
A199: 80000 | B199: 1000 | C199: 11 | D199: 11 | E199: H10 | F199: Underfunksjon | G199: 81022 | H199: 203
A200: 80000 | B200: 1000 | C200: 12 | D200: 12 | E200: H10 | F200: Underfunksjon | G200: 81024 | H200: 204
... 217 more rows

Sheet H
A1: Nivå 1 | B1: Nivå 2 | C1: Nivå 3 | D1: Nummer | E1: Overliggende | F1: Funksjon | H1: Løpenummer | I1: Kode | J1: Tittel | K1: Her legges | L1: BK-vurdering | M1: Tidligere arkivnøkkel | N1: Aktuelt lovverk | O1: Kommentar
A2: 90000 | D2: H | F2: Hovedfunksjon | G2: =A2+B2+C2 -> 90000 | H2: 1 | I2: H | J2: Levere tjenester innen samferdsel, infrastruktur og kommunalt byrom
A3: 90000 | B3: 100 | D3: F | E3: I | F3: Funksjon | G3: 90100 | H3: 2 | I3: H1 | J3: Utøve kommunal trafikkmyndighet
A4: 90000 | B4: 100 | C4: 0 | D4: 0 | E4: I1 | F4: Underfunksjon | G4: 90100 | H4: 3 | I4: H1 - 00 | J4: Dokumentere generelt om kommunal trafikkmyndighet | K4: Her legges kun dokumenter som ikke naturlig hører hjemme i andre koder og som man vet at ikke har særlig dokumentasjonsverdi. Dersom man mener dokumentet har lengre dokumentasjonsverdi skal det legges på andre koder. | L4: Kasseres 5 år etter avslutning
A5: 90000 | B5: 100 | C5: 1 | D5: 1 | E5: I1 | F5: Underfunksjon | G5: 90101 | H5: 4 | I5: H1 - 01 | J5: Utøve veimyndighet | K5: Dokumentasjon om utøving av veimyndighet og vedtak. | L5: Kasseres 10 år etter avslutning | M5: 61 Gater/veier, veitrafikk | N5: Veglova
A6: 90000 | B6: 100 | C6: 2 | D6: 2 | E6: I1 | F6: Underfunksjon | G6: 90102 | H6: 5 | I6: H1 - 02 | J6: Fastsette fartsgrenser | K6: Dokumentasjon om fastsetting av fartsgrenser og vedtak. | L6: Kasseres 10 år etter avslutning | M6: 615.1 Trafikkregulering, 615.4 Trafikkovervåkning, fartsbegresning | N6: Skiltforskriften, veglova
A7: 90000 | B7: 100 | C7: 3 | D7: 3 | E7: I1 | F7: Underfunksjon | G7: 90103 | H7: 6 | I7: H1 - 03 | J7: Fatte vedtak om fjerning av ulovlig reklame, om oppmerking, fare- og opplysningsskilt | K7: Dokumentasjon om vedtak om fjerning av ulovlig reklame, om oppmerking, fare- og opplysningsskilt samt eventuelle gebyr. | L7: Kasseres 10 år etter avslutning | M7: 536.4 Ulovlig skilt og reklame, 615.3 Skilting (skiltmyndighet) og veimerking | N7: Veglova, skiltforskriften
A8: 90000 | B8: 100 | C8: 4 | D8: 4 | E8: I1 | F8: Underfunksjon | G8: 90104 | H8: 7 | I8: H1 - 04 | J8: Utstede parkeringsgebyr, miljøgebyr, piggdekkgebyr | K8: Dokumentasjon om utsteding av parkeringsgebyr, miljøgebyr og piggdekkgebyr samt vedtak. | L8: Kasseres 5 år etter avslutning | M8: 617 Parkering | N8: Vegtrafikkloven, forskrift om politivedtekt, forskrift om innføring av gebyr for bruk av piggdekk og tilleggsgebyr, forsrkfit om kjørende og gående trafikk, forskrift om offenlitg parkeringsregulering ogparkeringsgebyr
A9: 90000 | B9: 100 | C9: 5 | D9: 5 | E9: I1 | F9: Underfunksjon | G9: 90105 | H9: 8 | I9: H1 - 05 | J9: Behandle forslag til regulering av skiltforskriften | K9: Dokumentasjon om behandling av forslag til regulering av skiltforskriften. | L9: Ikke vurdert
A10: 90000 | B10: 100 | C10: 6 | D10: 6 | E10: I1 | F10: Underfunksjon | G10: 90106 | H10: 9 | I10: H1 - 06
A11: 90000 | B11: 100 | C11: 7 | D11: 7 | E11: I1 | F11: Underfunksjon | G11: 90107 | H11: 10 | I11: H1 - 07
A12: 90000 | B12: 100 | C12: 8 | D12: 8 | E12: I1 | F12: Underfunksjon | G12: 90108 | H12: 11 | I12: H1 - 08
A13: 90000 | B13: 100 | C13: 9 | D13: 9 | E13: I1 | F13: Underfunksjon | G13: 90109 | H13: 12 | I13: H1 - 09
A14: 90000 | B14: 100 | C14: 10 | D14: 10 | E14: I1 | F14: Underfunksjon | G14: =A14+B14+C14+D14 -> 90120 | H14: 13 | I14: H1 - 10
A15: 90000 | B15: 100 | C15: 11 | D15: 11 | E15: I1 | F15: Underfunksjon | G15: 90122 | H15: 14 | I15: H1 - 11
A16: 90000 | B16: 100 | C16: 12 | D16: 12 | E16: I1 | F16: Underfunksjon | G16: 90124 | H16: 15 | I16: H1 - 12
A17: 90000 | B17: 100 | C17: 13 | D17: 13 | E17: I1 | F17: Underfunksjon | G17: 90126 | H17: 16 | I17: H1 - 13
A18: 90000 | B18: 100 | C18: 14 | D18: 14 | E18: I1 | F18: Underfunksjon | G18: 90128 | H18: 17 | I18: H1 - 14
A19: 90000 | B19: 100 | C19: 15 | D19: 15 | E19: I1 | F19: Underfunksjon | G19: 90130 | H19: 18 | I19: H1 - 15
A20: 90000 | B20: 100 | C20: 16 | D20: 16 | E20: I1 | F20: Underfunksjon | G20: 90132 | H20: 19 | I20: H1 - 16
A21: 90000 | B21: 100 | C21: 17 | D21: 17 | E21: I1 | F21: Underfunksjon | G21: 90134 | H21: 20 | I21: H1 - 17
A22: 90000 | B22: 100 | C22: 18 | D22: 18 | E22: I1 | F22: Underfunksjon | G22: 90136 | H22: 21 | I22: H1 - 18
A23: 90000 | B23: 100 | C23: 19 | D23: 19 | E23: I1 | F23: Underfunksjon | G23: 90138 | H23: 22 | I23: H1 - 19
A24: 90000 | B24: 200 | D24: F | E24: I | F24: Funksjon | G24: =A24+B24+C24 -> 90200 | H24: 23 | I24: H2 | J24: Forvalte kommunalt veinett
A25: 90000 | B25: 200 | C25: 0 | D25: 0 | E25: I2 | F25: Underfunksjon | G25: 90200 | H25: 24 | I25: H2 - 00 | J25: Dokumentere generelt om forvaltning av kommunalt veinett | K25: Her legges kun dokumenter som ikke naturlig hører hjemme i andre koder og som man vet at ikke har særlig dokumentasjonsverdi. Dersom man mener dokumentet har lengre dokumentasjonsverdi skal det legges på andre koder. | L25: Kasseres 5 år etter avslutning
A26: 90000 | B26: 200 | C26: 1 | D26: 1 | E26: I2 | F26: Underfunksjon | G26: 90201 | H26: 25 | I26: H2 - 01 | J26: Forvalte, drifte og vedlikeholde vei, fortau, sykkelfelt, gang- og sykkelvei | K26: Dokumentasjon om forvaltning, drift og vedlikehold av vei, fortau, sykkelfelt, gang- og sykkelvei. | L26: Ikke vurdert
A27: 90000 | B27: 200 | C27: 2 | D27: 2 | E27: I2 | F27: Underfunksjon | G27: 90202 | H27: 26 | I27: H2 - 02
A28: 90000 | B28: 200 | C28: 3 | D28: 3 | E28: I2 | F28: Underfunksjon | G28: 90203 | H28: 27 | I28: H2 - 03
A29: 90000 | B29: 200 | C29: 4 | D29: 4 | E29: I2 | F29: Underfunksjon | G29: 90204 | H29: 28 | I29: H2 - 04
A30: 90000 | B30: 200 | C30: 5 | D30: 5 | E30: I2 | F30: Underfunksjon | G30: 90205 | H30: 29 | I30: H2 - 05
A31: 90000 | B31: 200 | C31: 6 | D31: 6 | E31: I2 | F31: Underfunksjon | G31: 90206 | H31: 30 | I31: H2 - 06
A32: 90000 | B32: 200 | C32: 7 | D32: 7 | E32: I2 | F32: Underfunksjon | G32: 90207 | H32: 31 | I32: H2 - 07
A33: 90000 | B33: 200 | C33: 8 | D33: 8 | E33: I2 | F33: Underfunksjon | G33: 90208 | H33: 32 | I33: H2 - 08
A34: 90000 | B34: 200 | C34: 9 | D34: 9 | E34: I2 | F34: Underfunksjon | G34: 90209 | H34: 33 | I34: H2 - 09
A35: 90000 | B35: 200 | C35: 10 | D35: 10 | E35: I2 | F35: Underfunksjon | G35: =A35+B35+C35+D35 -> 90220 | H35: 34 | I35: H2 - 10
A36: 90000 | B36: 200 | C36: 11 | D36: 11 | E36: I2 | F36: Underfunksjon | G36: 90222 | H36: 35 | I36: H2 - 11
A37: 90000 | B37: 200 | C37: 12 | D37: 12 | E37: I2 | F37: Underfunksjon | G37: 90224 | H37: 36 | I37: H2 - 12
A38: 90000 | B38: 200 | C38: 13 | D38: 13 | E38: I2 | F38: Underfunksjon | G38: 90226 | H38: 37 | I38: H2 - 13
A39: 90000 | B39: 200 | C39: 14 | D39: 14 | E39: I2 | F39: Underfunksjon | G39: 90228 | H39: 38 | I39: H2 - 14
A40: 90000 | B40: 200 | C40: 15 | D40: 15 | E40: I2 | F40: Underfunksjon | G40: 90230 | H40: 39 | I40: H2 - 15
A41: 90000 | B41: 200 | C41: 16 | D41: 16 | E41: I2 | F41: Underfunksjon | G41: 90232 | H41: 40 | I41: H2 - 16
A42: 90000 | B42: 200 | C42: 17 | D42: 17 | E42: I2 | F42: Underfunksjon | G42: 90234 | H42: 41 | I42: H2 - 17
A43: 90000 | B43: 200 | C43: 18 | D43: 18 | E43: I2 | F43: Underfunksjon | G43: 90236 | H43: 42 | I43: H2 - 18
A44: 90000 | B44: 200 | C44: 19 | D44: 19 | E44: I2 | F44: Underfunksjon | G44: 90238 | H44: 43 | I44: H2 - 19
A45: 90000 | B45: 300 | D45: F | E45: I | F45: Funksjon | G45: =A45+B45+C45 -> 90300 | H45: 44 | I45: H3 | J45: Levere tjenester til sporvei, buss og bane
A46: 90000 | B46: 300 | C46: 0 | D46: 0 | E46: I3 | F46: Underfunksjon | G46: 90300 | H46: 45 | I46: H3 - 00 | J46: Dokumentere generelt om sporvei, buss og bane | K46: Her legges kun dokumenter som ikke naturlig hører hjemme i andre koder og som man vet at ikke har særlig dokumentasjonsverdi. Dersom man mener dokumentet har lengre dokumentasjonsverdi skal det legges på andre koder. | L46: Kasseres 5 år etter avslutning
A47: 90000 | B47: 300 | C47: 1 | D47: 1 | E47: I3 | F47: Underfunksjon | G47: 90301 | H47: 46 | I47: H3 - 01 | J47: Utvikle sporvei, buss og bane | K47: Dokumentasjon om utvikling av sporvei, buss og bane. | L47: Ikke vurdert
A48: 90000 | B48: 300 | C48: 2 | D48: 2 | E48: I3 | F48: Underfunksjon | G48: 90302 | H48: 47 | I48: H3 - 02 | J48: Administrere sporvei, buss og bane | K48: Dokumentasjon om administrasjon av sporvei, buss og bane. | L48: Ikke vurdert
A49: 90000 | B49: 300 | C49: 3 | D49: 3 | E49: I3 | F49: Underfunksjon | G49: 90303 | H49: 48 | I49: H3 - 03 | J49: Behandle henvendelser fra innbyggere om sporvei, buss og bane | K49: Dokumentasjon om henvendelser fra innbyggere om sporvei, buss og bane. | L49: Ikke vurdert
A50: 90000 | B50: 300 | C50: 4 | D50: 4 | E50: I3 | F50: Underfunksjon | G50: 90304 | H50: 49 | I50: H3 - 04
A51: 90000 | B51: 300 | C51: 5 | D51: 5 | E51: I3 | F51: Underfunksjon | G51: 90305 | H51: 50 | I51: H3 - 05
A52: 90000 | B52: 300 | C52: 6 | D52: 6 | E52: I3 | F52: Underfunksjon | G52: 90306 | H52: 51 | I52: H3 - 06
A53: 90000 | B53: 300 | C53: 7 | D53: 7 | E53: I3 | F53: Underfunksjon | G53: 90307 | H53: 52 | I53: H3 - 07
A54: 90000 | B54: 300 | C54: 8 | D54: 8 | E54: I3 | F54: Underfunksjon | G54: 90308 | H54: 53 | I54: H3 - 08
A55: 90000 | B55: 300 | C55: 9 | D55: 9 | E55: I3 | F55: Underfunksjon | G55: 90309 | H55: 54 | I55: H3 - 09
A56: 90000 | B56: 300 | C56: 10 | D56: 10 | E56: I3 | F56: Underfunksjon | G56: =A56+B56+C56+D56 -> 90320 | H56: 55 | I56: H3 - 10
A57: 90000 | B57: 300 | C57: 11 | D57: 11 | E57: I3 | F57: Underfunksjon | G57: 90322 | H57: 56 | I57: H3 - 11
A58: 90000 | B58: 300 | C58: 12 | D58: 12 | E58: I3 | F58: Underfunksjon | G58: 90324 | H58: 57 | I58: H3 - 12
A59: 90000 | B59: 300 | C59: 13 | D59: 13 | E59: I3 | F59: Underfunksjon | G59: 90326 | H59: 58 | I59: H3 - 13
A60: 90000 | B60: 300 | C60: 14 | D60: 14 | E60: I3 | F60: Underfunksjon | G60: 90328 | H60: 59 | I60: H3 - 14
A61: 90000 | B61: 300 | C61: 15 | D61: 15 | E61: I3 | F61: Underfunksjon | G61: 90330 | H61: 60 | I61: H3 - 15
A62: 90000 | B62: 300 | C62: 16 | D62: 16 | E62: I3 | F62: Underfunksjon | G62: 90332 | H62: 61 | I62: H3 - 16
A63: 90000 | B63: 300 | C63: 17 | D63: 17 | E63: I3 | F63: Underfunksjon | G63: 90334 | H63: 62 | I63: H3 - 17
A64: 90000 | B64: 300 | C64: 18 | D64: 18 | E64: I3 | F64: Underfunksjon | G64: 90336 | H64: 63 | I64: H3 - 18
A65: 90000 | B65: 300 | C65: 19 | D65: 19 | E65: I3 | F65: Underfunksjon | G65: 90338 | H65: 64 | I65: H3 - 19
A66: 90000 | B66: 400 | D66: F | E66: I | F66: Funksjon | G66: =A66+B66+C66 -> 90400 | H66: 65 | I66: H4 | J66: Levere persontransport
A67: 90000 | B67: 400 | C67: 0 | D67: 0 | E67: I4 | F67: Underfunksjon | G67: 90400 | H67: 66 | I67: H4 - 00 | J67: Dokumentere generelt om persontransport | K67: Her legges kun dokumenter som ikke naturlig hører hjemme i andre koder og som man vet at ikke har særlig dokumentasjonsverdi. Dersom man mener dokumentet har lengre dokumentasjonsverdi skal det legges på andre koder. | L67: Kasseres 5 år etter avslutning
A68: 90000 | B68: 400 | C68: 1 | D68: 1 | E68: I4 | F68: Underfunksjon | G68: 90401 | H68: 67 | I68: H4 - 01 | J68: Planlegge skoleskyss | K68: Dokumentasjon om planlegging av skoleskyss. | L68: Ikke vurdert
A69: 90000 | B69: 400 | C69: 2 | D69: 2 | E69: I4 | F69: Underfunksjon | G69: 90402 | H69: 68 | I69: H4 - 02 | J69: Utføre skoleskyss | K69: Dokumentasjon om utføring av skoleskyss. | L69: Ikke vurdert
A70: 90000 | B70: 400 | C70: 3 | D70: 3 | E70: I4 | F70: Underfunksjon | G70: 90403 | H70: 69 | I70: H4 - 03 | J70: Administrere skoleskyss | K70: Dokumentasjon om administrasjon av skoleskyss. | L70: Ikke vurdert
A71: 90000 | B71: 400 | C71: 4 | D71: 4 | E71: I4 | F71: Underfunksjon | G71: 90404 | H71: 70 | I71: H4 - 04 | J71: Forvalte transportordningen for funksjonshemmede | K71: Dokumentasjon om forvaltning av transportordningen for funksjonshemmede, søknader, vedtak og klage. | L71: Bevares og avleveres til Byarkivet | M71: 616.5 Persontransport utenfor rute, drosjer, uføretransport m.v. | N71: Forskrift om tilrettelagt transport, Oslo
A72: 90000 | B72: 400 | C72: 5 | D72: 5 | E72: I4 | F72: Underfunksjon | G72: 90405 | H72: 71 | I72: H4 - 05 | J72: Behandle søknader om tilrettelagt transport | K72: Dokumentasjon om søknader og vedtak om tilrettelegging av transport. | L72: Ikke vurdert | M72: 357 Transportordninger | N72: Forskrift om tilrettelagt transport, Oslo
A73: 90000 | B73: 400 | C73: 6 | D73: 6 | E73: I4 | F73: Underfunksjon | G73: 90406 | H73: 72 | I73: H4 - 06 | J73: Behandle klager om tilrettelagt transport | K73: Dokumentasjon om behandling av klager om tilrettelagt transport: klagebrev, klagesvar og vedtak. | L73: Bevares og avleveres til Byarkivet | M73: 357 Transportordninger | N73: Forskrift om tilrettelagt transport, Oslo
A74: 90000 | B74: 400 | C74: 7 | D74: 7 | E74: I4 | F74: Underfunksjon | G74: 90407 | H74: 73 | I74: H4 - 07
A75: 90000 | B75: 400 | C75: 8 | D75: 8 | E75: I4 | F75: Underfunksjon | G75: 90408 | H75: 74 | I75: H4 - 08
A76: 90000 | B76: 400 | C76: 9 | D76: 9 | E76: I4 | F76: Underfunksjon | G76: 90409 | H76: 75 | I76: H4 - 09
A77: 90000 | B77: 400 | C77: 10 | D77: 10 | E77: I4 | F77: Underfunksjon | G77: =A77+B77+C77+D77 -> 90420 | H77: 76 | I77: H4 - 10
A78: 90000 | B78: 400 | C78: 11 | D78: 11 | E78: I4 | F78: Underfunksjon | G78: 90422 | H78: 77 | I78: H4 - 11
A79: 90000 | B79: 400 | C79: 12 | D79: 12 | E79: I4 | F79: Underfunksjon | G79: 90424 | H79: 78 | I79: H4 - 12
A80: 90000 | B80: 400 | C80: 13 | D80: 13 | E80: I4 | F80: Underfunksjon | G80: 90426 | H80: 79 | I80: H4 - 13
A81: 90000 | B81: 400 | C81: 14 | D81: 14 | E81: I4 | F81: Underfunksjon | G81: 90428 | H81: 80 | I81: H4 - 14
A82: 90000 | B82: 400 | C82: 15 | D82: 15 | E82: I4 | F82: Underfunksjon | G82: 90430 | H82: 81 | I82: H4 - 15
A83: 90000 | B83: 400 | C83: 16 | D83: 16 | E83: I4 | F83: Underfunksjon | G83: 90432 | H83: 82 | I83: H4 - 16
A84: 90000 | B84: 400 | C84: 17 | D84: 17 | E84: I4 | F84: Underfunksjon | G84: 90434 | H84: 83 | I84: H4 - 17
A85: 90000 | B85: 400 | C85: 18 | D85: 18 | E85: I4 | F85: Underfunksjon | G85: 90436 | H85: 84 | I85: H4 - 18
A86: 90000 | B86: 400 | C86: 19 | D86: 19 | E86: I4 | F86: Underfunksjon | G86: 90438 | H86: 85 | I86: H4 - 19
A87: 90000 | B87: 500 | D87: F | E87: I | F87: Funksjon | G87: =A87+B87+C87 -> 90500 | H87: 86 | I87: H5 | J87: Behandle saker, søknader og klager innen trafikk og parkering
A88: 90000 | B88: 500 | C88: 0 | D88: 0 | E88: I5 | F88: Underfunksjon | G88: 90500 | H88: 87 | I88: H5 - 00 | J88: Dokumentere generelt om saker, søknader og klager innen trafikk og parkering | K88: Her legges kun dokumenter som ikke naturlig hører hjemme i andre koder og som man vet at ikke har særlig dokumentasjonsverdi. Dersom man mener dokumentet har lengre dokumentasjonsverdi skal det legges på andre koder. | L88: Kasseres 5 år etter avslutning
A89: 90000 | B89: 500 | C89: 1 | D89: 1 | E89: I5 | F89: Underfunksjon | G89: 90501 | H89: 88 | I89: H5 - 01 | J89: Behandle søknad om parkeringstillatelse for forflytningshemmede | K89: Dokumentasjon om behandling av søknad om parkeringstillatelse for forflytningshemmede samt vedtak og klage. | L89: Kasseres 10 år etter avslutning | M89: 617 Parkering | N89: Forskrift om parkeringstillatelse for forflytningshemmede § 3
A90: 90000 | B90: 500 | C90: 2 | D90: 2 | E90: I5 | F90: Underfunksjon | G90: 90502 | H90: 89 | I90: H5 - 02 | J90: Behandle søknader om permanente trafikkregulerende skilter | K90: Dokumentasjon om behandling av søknader om permanente trafikkregulerende skilter: publikumshenvendelser og vedtak. | L90: Kasseres 10 år etter avslutning | M90: 536.4 Ulovlig skilt og reklame, 615.3 Skilting (skiltmyndighet) og veimerking | N90: Skiltforskriften
A91: 90000 | B91: 500 | C91: 3 | D91: 3 | E91: I5 | F91: Underfunksjon | G91: 90503 | H91: 90 | I91: H5 - 03 | J91: Utstede midlertidige vedtak for trafikkregulerende skilting ifm arbeider | K91: Dokumentasjon om utsteding av midlertidige vedtak for trafikkregulerende skilting ifm arbeider. | L91: Kasseres 5 år etter avslutning | M91: 536.4 Ulovlig skilt og reklame, 615.3 Skilting (skiltmyndighet) og veimerking | N91: Vegloven
A92: 90000 | B92: 500 | C92: 4 | D92: 4 | E92: I5 | F92: Underfunksjon | G92: 90504 | H92: 91 | I92: H5 - 04 | J92: Behandle søknader om gatearbeider | K92: Dokumentasjon om behandling av søknader om gatearbeider samt vedtak. | L92: Kasseres 10 år etter avslutning | N92: Bygningsloven
A93: 90000 | B93: 500 | C93: 5 | D93: 5 | E93: I5 | F93: Underfunksjon | G93: 90505 | H93: 92 | I93: H5 - 05 | J93: Koordinere gravearbeider | K93: Dokumentasjon om koordinering av gravearbeider. | L93: Kasseres 10 år etter avslutning | N93: Byråd for miljø og samferdsel. Delegasjonsvedtak DV-0579-20.9.1997
A94: 90000 | B94: 500 | C94: 6 | D94: 6 | E94: I5 | F94: Underfunksjon | G94: 90506 | H94: 93 | I94: H5 - 06 | J94: Påse forsvarlig bruk av reklame | K94: Dokumentasjon om tiltak for å påse forsvarlig bruk av reklame: søknad, tillatelse og vedtak om fjerning. | L94: Kasseres 10 år etter avslutning | N94: Retningslinjer for reklame ved Oslo kommune idrettsanlegg, veglova
A95: 90000 | B95: 500 | C95: 7 | D95: 7 | E95: I5 | F95: Underfunksjon | G95: 90507 | H95: 94 | I95: H5 - 07 | J95: Behandle klage på parkeringsgebyr, kontrollsanksjoner, miljøgebyr | K95: Dokumentasjon om behandling av klage på parkeringsgebyr, kontrollsanksjoner og miljøgebyr: klage, vedtak, oversendelse anke til tingrett, tilsvar fra parkeringsnemda. | L95: Kasseres 5 år etter avslutning | N95: Forskrift om offentlig parkeringsgebyr, forskrift om vilkårsparkering for allmennnheten og håndheving av private parkeringsreguleringer, forskrift om gebyr for bruk av piggdekk og tilleggsgebyr of forsrkift om innføring av gebyr for bruk av piggdekk og tilleggsgebyr, forskrift om kommunal håndheving av politivedtekter
A96: 90000 | B96: 500 | C96: 8 | D96: 8 | E96: I5 | F96: Underfunksjon | G96: 90508 | H96: 95 | I96: H5 - 08 | J96: Anmelde straffbare forhold innen trafikk | K96: Dokumentasjon om anmelding av straffbare forhold innen trafikk: anmeldelse, bekreftelse på mottatt anmeldelse, underretning. | L96: Ikke vurdert | N96: Straffeloven
A97: 90000 | B97: 500 | C97: 9 | D97: 9 | E97: I5 | F97: Underfunksjon | G97: 90509 | H97: 96 | I97: H5 - 09
A98: 90000 | B98: 500 | C98: 10 | D98: 10 | E98: I5 | F98: Underfunksjon | G98: =A98+B98+C98+D98 -> 90520 | H98: 97 | I98: H5 - 10
A99: 90000 | B99: 500 | C99: 11 | D99: 11 | E99: I5 | F99: Underfunksjon | G99: 90522 | H99: 98 | I99: H5 - 11
A100: 90000 | B100: 500 | C100: 12 | D100: 12 | E100: I5 | F100: Underfunksjon | G100: 90524 | H100: 99 | I100: H5 - 12
A101: 90000 | B101: 500 | C101: 13 | D101: 13 | E101: I5 | F101: Underfunksjon | G101: 90526 | H101: 100 | I101: H5 - 13
A102: 90000 | B102: 500 | C102: 14 | D102: 14 | E102: I5 | F102: Underfunksjon | G102: 90528 | H102: 101 | I102: H5 - 14
A103: 90000 | B103: 500 | C103: 15 | D103: 15 | E103: I5 | F103: Underfunksjon | G103: 90530 | H103: 102 | I103: H5 - 15
A104: 90000 | B104: 500 | C104: 16 | D104: 16 | E104: I5 | F104: Underfunksjon | G104: 90532 | H104: 103 | I104: H5 - 16
A105: 90000 | B105: 500 | C105: 17 | D105: 17 | E105: I5 | F105: Underfunksjon | G105: 90534 | H105: 104 | I105: H5 - 17
A106: 90000 | B106: 500 | C106: 18 | D106: 18 | E106: I5 | F106: Underfunksjon | G106: 90536 | H106: 105 | I106: H5 - 18
A107: 90000 | B107: 500 | C107: 19 | D107: 19 | E107: I5 | F107: Underfunksjon | G107: 90538 | H107: 106 | I107: H5 - 19
A108: 90000 | B108: 600 | D108: F | E108: I | F108: Funksjon | G108: =A108+B108+C108 -> 90600 | H108: 107 | I108: H6 | J108: Drifte havn | N108: Havne- og farvannsloven
A109: 90000 | B109: 600 | C109: 0 | D109: 0 | E109: I6 | F109: Underfunksjon | G109: 90600 | H109: 108 | I109: H6 - 00 | J109: Dokumentere generelt om havnedrift | K109: Her legges kun dokumenter som ikke naturlig hører hjemme i andre koder og som man vet at ikke har særlig dokumentasjonsverdi. Dersom man mener dokumentet har lengre dokumentasjonsverdi skal det legges på andre koder. | L109: Kasseres 5 år etter avslutning
A110: 90000 | B110: 600 | C110: 1 | D110: 1 | E110: I6 | F110: Underfunksjon | G110: 90601 | H110: 109 | I110: H6 - 01 | J110: Utøve havnemyndighet | K110: Tillatelse til tiltak (bøye, brygge, sjøkabel osv). Anløpslister. Dokumentasjon om fastsettelse av havneavgifter og havnevederlag. Årlig arrangementsliste. | L110: Bevares og avleveres til Byarkivet
A111: 90000 | B111: 600 | C111: 2 | D111: 2 | E111: I6 | F111: Underfunksjon | G111: 90602 | H111: 110 | I111: H6 - 02 | J111: Vedlikeholde kaier og havneanlegg | K111: Tilstandsrapporter, tekniske rapporter. Korrespondanse med myndigheter og leietakere | L111: Bevares og avleveres til Byarkivet
A112: 90000 | B112: 600 | C112: 3 | D112: 3 | E112: I6 | F112: Underfunksjon | G112: 90603 | H112: 111 | I112: H6 - 03 | J112: Sikre havneområder | K112: Dokumentasjon om havnesikkerhet, ISPS og annet sikkerhetsarbeid med betydning for havnedrift (jernbane, annen infrastruktur, grensekontroll, smittvern, vann). Beredskapsplaner for drift av havn. | L112: Bevares og avleveres til Byarkivet | N112: Havne- og farvannsloven, sikkerhetsloven mm
A113: 90000 | B113: 600 | C113: 4 | D113: 4 | E113: I6 | F113: Underfunksjon | G113: 90604 | H113: 112 | I113: H6 - 04 | J113: Forvalte havnespor (jernbanespor som fører til havn) | K113: Forslag til endring av regelverk, sportilgangsavtaler, arbeidsavtaler | L113: Bevares og avleveres til Byarkivet
A114: 90000 | B114: 600 | C114: 5 | D114: 5 | E114: I6 | F114: Underfunksjon | G114: 90605 | H114: 113 | I114: H6 - 05 | J114: Gjennomføre forretningsutvikling | K114: Korrespondanse ved kundekontakt med havnerelaterte virksomheter. Dokumentasjon om plan- og strategiarbeid i forbindelse med forretningsutvikling (markedsplaner, strategidokumenter, havnestyresaker). Dokumentasjon om avtaleinngåelser. Markedsføring (havnerelaterte virksomheter). | L114: Bevares og avleveres til Byarkivet
A115: 90000 | B115: 600 | C115: 6 | D115: 6 | E115: I6 | F115: Underfunksjon | G115: 90606 | H115: 114 | I115: H6 - 06 | J115: Samarbeide om havn, nasjonalt og internasjonalt | K115: Presentasjoner/program i forbindelse med mottak av delegasjoner og ved andre havnebesøk. Dokumentasjon om annet nettverksarbeid. | L115: Kasseres 5 år etter avslutning
A116: 90000 | B116: 600 | C116: 7 | D116: 7 | E116: I6 | F116: Underfunksjon | G116: 90607 | H116: 115 | I116: H6 - 07 | J116: Behandle publikumshenvendelser om sjø og havn | K116: Publikumshenvendelser. Dokumentasjon om godkjenning av arrangementer på sjø og land. | L116: Kasseres 5 år etter avslutning
A117: 90000 | B117: 600 | C117: 8 | D117: 8 | E117: I6 | F117: Underfunksjon | G117: 90608 | H117: 116 | I117: H6 - 08
A118: 90000 | B118: 600 | C118: 9 | D118: 9 | E118: I6 | F118: Underfunksjon | G118: 90609 | H118: 117 | I118: H6 - 09
A119: 90000 | B119: 600 | C119: 10 | D119: 10 | E119: I6 | F119: Underfunksjon | G119: =A119+B119+C119+D119 -> 90620 | H119: 118 | I119: H6 - 10
A120: 90000 | B120: 600 | C120: 11 | D120: 11 | E120: I6 | F120: Underfunksjon | G120: 90622 | H120: 119 | I120: H6 - 11
A121: 90000 | B121: 600 | C121: 12 | D121: 12 | E121: I6 | F121: Underfunksjon | G121: 90624 | H121: 120 | I121: H6 - 12
A122: 90000 | B122: 600 | C122: 13 | D122: 13 | E122: I6 | F122: Underfunksjon | G122: 90626 | H122: 121 | I122: H6 - 13
A123: 90000 | B123: 600 | C123: 14 | D123: 14 | E123: I6 | F123: Underfunksjon | G123: 90628 | H123: 122 | I123: H6 - 14
A124: 90000 | B124: 600 | C124: 15 | D124: 15 | E124: I6 | F124: Underfunksjon | G124: 90630 | H124: 123 | I124: H6 - 15
A125: 90000 | B125: 600 | C125: 16 | D125: 16 | E125: I6 | F125: Underfunksjon | G125: 90632 | H125: 124 | I125: H6 - 16
A126: 90000 | B126: 600 | C126: 17 | D126: 17 | E126: I6 | F126: Underfunksjon | G126: 90634 | H126: 125 | I126: H6 - 17
A127: 90000 | B127: 600 | C127: 18 | D127: 18 | E127: I6 | F127: Underfunksjon | G127: 90636 | H127: 126 | I127: H6 - 18
A128: 90000 | B128: 600 | C128: 19 | D128: 19 | E128: I6 | F128: Underfunksjon | G128: 90638 | H128: 127 | I128: H6 - 19
A129: 90000 | B129: 700 | D129: F | E129: I | F129: Funksjon | G129: =A129+B129+C129 -> 90700 | H129: 128 | I129: H7 | J129: Levere vann- og avløpstjenester | N129: Drikkevannsforskriften, damsikkerhetsforskriften, avfallsforskriften, lov om kommunale vass- og avløpsanlegg, forskrift om rammer for vannforvaltningen
A130: 90000 | B130: 700 | C130: 0 | D130: 0 | E130: I7 | F130: Underfunksjon | G130: 90700 | H130: 129 | I130: H7 - 00 | J130: Dokumentere generelt om vann- og avløpstjenester | K130: Her legges kun dokumenter som ikke naturlig hører hjemme i andre koder og som man vet at ikke har særlig dokumentasjonsverdi. Dersom man mener dokumentet har lengre dokumentasjonsverdi skal det legges på andre koder. | L130: Kasseres 5 år etter avslutning
A131: 90000 | B131: 700 | C131: 1 | D131: 1 | E131: I7 | F131: Underfunksjon | G131: 90701 | H131: 130 | I131: H7 - 01 | J131: Samle og sikre råvann | K131: Dokumentasjon om drift, vedlikehold og utvikling av vassdragsanlegg. Dokumentasjon om regulering av råvann. Dokumentasjon om sikring og overvåking av råvannskvalitet. | L131: Ikke vurdert
A132: 90000 | B132: 700 | C132: 2 | D132: 2 | E132: I7 | F132: Underfunksjon | G132: 90702 | H132: 131 | I132: H7 - 02 | J132: Behandle råvann | K132: Dokumentasjon om styring og overvåking av vannbehandlingsanlegg. Driftsrutiner og analyser. Dokumentasjon om vedlikehold av vannbehandling. | L132: Ikke vurdert
A133: 90000 | B133: 700 | C133: 3 | D133: 3 | E133: I7 | F133: Underfunksjon | G133: 90703 | H133: 132 | I133: H7 - 03 | J133: Magasinere og distribuere drikkevann | K133: Dokumentasjon om drift og vedlikehold av vannledningsnettet. | L133: Ikke vurdert | N133: Forskrift om vannforsyning og drikkevann (drikkevannsforskriften)
A134: 90000 | B134: 700 | C134: 4 | D134: 4 | E134: I7 | F134: Underfunksjon | G134: 90704 | H134: 133 | I134: H7 - 04 | J134: Motta, transportere og fordøye avløpsvann | K134: Dokumentasjon om drift og vedlikehold av ledningsnettet for avløp. | L134: Ikke vurdert | N134: Lov om vern mot forurensninger og om avfall (forurensningsloven) med forskrifter
A135: 90000 | B135: 700 | C135: 5 | D135: 5 | E135: I7 | F135: Underfunksjon | G135: 90705 | H135: 134 | I135: H7 - 05 | J135: Rense avløpsvann | K135: Dokumentasjon om forvaltning og utvikling av renseanlegg. | L135: Ikke vurdert
A136: 90000 | B136: 700 | C136: 6 | D136: 6 | E136: I7 | F136: Underfunksjon | G136: 90706 | H136: 135 | I136: H7 - 06 | J136: Utøve myndighet innen vann og avløp | K136: Dokumentasjon om pålegg og varsel om pålegg som er gitt. Vedtak om tvangsmulkt. Dokumentasjon om innkreving av tvangsmulkt etter forurensningsloven med forskrift og plan- og bygningsloven. Dokumentasjon om behandling av søknad om utslippstillatelse. Vedtak om påslippskrav. Dokumentasjon om oppfølging av krav om årsrapportering. Dokumentasjon om beregning av gebyrpliktige mengder og enhetspris for særlig forurenset. Dokumentasjon om behandling av søknad om dispensasjon. Dokumentasjon om behandling av klage om omgjøring av vedtak. Dokumentasjon om planlegging og gjennomføring av tilsyn. | L136: Ikke vurdert
A137: 90000 | B137: 700 | C137: 7 | D137: 7 | E137: I7 | F137: Underfunksjon | G137: 90707 | H137: 136 | I137: H7 - 07 | J137: Planlegge og gjennomføre investeringsprosjekter innen vann og avløp | K137: Dokumentasjon om planlegging og bestilling av investeringsprosjekter. Dokumentasjon om fornying og bygging av investeringsprosjekter. | L137: Ikke vurdert
A138: 90000 | B138: 700 | C138: 8 | D138: 8 | E138: I7 | F138: Underfunksjon | G138: 90708 | H138: 137 | I138: H7 - 08 | J138: Gjennomføre tungt vedlikehold innen vann og avløp | K138: Dokumentasjon om sikring av riktig løsning, gjennomføring av anskaffelser, planlegging og gjennomføring av tungt vedlikeholdsprosjekt. | L138: Ikke vurdert
A139: 90000 | B139: 700 | C139: 9 | D139: 9 | E139: I7 | F139: Underfunksjon | G139: 90709 | H139: 138 | I139: H7 - 09 | J139: Forvalte geodata | K139: Dokumentasjon om registrering og oppdatering av VA-data, tilgjengeliggjøring av geodata, registering og oppdatering av eksterne data, gjennomføring av landmåling og forvaltning av informasjon om stikkledninger. | L139: Ikke vurdert
A140: 90000 | B140: 700 | C140: 10 | D140: 10 | E140: I7 | F140: Underfunksjon | G140: =A140+B140+C140+D140 -> 90720 | H140: 139 | I140: H7 - 10 | J140: Gjennomføre kjemisk og mikrobiologisk analysevirksomhet | K140: Dokumentasjon om gjennomføring av kjemisk og mikrobiologisk analysevirksomhet. | L140: Ikke vurdert
A141: 90000 | B141: 700 | C141: 11 | D141: 11 | E141: I7 | F141: Underfunksjon | G141: 90722 | H141: 140 | I141: H7 - 11 | J141: Håndtere gebyr innen vann og avløp | K141: Dokumentasjon om gjennomføring av hovedavlesning. Dokumentasjon om mottak og fordeling av søknad eller sak. Dokumentasjon om behandling av nyregistering av vannmålere. Dokumentasjon om oppfølging av vannmålere og behandling av midlertidige vannmålere (bygg og brakkevann). Dokumentasjon om beregning og utsteding av tilknytningsgebyr. Dokumentasjon om behandling av stipulert vannforbruk etter bruksareal. Dokumentasjon om behandling av spesielle gebyrer. Dokumentasjon om håndtering av kundehenvendelser. Dokumentasjon om klargjøring og oppfølging av ekstern fakturering. | L141: Ikke vurdert | N141: Lov om kommunale vass- og avløpsanlegg
A142: 90000 | B142: 700 | C142: 12 | D142: 12 | E142: I7 | F142: Underfunksjon | G142: 90724 | H142: 141 | I142: H7 - 12 | J142: Produsere biogass til bruk for miljøvennlig drivstoff | K142: Dokumentasjon om produksjon av biogass til bruk for miljøvennlig drivstoff. | L142: Ikke vurdert
A143: 90000 | B143: 700 | C143: 13 | D143: 13 | E143: I7 | F143: Underfunksjon | G143: 90726 | H143: 142 | I143: H7 - 13 | J143: Iverksette tiltak i samarbeid med andre etater for håndtering av overvann | K143: Dokumentasjon om iverksetting av tiltak i samarbeid med andre etater for å håndtere overvann. | L143: Ikke vurdert
A144: 90000 | B144: 700 | C144: 14 | D144: 14 | E144: I7 | F144: Underfunksjon | G144: 90728 | H144: 143 | I144: H7 - 14 | J144: Veilede og informere kunder, abonnenter og samfunnet om vann og avløp | K144: Dokumentasjon om veiledning og informasjon til kunder, abonnenter og samfunnet om vann og avløp. | L144: Ikke vurdert
A145: 90000 | B145: 700 | C145: 15 | D145: 15 | E145: I7 | F145: Underfunksjon | G145: 90730 | H145: 144 | I145: H7 - 15
A146: 90000 | B146: 700 | C146: 16 | D146: 16 | E146: I7 | F146: Underfunksjon | G146: 90732 | H146: 145 | I146: H7 - 16
A147: 90000 | B147: 700 | C147: 17 | D147: 17 | E147: I7 | F147: Underfunksjon | G147: 90734 | H147: 146 | I147: H7 - 17
A148: 90000 | B148: 700 | C148: 18 | D148: 18 | E148: I7 | F148: Underfunksjon | G148: 90736 | H148: 147 | I148: H7 - 18
A149: 90000 | B149: 700 | C149: 19 | D149: 19 | E149: I7 | F149: Underfunksjon | G149: 90738 | H149: 148 | I149: H7 - 19
A150: 90000 | B150: 800 | D150: F | E150: I | F150: Funksjon | G150: =A150+B150+C150 -> 90800 | H150: 149 | I150: H8 | J150: Levere renovasjons- og gjenvinningstjenester
A151: 90000 | B151: 800 | C151: 0 | D151: 0 | E151: I8 | F151: Underfunksjon | G151: 90800 | H151: 150 | I151: H8 - 00 | J151: Dokumentere generelt om renovasjons- og gjenvinningstjenester | K151: Her legges kun dokumenter som ikke naturlig hører hjemme i andre koder og som man vet at ikke har særlig dokumentasjonsverdi. Dersom man mener dokumentet har lengre dokumentasjonsverdi skal det legges på andre koder. | L151: Kasseres 5 år etter avslutning
A152: 90000 | B152: 800 | C152: 1 | D152: 1 | E152: I8 | F152: Underfunksjon | G152: 90801 | H152: 151 | I152: H8 - 01 | J152: Planlegge og gjennomføre avfallsreduserende tiltak | K152: Dokumentasjon om avfallsreduserende tiltak generelt, avfallsreduksjon, ombruk/gjenbruk, materialgjenvinning og kildesortering. | L152: Ikke vurdert
A153: 90000 | B153: 800 | C153: 2 | D153: 2 | E153: I8 | F153: Underfunksjon | G153: 90802 | H153: 152 | I153: H8 - 02 | J153: Samle inn og transportere husholdnings- og næringsavfall | K153: Dokumentasjon om innsamling av husholdnings- og næringsavfall. Dokumentasjon om transport av avfall generelt, miljærapportering, skadesaker og trafikale forhold ved trangsport av avfall. | L153: Ikke vurdert
A154: 90000 | B154: 800 | C154: 3 | D154: 3 | E154: I8 | F154: Underfunksjon | G154: 90803 | H154: 153 | I154: H8 - 03 | J154: Motta og behandle avfall ved sorterings- og gjenvinningsanlegg | K154: Dokumentasjon om mottak og behandling av avfall ved sorterings- og gjenvinningsanlegg generelt. Dokumentasjon om mottak og behandling av hageavfall, farlig avfall, grovavfall, ombruksartikler og tekstilavfall. Dokumentasjon om sortering av mat/plast/restavfall. Dokumentasjon om biologisk behandling av matavfall (kompost), produksjon og salg av biogjødsel og biogass. | L154: Ikke vurdert
A155: 90000 | B155: 800 | C155: 4 | D155: 4 | E155: I8 | F155: Underfunksjon | G155: 90804 | H155: 154 | I155: H8 - 04 | J155: Gjenvinne energi og destruere avfall (inkl. fjernvarme) | K155: Dokumentasjon om gjenvinning av energi og destruksjon av avfall. Tilsyn (rapporter, brev), teknisk dokumentasjon (tegninger), interne notater (referater, rapporter), utredninger/saksforberedelser (rapporter, prognoser). Dokumentasjon om salg av tjenester - destruksjon av næringsavfall: avtaler, kontrakter, brev, kundeoppfølging. Dokumentasjon om drift av forbrenningsanlegg og renseanlegg: miljørapport, brev. | L155: Ikke vurdert | N155: Energiloven, avfallsforskriften, forurensningsloven | O155: Bevares?
A156: 90000 | B156: 800 | C156: 5 | D156: 5 | E156: I8 | F156: Underfunksjon | G156: 90805 | H156: 155 | I156: H8 - 05 | J156: Håndtere restprodukter fra avfallsbehandling | K156: Dokumentasjon om håndtering av slagg/bunnaske, flyveaske, filterkaker, karbonfangst. Tilsyn (rapporter, brev), teknisk dokumentasjon (tegninger, driftsmanualer), interne notater (referater, rapporter), utredninger/saksforberedelser (rapporter, prognoser). Dokumentasjon om transport og sikring av forsvarlig håndtering av restprodukter: miljørapportering, kontrakter, brev, leverandøroppfølging. | L156: Ikke vurdert | N156: Avfallsforskriften, forurensingsloven, forskrift om organisk gjødsel, økologiforskriften | O156: Bevares?
A157: 90000 | B157: 800 | C157: 6 | D157: 6 | E157: I8 | F157: Underfunksjon | G157: 90806 | H157: 156 | I157: H8 - 06 | J157: Utplassere og drifte returpunkt for glass- og metallemballasje | K157: Dokumentasjon om returpunkt for glass- og metallemballasje generelt. Leiekontrakter for utplassering av returpunkt. | L157: Ikke vurdert | O157: REN foreslått kassasjon.
A158: 90000 | B158: 800 | C158: 7 | D158: 7 | E158: I8 | F158: Underfunksjon | G158: 90807 | H158: 157 | I158: H8 - 07 | J158: Utplassere og drifte miljøstasjoner for farlig avfall | K158: Dokumentasjon om miljøstasjoner for farlig avfall generelt. Leiekontrakter for utplassering av miljøstasjonene. | L158: Ikke vurdert
A159: 90000 | B159: 800 | C159: 8 | D159: 8 | E159: I8 | F159: Underfunksjon | G159: 90808 | H159: 158 | I159: H8 - 08 | J159: Forvalte avfallsløsninger, maskiner og verktøy for avfallshåndtering | K159: Dokumentasjon om forvaltning av avfallsløsninger, maskiner og verktøy for avfallhåndtering. | L159: Ikke vurdert
A160: 90000 | B160: 800 | C160: 9 | D160: 9 | E160: I8 | F160: Underfunksjon | G160: 90809 | H160: 159 | I160: H8 - 09 | J160: Samarbeide faglig om renovasjon og gjenvinning | K160: Dokumentasjon om faglig samarbeid om renovasjon og gjenvinning. | L160: Ikke vurdert
A161: 90000 | B161: 800 | C161: 10 | D161: 10 | E161: I8 | F161: Underfunksjon | G161: =A161+B161+C161+D161 -> 90820 | H161: 160 | I161: H8 - 10 | J161: Utføre avfallsanalyser | K161: Dokumentasjon om avfallsanalyser. | L161: Ikke vurdert
A162: 90000 | B162: 800 | C162: 11 | D162: 11 | E162: I8 | F162: Underfunksjon | G162: 90822 | H162: 161 | I162: H8 - 11 | J162: Fastsette renovasjonsavgift | K162: Dokumentasjon om fastsetting av renovasjonsavgift. | L162: Ikke vurdert
A163: 90000 | B163: 800 | C163: 12 | D163: 12 | E163: I8 | F163: Underfunksjon | G163: 90824 | H163: 162 | I163: H8 - 12 | J163: Veilede og informere kunder, abonnenter og samfunnet om renovasjon og gjenvinning | K163: Veiledninger og informasjon om renovasjon og gjenvinning som lages til kunder, abonnenter og samfunnet. | L163: Ikke vurdert
A164: 90000 | B164: 800 | C164: 13 | D164: 13 | E164: I8 | F164: Underfunksjon | G164: 90826 | H164: 163 | I164: H8 - 13 | J164: Administrere kundeforhold knyttet til husholdnings- og næringsabonnement | K164: Dokumentasjon om avfallstømming, renovasjonsgebyr. | L164: Ikke vurdert
A165: 90000 | B165: 800 | C165: 14 | D165: 14 | E165: I8 | F165: Underfunksjon | G165: 90828 | H165: 164 | I165: H8 - 14 | J165: Administrere kundeforhold knyttet til returpunkt, miljøstasjoner, sorterings- og gjenvinningsanlegg | K165: Klager på forsøpling, plassering osv. | L165: Ikke vurdert
A166: 90000 | B166: 800 | C166: 15 | D166: 15 | E166: I8 | F166: Underfunksjon | G166: 90830 | H166: 165 | I166: H8 - 15
A167: 90000 | B167: 800 | C167: 16 | D167: 16 | E167: I8 | F167: Underfunksjon | G167: 90832 | H167: 166 | I167: H8 - 16
A168: 90000 | B168: 800 | C168: 17 | D168: 17 | E168: I8 | F168: Underfunksjon | G168: 90834 | H168: 167 | I168: H8 - 17
A169: 90000 | B169: 800 | C169: 18 | D169: 18 | E169: I8 | F169: Underfunksjon | G169: 90836 | H169: 168 | I169: H8 - 18
A170: 90000 | B170: 800 | C170: 19 | D170: 19 | E170: I8 | F170: Underfunksjon | G170: 90838 | H170: 169 | I170: H8 - 19
A171: 90000 | B171: 900 | D171: F | E171: I | F171: Funksjon | G171: =A171+B171+C171 -> 90900 | H171: 170 | I171: H9 | J171: Utøve kommunal myndighet i forvaltning av natur og fellesarealer
A172: 90000 | B172: 900 | C172: 0 | D172: 0 | E172: I9 | F172: Underfunksjon | G172: 90900 | H172: 171 | I172: H9 - 00 | J172: Dokumentere generelt om kommunal myndighet i forvaltning av natur og fellesarealer | K172: Her legges kun dokumenter som ikke naturlig hører hjemme i andre koder og som man vet at ikke har særlig dokumentasjonsverdi. Dersom man mener dokumentet har lengre dokumentasjonsverdi skal det legges på andre koder. | L172: Kasseres 5 år etter avslutning
A173: 90000 | B173: 900 | C173: 1 | D173: 1 | E173: I9 | F173: Underfunksjon | G173: 90901 | H173: 172 | I173: H9 - 01 | J173: Påse etterlevelse i forvaltningen av ferskvann, hav og grunnvann | K173: Dokumentasjon om tiltak for å påse etterlevelse i forvaltningen av ferskvann, hav og grunnvann: spørsmål og svar, vedtak om gebyr. | L173: Bevares og avleveres til Byarkivet | M173: 933 Vann, 933.1 Forurensing av sjøer og vassdrag, forurensing av fjorder og havområder | N173: Lov om laksefisk og innlandsfisk mv, akvakulturloven, havressurslova med tilhørende forskrifter, vannressursloven
A174: 90000 | B174: 900 | C174: 2 | D174: 2 | E174: I9 | F174: Underfunksjon | G174: 90902 | H174: 173 | I174: H9 - 02 | J174: Påse etterlevelse av støyforskrifter | K174: Dokumentasjon om tiltak for å påse etterlevelse av støyforskrifter: spørsmål og svar, vedtak om gebyr. | L174: Kasseres 10 år etter avslutning | M174: 938 Støy og vibrasjoner | N174: Forurensningsforskriften kap. 5
A175: 90000 | B175: 900 | C175: 3 | D175: 3 | E175: I9 | F175: Underfunksjon | G175: 90903 | H175: 174 | I175: H9 - 03 | J175: Overvåke lokal luftkvalitet | K175: Dokumentasjon om overvåking av lokal luftkvalitet: spørsmål og svar, vedtak om gebyr. | L175: Bevares og avleveres til Byarkivet | M175: 934 Luft, 934.1 Støv- og sotplager, 934.2 Luktplager | N175: Forurensningsforskriften kap. 7
A176: 90000 | B176: 900 | C176: 4 | D176: 4 | E176: I9 | F176: Underfunksjon | G176: 90904 | H176: 175 | I176: H9 - 04 | J176: Overvåke forurensning | K176: Dokumentasjon om overvåking av forurensning: spørsmål og svar, vedtak om gebyr, høringsuttalelser. | L176: Bevares og avleveres til Byarkivet | M176: 934 Luft, 934.1 Støv- og sotplager, 934.2 Luktplager | N176: Forurensningsforskriften
A177: 90000 | B177: 900 | C177: 5 | D177: 5 | E177: I9 | F177: Underfunksjon | G177: 90905 | H177: 176 | I177: H9 - 05 | J177: Behandle meldinger om forsøpling | K177: Dokumentasjon om behandling av meldinger om forsøpling: spørsmål og svar, vedtak om gebyr. | L177: Kasseres 10 år etter avslutning | M177: 934 Luft, 934.1 Støv- og sotplager, 934.2 Luktplager | N177: Forurensningsforskriften
A178: 90000 | B178: 900 | C178: 6 | D178: 6 | E178: I9 | F178: Underfunksjon | G178: 90906 | H178: 177 | I178: H9 - 06 | J178: Behandle meldinger om hundehold, dressurområder | K178: Dokumentasjon om behandling av meldinger om hundehold og dessurområder: spørsmål og svar, vedtak om gebyr. | L178: Kasseres 5 år etter avslutning | M178: 577.4 Hundetoaletter | N178: Hundeloven med forskrift
A179: 90000 | B179: 900 | C179: 7 | D179: 7 | E179: I9 | F179: Underfunksjon | G179: 90907 | H179: 178 | I179: H9 - 07 | J179: Ivareta friluftsliv, sikre etterlevelse mht motorfedsel i utmark, kantvegetasjon | K179: Dokumentasjon om ivaretakelse av friluftsliv og sikring av etterlevelse mtp motorferdsel i utmark og kantvegetasjon: spørsmål og svar, vedtak om gebyr. | L179: Kasseres 10 år etter avslutning | M179: 563 Friluftsområder | N179: Lov om friluftslivet, markaloven
A180: 90000 | B180: 900 | C180: 8 | D180: 8 | E180: I9 | F180: Underfunksjon | G180: 90908 | H180: 179 | I180: H9 - 08 | J180: Ivareta viltforvaltning | K180: Dokumentasjon om ivaretakelse av viltforvaltning: spørsmål og svar, vedtak om gebyr. | L180: Bevares og avleveres til Byarkivet | M180: 937.2 Viltforvaltning og jakt | N180: Viltloven, naturmangfoldloven
A181: 90000 | B181: 900 | C181: 9 | D181: 9 | E181: I9 | F181: Underfunksjon | G181: 90909 | H181: 180 | I181: H9 - 09 | J181: Behandle klager om parker, friområder, idrettsanlegg, lekeplasser m.m. | K181: Dokumentasjon om klagebehandling angående parker, friområder, idrettsanlegg, lekeplasser m.m. | L181: Ikke vurdert
A182: 90000 | B182: 900 | C182: 10 | D182: 10 | E182: I9 | F182: Underfunksjon | G182: =A182+B182+C182+D182 -> 90920 | H182: 181 | I182: H9 - 10 | J182: Behandle forespørsler om utvikling av parker, idrettsanlegg, friområder m.m. | K182: Dokumentasjon om behandling av forespørsler om utvikling av parker, idrettsanlegg og friområder m.m. | L182: Ikke vurdert
A183: 90000 | B183: 900 | C183: 11 | D183: 11 | E183: I9 | F183: Underfunksjon | G183: 90922 | H183: 182 | I183: H9 - 11 | J183: Gi driftsstøtte til organisasjoner som driver med naturvern | K183: Dokumentasjon om driftsstøtte til organisasjoner som driver med naturvern. | L183: Ikke vurdert
A184: 90000 | B184: 900 | C184: 12 | D184: 12 | E184: I9 | F184: Underfunksjon | G184: 90924 | H184: 183 | I184: H9 - 12
A185: 90000 | B185: 900 | C185: 13 | D185: 13 | E185: I9 | F185: Underfunksjon | G185: 90926 | H185: 184 | I185: H9 - 13
A186: 90000 | B186: 900 | C186: 14 | D186: 14 | E186: I9 | F186: Underfunksjon | G186: 90928 | H186: 185 | I186: H9 - 14
A187: 90000 | B187: 900 | C187: 15 | D187: 15 | E187: I9 | F187: Underfunksjon | G187: 90930 | H187: 186 | I187: H9 - 15
A188: 90000 | B188: 900 | C188: 16 | D188: 16 | E188: I9 | F188: Underfunksjon | G188: 90932 | H188: 187 | I188: H9 - 16
A189: 90000 | B189: 900 | C189: 17 | D189: 17 | E189: I9 | F189: Underfunksjon | G189: 90934 | H189: 188 | I189: H9 - 17
A190: 90000 | B190: 900 | C190: 18 | D190: 18 | E190: I9 | F190: Underfunksjon | G190: 90936 | H190: 189 | I190: H9 - 18
A191: 90000 | B191: 900 | C191: 19 | D191: 19 | E191: I9 | F191: Underfunksjon | G191: 90938 | H191: 190 | I191: H9 - 19
A192: 90000 | B192: 1000 | D192: F | E192: I | F192: Funksjon | G192: =A192+B192+C192 -> 91000 | H192: 191 | I192: H10 | J192: Forvalte, drifte og vedlikeholde kommunale byrom, anlegg og fellesarealer
A193: 90000 | B193: 1000 | C193: 0 | D193: 0 | E193: I10 | F193: Underfunksjon | G193: 91000 | H193: 192 | I193: H10 - 00 | J193: Dokumentere generelt om kommunale byrom, anlegg og fellesarealer | K193: Her legges kun dokumenter som ikke naturlig hører hjemme i andre koder og som man vet at ikke har særlig dokumentasjonsverdi. Dersom man mener dokumentet har lengre dokumentasjonsverdi skal det legges på andre koder. | L193: Kasseres 5 år etter avslutning
A194: 90000 | B194: 1000 | C194: 1 | D194: 1 | E194: I10 | F194: Underfunksjon | G194: 91001 | H194: 193 | I194: H10 - 01 | J194: Forvalte leieforhold | K194: Etablering, forvaltning og avvikling av kontrakt, kundeoppfølging: Henvendelse fra kunde, behovskartlegging, forslag til kontrakt, utleiekontrakt, husleieberegning, fakturering, innkreving, husleieregulering, livssyklusberegning, reforhandlede kontrakter, tløpslister / varsling for utløp, invitasjon til kundemøte, møtereferat, arbeidsordre for kundemøter, kundeundersøkelser, informasjon til kunde , oppsigelse fra leietaker, oppsigelse fra utleier, transport av leiekontakt ved salg / overføring, utkastelse, signert overtakelsesprotokoll. | L194: Ikke vurdert | M194: 175.6 Utleie og dispensasjon av gate-, brygge- og torgplass, 622 Anlegg, 618 Disponering av vei- og gategrunn | N194: Retningslinjer for forvaltning og drift av Oslo kommunes skoger, Byråd for miljø og samferdsel Delegasjonsvedtak DV-0457 - 27.1997
A195: 90000 | B195: 1000 | C195: 2 | D195: 2 | E195: I10 | F195: Underfunksjon | G195: 91002 | H195: 194 | I195: H10 - 02 | J195: Planlegge og evaluere vedlikehold | K195: Dokumentasjon om planlegging og evaluering av vedlikehold. | L195: Ikke vurdert | M195: 623 Drift, vedlikehold
A196: 90000 | B196: 1000 | C196: 3 | D196: 3 | E196: I10 | F196: Underfunksjon | G196: 91003 | H196: 195 | I196: H10 - 03 | J196: Gjennomføre vedlikehold | K196: Dokumentasjon om gjennomføring av vedlikehold. | L196: Ikke vurdert | M196: 623 Drift, vedlikehold
A197: 90000 | B197: 1000 | C197: 4 | D197: 4 | E197: I10 | F197: Underfunksjon | G197: 91004 | H197: 196 | I197: H10 - 04 | J197: Utføre drift | K197: Dokumentasjon om driftsutførelse. | L197: Ikke vurdert | M197: 623 Drift, vedlikehold
A198: 90000 | B198: 1000 | C198: 5 | D198: 5 | E198: I10 | F198: Underfunksjon | G198: 91005 | H198: 197 | I198: H10 - 05 | J198: Sikre biologisk mangfold | K198: Dokumentasjon om urbant landbruk, bievennlig bydel, parsellhager. | L198: Ikke vurdert
A199: 90000 | B199: 1000 | C199: 6 | D199: 6 | E199: I10 | F199: Underfunksjon | G199: 91006 | H199: 198 | I199: H10 - 06
A200: 90000 | B200: 1000 | C200: 7 | D200: 7 | E200: I10 | F200: Underfunksjon | G200: 91007 | H200: 199 | I200: H10 - 07
... 222 more rows

Sheet I
A1: Kode | B1: Tittel | C1: Her legges | D1: BK-vurdering | E1: Tidligere arkivnøkkel | F1: Aktuelt lovverk | G1: Kommentar
A2: I | B2: Levere tjenester innen plan-, kart-, eiendoms- og byggesaksbehandling
A3: I1 | B3: Utarbeide overordnede areal- og transportplaner
A4: I1 - 00 | B4: Dokumentere generelt om overordnede planer | C4: Her legges kun dokumenter som ikke naturlig hører hjemme i andre koder og som man vet at ikke har særlig dokumentasjonsverdi. Dersom man mener dokumentet har lengre dokumentasjonsverdi skal det legges på andre koder. | D4: Kasseres 5 år etter avslutning
A5: I1 - 01 | B5: Utarbeide regional plan og planstrategi | D5: Bevares og avleveres til Byarkivet | F5: Plan- og bygningsloven
A6: I1 - 02 | B6: Utarbeide kommunedelplan | D6: Bevares og avleveres til Byarkivet | F6: Plan- og bygningsloven
A7: I1 - 03 | B7: Utarbeide planer og utredninger ikke hjemlet i pbl | C7: Eksempel: veiledende plan for offentlige rom/VPOR, eller ulike typer interne utredninger og studier. | D7: Bevares og avleveres til Byarkivet | G7: PBE har vurdert merbevaring i sin kartlegging.
A8: I1 - 04
A9: I1 - 05
A10: I1 - 06
A11: I1 - 07
A12: I1 - 08
A13: I1 - 09
A14: I1 - 10
A15: I1 - 11
A16: I1 - 12
A17: I1 - 13
A18: I1 - 14
A19: I1 - 15
A20: I1 - 16
A21: I1 - 17
A22: I1 - 18
A23: I1 - 19
A24: I2 | B24: Utarbeide og behandle reguleringsplaner
A25: I2 - 00 | B25: Dokumentere generelt om reguleringsplaner | C25: Her legges kun dokumenter som ikke naturlig hører hjemme i andre koder og som man vet at ikke har særlig dokumentasjonsverdi. Dersom man mener dokumentet har lengre dokumentasjonsverdi skal det legges på andre koder. | D25: Kasseres 5 år etter avslutning
A26: I2 - 01 | B26: Veilede i forkant av planprosess - avholde planforhåndskonferanse | D26: Bevares og avleveres til Byarkivet
A27: I2 - 02 | B27: Utarbeide program for planarbeid med behandling av konsekvensutredninger (generelle utredningskrav) | D27: Bevares og avleveres til Byarkivet | F27: Plan- og bygningsloven
A28: I2 - 03 | B28: Utarbeide områderegulering | D28: Bevares og avleveres til Byarkivet | F28: Plan- og bygningsloven
A29: I2 - 04 | B29: Utarbeide detaljregulering/reguleringsendring/planprogram | D29: Bevares og avleveres til Byarkivet | F29: Plan- og bygningsloven
A30: I2 - 05 | B30: Behandle mindre reguleringsendring | D30: Bevares og avleveres til Byarkivet
A31: I2 - 06 | B31: Behandle reguleringsendring hvor vedtaksmyndigheten kan delegeres | D31: Bevares og avleveres til Byarkivet | F31: Plan- og bygningsloven
A32: I2 - 07
A33: I2 - 08
A34: I2 - 09
A35: I2 - 10
A36: I2 - 11
A37: I2 - 12
A38: I2 - 13
A39: I2 - 14
A40: I2 - 15
A41: I2 - 16
A42: I2 - 17
A43: I2 - 18
A44: I2 - 19
A45: I3 | B45: Utarbeide midlertidig forbud mot tiltak
A46: I3 - 00 | B46: Dokumentere generelt om midlertidig forbud mot tiltak | C46: Her legges kun dokumenter som ikke naturlig hører hjemme i andre koder og som man vet at ikke har særlig dokumentasjonsverdi. Dersom man mener dokumentet har lengre dokumentasjonsverdi skal det legges på andre koder. | D46: Kasseres 5 år etter avslutning
A47: I3 - 01 | B47: Behandle forslag om midlertidig forbud mot tiltak | D47: Bevares og avleveres til Byarkivet | F47: Plan- og bygningsloven | G47: PBE har vurdert merbevaring i sin kartlegging.
A48: I3 - 02
A49: I3 - 03
A50: I3 - 04
A51: I3 - 05
A52: I3 - 06
A53: I3 - 07
A54: I3 - 08
A55: I3 - 09
A56: I3 - 10
A57: I3 - 11
A58: I3 - 12
A59: I3 - 13
A60: I3 - 14
A61: I3 - 15
A62: I3 - 16
A63: I3 - 17
A64: I3 - 18
A65: I3 - 19
A66: I4 | B66: Behandle deling og oppmåling
A67: I4 - 00 | B67: Dokumentere generelt om deling og oppmåling | C67: Her legges kun dokumenter som ikke naturlig hører hjemme i andre koder og som man vet at ikke har særlig dokumentasjonsverdi. Dersom man mener dokumentet har lengre dokumentasjonsverdi skal det legges på andre koder. | D67: Kasseres 5 år etter avslutning
A68: I4 - 01 | B68: Utføre deling | D68: Bevares og avleveres til Byarkivet | F68: Matrikkelloven og matrikkelforskriften
A69: I4 - 02 | B69: Klarlegge eksisterende grense | D69: Bevares og avleveres til Byarkivet | F69: Matrikkelloven og matrikkelforskriften
A70: I4 - 03 | B70: Utføre oppmålingsforretning | D70: Bevares og avleveres til Byarkivet | F70: Matrikkelloven
A71: I4 - 04 | B71: Utføre grensejustering | D71: Bevares og avleveres til Byarkivet | F71: Matrikkelloven og matrikkelforskriften
A72: I4 - 05 | B72: Utføre arealoverføring | D72: Bevares og avleveres til Byarkivet | F72: Matrikkelloven og matrikkelforskriften
A73: I4 - 06 | B73: Utarbeide regulerings- og eiendomsbekreftelse | D73: Ikke vurdert
A74: I4 - 07 | B74: Behandle veigrunnsframåling | D74: Ikke vurdert
A75: I4 - 08
A76: I4 - 09
A77: I4 - 10
A78: I4 - 11
A79: I4 - 12
A80: I4 - 13
A81: I4 - 14
A82: I4 - 15
A83: I4 - 16
A84: I4 - 17
A85: I4 - 18
A86: I4 - 19
A87: I5 | B87: Behandle seksjonering
A88: I5 - 00 | B88: Dokumentere generelt om seksjonering | C88: Her legges kun dokumenter som ikke naturlig hører hjemme i andre koder og som man vet at ikke har særlig dokumentasjonsverdi. Dersom man mener dokumentet har lengre dokumentasjonsverdi skal det legges på andre koder. | D88: Kasseres 5 år etter avslutning
A89: I5 - 01 | B89: Behandle begjæring om seksjonering/reseksjonering | D89: Bevares og avleveres til Byarkivet | F89: Eierseksjonsloven og matrikkelloven | G89: PBE har vurdert merbevaring i sin kartlegging.
A90: I5 - 02 | B90: Behandle begjæring om seksjoner med uteareal | D90: Bevares og avleveres til Byarkivet | F90: Eierseksjonsloven og matrikkelloven | G90: PBE har vurdert merbevaring i sin kartlegging.
A91: I5 - 03
A92: I5 - 04
A93: I5 - 05
A94: I5 - 06
A95: I5 - 07
A96: I5 - 08
A97: I5 - 09
A98: I5 - 10
A99: I5 - 11
A100: I5 - 12
A101: I5 - 13
A102: I5 - 14
A103: I5 - 15
A104: I5 - 16
A105: I5 - 17
A106: I5 - 18
A107: I5 - 19
A108: I6 | B108: Behandle matrikkelopplysninger
A109: I6 - 00 | B109: Dokumentere generelt om matrikkelopplysninger | C109: Her legges kun dokumenter som ikke naturlig hører hjemme i andre koder og som man vet at ikke har særlig dokumentasjonsverdi. Dersom man mener dokumentet har lengre dokumentasjonsverdi skal det legges på andre koder. | D109: Kasseres 5 år etter avslutning
A110: I6 - 01 | B110: Tildele adresser | D110: Bevares og avleveres til Byarkivet | F110: Matrikkelloven og matrikkelforskriften | G110: PBE har vurdert merbevaring i sin kartlegging.
A111: I6 - 02 | B111: Iverksette vedtak om navnsetting av gater og plasser | D111: Bevares og avleveres til Byarkivet
A112: I6 - 03 | B112: Behandle krav om sammenslåing av matrikkelenheter | D112: Bevares og avleveres til Byarkivet
A113: I6 - 04 | B113: Slette seksjonering | D113: Bevares og avleveres til Byarkivet
A114: I6 - 05 | B114: Behandle krav om retting av opplysninger i matrikkelen | D114: Bevares og avleveres til Byarkivet | F114: Matrikkelloven og matrikkelforskriften | G114: PBE har vurdert merbevaring i sin kartlegging.
A115: I6 - 06 | B115: Matrikkelføre jordskiftesak | D115: Bevares og avleveres til Byarkivet | F115: Matrikkelloven og matrikkelforskriften
A116: I6 - 07 | B116: Behandle bestilling av matrikkelbrev | D116: Kasseres 10 år etter avslutning | F116: Matrikkelloven | G116: PBE har vurdert bevaring hvis del av en fagsak.
A117: I6 - 08 | B117: Oppdatere matrikkelen ved erverv av grunn | D117: Bevares og avleveres til Byarkivet | F117: Matrikkelforskriften | G117: PBE har vurdert merbevaring i sin kartlegging.
A118: I6 - 09 | B118: Produsere arealbekreftelser | D118: Kasseres 10 år etter avslutning
A119: I6 - 10 | B119: Behandle konsesjonssaker/egenerklæring om konsesjonsfrihet | D119: Bevares og avleveres til Byarkivet | F119: Matrikkelforskriften | G119: PBE har vurdert merbevaring i sin kartlegging.
A120: I6 - 11
A121: I6 - 12
A122: I6 - 13
A123: I6 - 14
A124: I6 - 15
A125: I6 - 16
A126: I6 - 17
A127: I6 - 18
A128: I6 - 19
A129: I7 | B129: Bidra med ressurser og kompetanse som kommunens faginstans
A130: I7 - 00 | B130: Dokumentere generelt om oppgaver utført som kommunens faginstans | C130: Her legges kun dokumenter som ikke naturlig hører hjemme i andre koder og som man vet at ikke har særlig dokumentasjonsverdi. Dersom man mener dokumentet har lengre dokumentasjonsverdi skal det legges på andre koder. | D130: Kasseres 5 år etter avslutning
A131: I7 - 01 | B131: Forberede saker på vegne av byrådet og bystyret ved BUK | D131: Bevares og avleveres til Byarkivet | G131: PBE har vurdert merbevaring i sin kartlegging.
A132: I7 - 02 | B132: Utarbeide uttalelser i lov- og forskriftssaker | D132: Bevares og avleveres til Byarkivet | G132: PBE har vurdert merbevaring i sin kartlegging.
A133: I7 - 03 | B133: Utarbeide uttalelser til nabokommuners plan- og byggesaker | D133: Bevares og avleveres til Byarkivet | G133: PBE har vurdert merbevaring i sin kartlegging.
A134: I7 - 04 | B134: Gjennomføre og delta i prosjekter/samarbeidsprosjekter/nettverk | C134: Her legges dokumentasjon om deltakelse i faglige nettverk og samarbeidsgrupper. | D134: Bevares og avleveres til Byarkivet | G134: PBE har vurdert merbevaring i sin kartlegging.
A135: I7 - 05 | B135: Behandle forespørsler innen plan-, kart-, eiendoms- og byggesaker | D135: Bevares og avleveres til Byarkivet | G135: PBE har vurdert merbevaring i sin kartlegging.
A136: I7 - 06 | B136: Gi uttalelse til øvrige virksomheter | C136: Dokumentasjon om høringer og anmodning om uttalelser fra andre offentlige virksomheter. | D136: Bevares og avleveres til Byarkivet | G136: PBE har vurdert merbevaring i sin kartlegging.
A137: I7 - 07 | B137: Delta i andre virksomheters plan- og utredningsarbeid | C137: F.eks. konseptvalgutredning. | D137: Bevares og avleveres til Byarkivet | F137: Plan- og bygningsloven | G137: PBE har vurdert merbevaring i sin kartlegging.
A138: I7 - 08 | B138: Utføre øvrige oppgaver etter bestilling fra politiske organer | C138: Her legges dokumentasjon av ulike oppdrag, f.eks. arbeid som sekretariat for Rådet for byarkitektur, Arkitekturprisen, utforming av arkitekturpolitikk m.m. | D138: Bevares og avleveres til Byarkivet
A139: I7 - 09
A140: I7 - 10
A141: I7 - 11
A142: I7 - 12
A143: I7 - 13
A144: I7 - 14
A145: I7 - 15
A146: I7 - 16
A147: I7 - 17
A148: I7 - 18
A149: I7 - 19
A150: I8 | B150: Behandle byggesak
A151: I8 - 00 | B151: Dokumentere generelt om byggesak | C151: Her legges kun dokumenter som ikke naturlig hører hjemme i andre koder og som man vet at ikke har særlig dokumentasjonsverdi. Dersom man mener dokumentet har lengre dokumentasjonsverdi skal det legges på andre koder. | D151: Kasseres 5 år etter avslutning
A152: I8 - 01 | B152: Veilede i forkant av byggesaksprosess - Avholde forhåndskonferanse | D152: Bevares og avleveres til Byarkivet | F152: Forvaltningsloven og plan- og bygningsloven | G152: PBE har vurdert merbevaring i sin kartlegging.
A153: I8 - 02 | B153: Behandle byggesøknad jf. pbl § 20-1 og § 20-2 | D153: Bevares og avleveres til Byarkivet | F153: Forvaltningsloven og plan- og bygningsloven
A154: I8 - 03 | B154: Behandle søknad om dispensasjon fra markaloven | D154: Bevares og avleveres til Byarkivet | F154: Markaloven | G154: PBE har vurdert merbevaring i sin kartlegging.
A155: I8 - 04 | B155: Behandle søknad om dispensasjon fra plan | D155: Bevares og avleveres til Byarkivet | F155: Forvaltningsloven og plan- og bygningsloven
A156: I8 - 05 | B156: Behandle søknad om dispensasjon fra lov og forskrift | D156: Ikke vurdert
A157: I8 - 06 | B157: Behandle anmodning om sletting av tinglyst erklæring | D157: Bevares og avleveres til Byarkivet | G157: PBE har vurdert merbevaring i sin kartlegging.
A158: I8 - 07 | B158: Behandle krav om refusjon | D158: Bevares og avleveres til Byarkivet | F158: Plan- og bygningsloven | G158: PBE har vurdert merbevaring i sin kartlegging.
A159: I8 - 08
A160: I8 - 09
A161: I8 - 10
A162: I8 - 11
A163: I8 - 12
A164: I8 - 13
A165: I8 - 14
A166: I8 - 15
A167: I8 - 16
A168: I8 - 17
A169: I8 - 18
A170: I8 - 19
A171: I9 | B171: Forvalte digitale kartverk
A172: I9 - 00 | B172: Dokumentere generelt om kvartverk | C172: Her legges kun dokumenter som ikke naturlig hører hjemme i andre koder og som man vet at ikke har særlig dokumentasjonsverdi. Dersom man mener dokumentet har lengre dokumentasjonsverdi skal det legges på andre koder. | D172: Kasseres 5 år etter avslutning
A173: I9 - 01 | B173: Forvalte og ajourholde grunnkartet | D173: Bevares og avleveres til Byarkivet | F173: Kart- og planforskriften
A174: I9 - 02 | B174: Forvalte og ajourholde Regis/Geografisk informasjonssystem for reguleringskart | D174: Bevares og avleveres til Byarkivet | F174: Plan- og bygningsloven og plan- og kartforskriften
A175: I9 - 03 | B175: Produsere kart etter bestilling | D175: Bevares og avleveres til Byarkivet | F175: Kart- og planforskriften
A176: I9 - 04
A177: I9 - 05
A178: I9 - 06
A179: I9 - 07
A180: I9 - 08
A181: I9 - 09
A182: I9 - 10
A183: I9 - 11
A184: I9 - 12
A185: I9 - 13
A186: I9 - 14
A187: I9 - 15
A188: I9 - 16
A189: I9 - 17
A190: I9 - 18
A191: I9 - 19
A192: I10 | B192: Utøve tilsynsmyndighet
A193: I10 - 00 | B193: Dokumentere generelt om tilsyn | C193: Her legges kun dokumenter som ikke naturlig hører hjemme i andre koder og som man vet at ikke har særlig dokumentasjonsverdi. Dersom man mener dokumentet har lengre dokumentasjonsverdi skal det legges på andre koder. | D193: Kasseres 5 år etter avslutning
A194: I10 - 01 | B194: Utarbeide strategier og planer for tilsyn, kontroll og ulovlighetsoppfølging | D194: Bevares og avleveres til Byarkivet | F194: Plan- og bygningsloven
A195: I10 - 02 | B195: Utføre ulovlighetsoppfølging - enkeltsaker og klagesaker | D195: Bevares og avleveres til Byarkivet | F195: Plan- og bygningsloven
A196: I10 - 03 | B196: Utøve tilsyn med bygg og anlegg | D196: Bevares og avleveres til Byarkivet | F196: Plan- og bygningsloven
A197: I10 - 04 | B197: Behandle søknad om tillatelse til drift av løfteinnretninger | D197: Bevares og avleveres til Byarkivet | F197: Plan- og bygningsloven og teknisk forskrift | G197: PBE har vurdert merbevaring i sin kartlegging.
A198: I10 - 05 | B198: Sikkerhetskontroll av installasjoner (Heis-/løfteanretninger) | D198: Kasseres 10 år etter avslutning | F198: Forskrift om omsetning og dokumentasjon av heiser og sikkerhetskomponenter for heiser
A199: I10 - 06 | B199: Behandle tiltaksplan for forurenset grunn | D199: Bevares og avleveres til Byarkivet | F199: Byggteknisk forskrift og forurensingsforskriften | G199: PBE har vurdert merbevaring i sin kartlegging.
A200: I10 - 07 | B200: Behandle sluttrapport for forurenset grunn | D200: Bevares og avleveres til Byarkivet | F200: Forurensingsforskriften | G200: PBE har vurdert merbevaring i sin kartlegging.
... 12 more rows

Sheet J
A1: NJvå 1 | B1: NJvå 2 | C1: NJvå 3 | D1: Nummer | E1: OverlJggende | F1: Funksjon | H1: Løpenummer | I1: Kode | J1: Tittel | K1: Her legges | L1: BK-vurdering | M1: Tidligere arkivnøkkel | N1: Aktuelt lovverk | O1: Kommentar
A2: 100000 | D2: H | F2: Hovedfunksjon | G2: =A2+B2+C2 -> 100000 | H2: 1 | I2: J | J2: Levere tjenester innen oppvekst og utdanning | K2: Barnehage, grunnskole, SFO, videregående skole, barnevern, fosterhjem
A3: 100000 | B3: 100 | D3: F | E3: J | F3: Funksjon | G3: 100100 | H3: 2 | I3: J1 | J3: Administrere og følge opp barnehagebarn og elever
A4: 100000 | B4: 100 | C4: 0 | D4: 0 | E4: J1 | F4: Underfunksjon | G4: 100100 | H4: 3 | I4: J1 - 00 | J4: Dokumentere generelt om administrasjon og oppfølging av barnehagebarn og elever | K4: Her legges kun dokumenter som ikke naturlig hører hjemme i andre koder og som man vet at ikke har særlig dokumentasjonsverdi. Dersom man mener dokumentet har lengre dokumentasjonsverdi skal det legges på andre koder. | L4: Kasseres 5 år etter avslutning
A5: 100000 | B5: 100 | C5: 1 | D5: 1 | E5: J1 | F5: Underfunksjon | G5: 100101 | H5: 4 | I5: J1 - 01 | J5: Følge opp enkeltbarn i barnehage og enkeltelever i skole | K5: På enkelt barnehagebarn skal det finnes følgende dokumentasjon: Skademelding. Ev. saker hos PPT skal ligge under koder for PPT. | L5: Bevares og avleveres til Byarkivet
I6: J1 - 02 | J6: Håndtere barnehagesøknader | K6: Alle søknader håndteres i fagsystem (IST Barnehage) og kasseres. På denne koden legges kun rapport med register over barnehagebarn som tas ut av fagsystemet hvert halvår. | L6: Bevares og avleveres til Byarkivet
A7: 100000 | B7: 100 | C7: 2 | D7: 2 | E7: J1 | F7: Underfunksjon | G7: 100102 | H7: 5 | I7: J1 - 02 | J7: Gi uttalelser om enkeltelever og enkelt barn til andre instanser | K7: Uttalelser til politi, advokater. Anmodning om opplysninger til Barnevernet. | L7: Bevares og avleveres til Byarkivet
A8: 100000 | B8: 100 | C8: 3 | D8: 3 | E8: J1 | F8: Underfunksjon | G8: 100103 | H8: 6 | I8: J1 - 03
A9: 100000 | B9: 100 | C9: 4 | D9: 4 | E9: J1 | F9: Underfunksjon | G9: 100104 | H9: 7 | I9: J1 - 04
A10: 100000 | B10: 100 | C10: 5 | D10: 5 | E10: J1 | F10: Underfunksjon | G10: 100105 | H10: 8 | I10: J1 - 05
A11: 100000 | B11: 100 | C11: 6 | D11: 6 | E11: J1 | F11: Underfunksjon | G11: 100106 | H11: 9 | I11: J1 - 06
A12: 100000 | B12: 100 | C12: 7 | D12: 7 | E12: J1 | F12: Underfunksjon | G12: 100107 | H12: 10 | I12: J1 - 07
A13: 100000 | B13: 100 | C13: 8 | D13: 8 | E13: J1 | F13: Underfunksjon | G13: 100108 | H13: 11 | I13: J1 - 08
A14: 100000 | B14: 100 | C14: 9 | D14: 9 | E14: J1 | F14: Underfunksjon | G14: 100109 | H14: 12 | I14: J1 - 09
A15: 100000 | B15: 100 | C15: 10 | D15: 10 | E15: J1 | F15: Underfunksjon | G15: =A15+B15+C15+D15 -> 100120 | H15: 13
A16: 100000 | B16: 100 | C16: 11 | D16: 11 | E16: J1 | F16: Underfunksjon | G16: 100122 | H16: 14 | I16: J2 | J16: Oppfølging og kontroll av barnehager
A17: 100000 | B17: 100 | C17: 12 | D17: 12 | E17: J1 | F17: Underfunksjon | G17: 100124 | H17: 15 | I17: J2 - 00 | J17: Dokumentere generelt om oppfølging og kontroll av barnehager | K17: Her legges kun dokumenter som ikke naturlig hører hjemme i andre koder og som man vet at ikke har særlig dokumentasjonsverdi. Dersom man mener dokumentet har lengre dokumentasjonsverdi skal det legges på andre koder. | L17: Kasseres 5 år etter avslutning
I18: J2 - 01 | J18: Utarbeide årsplaner og retningslinjer | K18: Dokumentasjon om pedagogisk årsplan for kommunale og private barnehager, utarbeidelse av retningslinjer for inntak/opphold i barnehage, utarbeidelse av rettningslinjer for tilskudd i barnehage. | L18: Bevares og avleveres til Byarkivet
A19: 100000 | B19: 100 | C19: 13 | D19: 13 | E19: J1 | F19: Underfunksjon | G19: 100126 | H19: 16 | I19: J2 - 02 | J19: Godkjenning av barnehager | K19: Dokumentasjon om søknad om godkjenning fra eier (kommunal eller privat) med dokumentasjon. Saksbehandling vedrørende eventuelle avvik. Tilsvar om utbedring av eventuelle avvik. Vedtak | L19: Bevares og avleveres byarkivet
A20: 100000 | B20: 100 | C20: 14 | D20: 14 | E20: J1 | F20: Underfunksjon | G20: 100128 | H20: 17 | I20: J2 - 03 | J20: Tilsyn i barnehage | K20: Dokumentasjon om Varsel om tilsyn i barnehage, tilsendt dokumentasjon fra barnehage, foreløpig tilsynsrapport, uttalelse på foreløpig tilsynsrapport, endelig tilsynsrapport med ev. avvik, dokumentasjon på retting av avvik, vedtak. | L20: Bevares og avleveres til Byarkivet
A21: 100000 | B21: 100 | C21: 15 | D21: 15 | E21: J1 | F21: Underfunksjon | G21: 100130 | H21: 18 | I21: J2 - 04 | J21: Håndtere søknader om dispensasjon fra krav om pedagogisk utdanning | K21: Søknad og vedtak | L21: Bevares og avleveres til Byarkivet
A22: 100000 | B22: 100 | C22: 16 | D22: 16 | E22: J1 | F22: Underfunksjon | G22: 100132 | H22: 19 | I22: J2 - 05 | J22: Håndtere klager på tjeneste i kommunal eller privat barnehage | K22: Dokumentasjon om klage og klagebehandling, samt vedtak. | L22: Bevares og avleveres til Byarkivet
A23: 100000 | B23: 100 | C23: 17 | D23: 17 | E23: J1 | F23: Underfunksjon | G23: 100134 | H23: 20 | I23: J2 - 06 | J23: Behandle saker om utbygging av barnehager | K23: Forespørsler om behov, svar på behov, etableringsplaner. | L23: Bevares og avleveres til Byarkivet
A24: 100000 | B24: 100 | C24: 18 | D24: 18 | E24: J1 | F24: Underfunksjon | G24: 100136 | H24: 21 | I24: J2 - 07
A25: 100000 | B25: 100 | C25: 19 | D25: 19 | E25: J1 | F25: Underfunksjon | G25: 100138 | H25: 22 | I25: J2 - 08
I26: J2 - 09
I27: J2 - 10
I29: J3 | J29: Levere pedagogisk-psykologiske tjenester (PPT)
I30: J3 - 00 | J30: Dokumentere generelt om pedagogisk-psykologiske tjenester (PPT) | K30: Her legges kun dokumenter som ikke naturlig hører hjemme i andre koder og som man vet at ikke har særlig dokumentasjonsverdi. Dersom man mener dokumentet har lengre dokumentasjonsverdi skal det legges på andre koder. | L30: Kasseres 5 år etter avslutning
I31: J3 - 01 | J31: Saker om systemrettede oppgaver | L31: Bevares og avleveres til Byarkivet
I32: J3 - 02 | J32: Saker om individrettede oppgaver | L32: Bevares og avleveres til Byarkivet
I33: J3 - 03 | J33: Rådgi barn over 15 år | L33: Bevares og avleveres til Byarkivet
I34: J3 - 04 | J34: Tverrfaglig rådgivning til andre offentlige tjenester | L34: Bevares og avleveres til Byarkivet
I35: J3 - 05
I36: J3 - 06
I37: J3 - 07
I38: J3 - 08
I39: J3 - 09
A41: 100000 | B41: 200 | D41: F | E41: J | F41: Funksjon | G41: =A41+B41+C41 -> 100200 | H41: 23 | I41: J4 | J41: Utdanningsdministrasjon
A42: 100000 | B42: 200 | C42: 0 | D42: 0 | E42: J2 | F42: Underfunksjon | G42: 100200 | H42: 24 | I42: J4 - 00
A43: 100000 | B43: 200 | C43: 1 | D43: 1 | E43: J2 | F43: Underfunksjon | G43: 100201 | H43: 25 | I43: J4 - 01
A44: 100000 | B44: 200 | C44: 2 | D44: 2 | E44: J2 | F44: Underfunksjon | G44: 100202 | H44: 26 | I44: J4 - 02
A45: 100000 | B45: 200 | C45: 3 | D45: 3 | E45: J2 | F45: Underfunksjon | G45: 100203 | H45: 27 | I45: J4 - 03
A46: 100000 | B46: 200 | C46: 4 | D46: 4 | E46: J2 | F46: Underfunksjon | G46: 100204 | H46: 28 | I46: J4 - 04
A47: 100000 | B47: 200 | C47: 5 | D47: 5 | E47: J2 | F47: Underfunksjon | G47: 100205 | H47: 29 | I47: J4 - 05
A48: 100000 | B48: 200 | C48: 6 | D48: 6 | E48: J2 | F48: Underfunksjon | G48: 100206 | H48: 30 | I48: J4 - 06
A49: 100000 | B49: 200 | C49: 7 | D49: 7 | E49: J2 | F49: Underfunksjon | G49: 100207 | H49: 31 | I49: J4 - 07
A50: 100000 | B50: 200 | C50: 8 | D50: 8 | E50: J2 | F50: Underfunksjon | G50: 100208 | H50: 32 | I50: J4 - 08
A51: 100000 | B51: 200 | C51: 9 | D51: 9 | E51: J2 | F51: Underfunksjon | G51: 100209 | H51: 33 | I51: J4 - 09
A52: 100000 | B52: 200 | C52: 19 | D52: 19 | E52: J2 | F52: Underfunksjon | G52: =A52+B52+C52+D52 -> 100238 | H52: 43
A53: 100000 | B53: 600 | D53: F | E53: J | F53: Funksjon | G53: =A53+B53+C53 -> 100600 | H53: 107 | I53: J5 | J53: Levere grunnskole
A54: 100000 | B54: 600 | C54: 0 | D54: 0 | E54: J6 | F54: Underfunksjon | G54: 100600 | H54: 108 | I54: J5 - 00
A55: 100000 | B55: 600 | C55: 1 | D55: 1 | E55: J6 | F55: Underfunksjon | G55: 100601 | H55: 109 | I55: J5 - 01
A56: 100000 | B56: 600 | C56: 2 | D56: 2 | E56: J6 | F56: Underfunksjon | G56: 100602 | H56: 110 | I56: J5 - 02
A57: 100000 | B57: 600 | C57: 3 | D57: 3 | E57: J6 | F57: Underfunksjon | G57: 100603 | H57: 111 | I57: J5 - 03
A58: 100000 | B58: 600 | C58: 4 | D58: 4 | E58: J6 | F58: Underfunksjon | G58: 100604 | H58: 112 | I58: J5 - 04
A59: 100000 | B59: 600 | C59: 5 | D59: 5 | E59: J6 | F59: Underfunksjon | G59: 100605 | H59: 113 | I59: J5 - 05
A60: 100000 | B60: 600 | C60: 6 | D60: 6 | E60: J6 | F60: Underfunksjon | G60: 100606 | H60: 114 | I60: J5 - 06
A61: 100000 | B61: 600 | C61: 7 | D61: 7 | E61: J6 | F61: Underfunksjon | G61: 100607 | H61: 115 | I61: J5 - 07
A62: 100000 | B62: 600 | C62: 8 | D62: 8 | E62: J6 | F62: Underfunksjon | G62: 100608 | H62: 116 | I62: J5 - 08
A63: 100000 | B63: 600 | C63: 9 | D63: 9 | E63: J6 | F63: Underfunksjon | G63: 100609 | H63: 117 | I63: J5 - 09
A64: 100000 | B64: 600 | C64: 10 | D64: 10 | E64: J6 | F64: Underfunksjon | G64: =A64+B64+C64+D64 -> 100620 | H64: 118
A65: 100000 | B65: 700 | D65: F | E65: J | F65: Funksjon | G65: =A65+B65+C65 -> 100700 | H65: 128 | I65: J6 | J65: Levere videregående skole
A66: 100000 | B66: 700 | C66: 0 | D66: 0 | E66: J7 | F66: Underfunksjon | G66: 100700 | H66: 129 | I66: J6 - 00
A67: 100000 | B67: 700 | C67: 1 | D67: 1 | E67: J7 | F67: Underfunksjon | G67: 100701 | H67: 130 | I67: J6 - 01
A68: 100000 | B68: 700 | C68: 2 | D68: 2 | E68: J7 | F68: Underfunksjon | G68: 100702 | H68: 131 | I68: J6 - 02
A69: 100000 | B69: 700 | C69: 3 | D69: 3 | E69: J7 | F69: Underfunksjon | G69: 100703 | H69: 132 | I69: J6 - 03
A70: 100000 | B70: 700 | C70: 4 | D70: 4 | E70: J7 | F70: Underfunksjon | G70: 100704 | H70: 133 | I70: J6 - 04
A71: 100000 | B71: 700 | C71: 5 | D71: 5 | E71: J7 | F71: Underfunksjon | G71: 100705 | H71: 134 | I71: J6 - 05
A72: 100000 | B72: 700 | C72: 6 | D72: 6 | E72: J7 | F72: Underfunksjon | G72: 100706 | H72: 135 | I72: J6 - 06
A73: 100000 | B73: 700 | C73: 7 | D73: 7 | E73: J7 | F73: Underfunksjon | G73: 100707 | H73: 136 | I73: J6 - 07
A74: 100000 | B74: 700 | C74: 8 | D74: 8 | E74: J7 | F74: Underfunksjon | G74: 100708 | H74: 137 | I74: J6 - 08
A75: 100000 | B75: 700 | C75: 9 | D75: 9 | E75: J7 | F75: Underfunksjon | G75: 100709 | H75: 138 | I75: J6 - 09
A76: 100000 | B76: 700 | C76: 10 | D76: 10 | E76: J7 | F76: Underfunksjon | G76: =A76+B76+C76+D76 -> 100720 | H76: 139
A77: 100000 | B77: 300 | D77: F | E77: J | F77: Funksjon | G77: =A77+B77+C77 -> 100300 | H77: 44 | I77: J7 | J77: Følge opp friskoler og privatskoler
